Workbook

Sheet AER only (hidden)
B1: Data in these columns used for data validation and database purposes.
B2: Date last modified:
B3: 14 April 2015 | C3: merged cell C46/47
B4: 17 April 2015 | C4: adjusted dms_RYE to automate based on dms_Model (NB: EB & CA refer to CRCP_y5)
B5: 14 May 2015 | C5: adapted this cover for use in CA & EB RINs
B9: dms_Model_List | C9: dms_Worksheet_List | E9: dms_RYE_List1 | F9: dms_RYE_List2
B10: CA | C10: CATEGORY ANALYSIS | E10: dms_RYE | F10: =CONCATENATE(LEFT(CRY, 2) &IF(CRY>"2009-10",,"") &RIGHT(CRY,2)) -> 2015
B11: CAM/Service change Backcast | C11: REGULATORY REPORTING STATEMENT | E11: dms_RYE | F11: =CONCATENATE(LEFT(CRCP_y5, 2) &IF(CRCP_y5>"2009-10",,"") &RIGHT(CRCP_y5,2)) -> 2017
B12: CPI | C12: CPI | E12: dms_RYE | F12: =CONCATENATE(LEFT(CRCP_y5, 2) &IF(CRCP_y5>"2009-10",,"") &RIGHT(CRCP_y5,2)) -> 2017
B13: EB | C13: ECONOMIC BENCHMARKING | E13: dms_RYE | F13: =CONCATENATE(LEFT(CRY, 2) &IF(CRY>"2009-10",,"") &RIGHT(CRY,2)) -> 2015
B14: PTRM | C14: POST TAX REVENUE MODEL | E14: FRCP | F14: =CONCATENATE(LEFT(FRCP_y5, 2) &IF(FRCP_y1>"2009-10",,"") &RIGHT(FRCP_y5,2)) -> 2022
B15: Reset | C15: REGULATORY REPORTING STATEMENT | E15: FRCP | F15: =CONCATENATE(LEFT(FRCP_y5, 2) &IF(FRCP_y1>"2009-10",,"") &RIGHT(FRCP_y5,2)) -> 2022
B16: RFM | C16: ROLL FORWARD MODEL | E16: CRCP | F16: =CONCATENATE(LEFT(CRCP_y5, 2) &IF(CRCP_y1>"2009-10",,"") &RIGHT(CRCP_y5,2)) -> 2017
B17: WACC | C17: WEIGHTED AVERAGE COST OF CAPITAL | E17: dms_RYE | F17: =CONCATENATE(LEFT(CRCP_y5, 2) &IF(CRCP_y5>"2009-10",,"") &RIGHT(CRCP_y5,2)) -> 2017
B20: dms_TradingName_List | C20: dms_ABN_List | D20: dms_State_List | E20: dms_Sector_List | F20: dms_Segment_List | G20: dms_FormControl | H20: dms_CRCPlength_List | I20: dms_FRCPlength_List | J20: dms_JurisdictionList | K20: dms_663_List | L20: dms_DeterminationRef_List
B21: ActewAGL Distribution | C21: 76670568688 | D21: ACT | E21: Electricity | F21: Distribution | G21: Revenue cap | H21: 5 | I21: 6 | J21: ACT | K21: 5 | L21: 2014-19 Distribution Determination
B22: ActewAGL Distribution (Tx Assets) | C22: 76670568688 | D22: ACT | E22: Electricity | F22: Distribution | G22: Revenue cap | H22: 5 | I22: 5 | J22: ACT | K22: 5 | L22: distribution determination
B23: AGN | C23: 78551685 | D23: SA | E23: Gas | F23: Distribution | G23: Revenue cap | H23: 5 | I23: 5 | J23: SA | K23: 5 | L23: distribution determination
B24: Ausgrid | C24: 67505337385 | D24: NSW | E24: Electricity | F24: Distribution | G24: Revenue cap | H24: 5 | I24: 5 | J24: NSW | K24: 5 | L24: 2014-19 Distribution Determination
B25: Ausgrid (Tx Assets) | C25: 67505337385 | D25: NSW | E25: Electricity | F25: Distribution | G25: Revenue cap | H25: 5 | I25: 5 | J25: NSW | K25: 5 | L25: distribution determination
B26: AusNet (D) | C26: 91064651118 | D26: Vic | E26: Electricity | F26: Distribution | G26: Revenue cap | H26: 5 | I26: 5 | J26: Vic | K26: 2 | L26: 2016-20 Distribution Determination
B27: AusNet (T) | C27: 78079798173 | D27: Vic | E27: Electricity | F27: Transmission | G27: Revenue cap | H27: 5 | I27: 5 | J27: Vic | K27: 2 | L27: distribution determination
B28: Australian Distribution Co. | C28: 11222333444 | D28: - | E28: Electricity | F28: Distribution | G28: Revenue cap | H28: 5 | I28: 5 | J28: - | K28: 2 | L28: distribution determination
B29: Australian Transmission Co. | C29: 11222333444 | D29: - | E29: Electricity | F29: Transmission | G29: Revenue cap | H29: 5 | I29: 5 | J29: - | K29: 5 | L29: distribution determination
B30: CitiPower | C30: 76064651056 | D30: Vic | E30: Electricity | F30: Distribution | G30: Revenue cap | H30: 5 | I30: 5 | J30: Vic | K30: 2 | L30: 2016-20 Distribution Determination
B31: Directlink | C31: 16779340889 | D31: NSW | E31: Electricity | F31: Transmission | G31: Revenue cap | H31: 10 | I31: 5 | J31: Qld | K31: 5 | L31: distribution determination
B32: ElectraNet | C32: 41094482416 | D32: SA | E32: Electricity | F32: Transmission | G32: Revenue cap | H32: 5 | I32: 5 | J32: SA | K32: 5 | L32: distribution determination
B33: Endeavour Energy | C33: 59253130878 | D33: NSW | E33: Electricity | F33: Distribution | G33: Revenue cap | H33: 5 | I33: 5 | J33: NSW | K33: 5 | L33: 2014-19 Distribution Determination
B34: Energex | C34: 40078849055 | D34: Qld | E34: Electricity | F34: Distribution | G34: Revenue cap | H34: 5 | I34: 5 | J34: Qld | K34: 5 | L34: 2015-20 Distribution Determination
B35: Ergon Energy | C35: 50087646062 | D35: Qld | E35: Electricity | F35: Distribution | G35: Revenue cap | H35: 5 | I35: 5 | J35: Qld | K35: 5 | L35: 2015-20 Distribution Determination
B36: Essential Energy | C36: 37428185226 | D36: NSW | E36: Electricity | F36: Distribution | G36: Revenue cap | H36: 5 | I36: 5 | J36: NSW | K36: 5 | L36: 2014-19 Distribution Determination
B37: Jemena Electricity | C37: 82064651083 | D37: Vic | E37: Electricity | F37: Distribution | G37: Revenue cap | H37: 5 | I37: 5 | J37: Vic | K37: 2 | L37: 2016-20 Distribution Determination
B38: Murraylink | C38: 79181207909 | D38: NSW | E38: Electricity | F38: Transmission | G38: Revenue cap | H38: 5 | I38: 5 | J38: SA | K38: 5 | L38: distribution determination
B39: Powercor Australia | C39: 89064651109 | D39: Vic | E39: Electricity | F39: Distribution | G39: Revenue cap | H39: 5 | I39: 5 | J39: Vic | K39: 2 | L39: 2016-20 Distribution Determination
B40: Powerlink | C40: 82078849233 | D40: Qld | E40: Electricity | F40: Transmission | G40: Revenue cap | H40: 5 | I40: 5 | J40: Qld | K40: 5 | L40: distribution determination
B41: Qld,SA &ACT Gas Reset | C41: 22222222222 | D41: - | E41: Gas | F41: Distribution | G41: ? | H41: 5 | I41: 5 | J41: - | K41: x | L41: distribution determination
B42: SA Power Networks | C42: 13332330749 | D42: SA | E42: Electricity | F42: Distribution | G42: Revenue cap | H42: 5 | I42: 5 | J42: SA | K42: 5 | L42: 2015-20 Distribution Determination
B43: TasNetworks (D) | C43: 24167357299 | D43: Tas | E43: Electricity | F43: Distribution | G43: Revenue cap | H43: 5 | I43: 5 | J43: Tas | K43: 5 | L43: distribution determination
B44: TasNetworks (T) | C44: 24167357299 | D44: Tas | E44: Electricity | F44: Transmission | G44: Revenue cap | H44: 5 | I44: 5 | J44: Tas | K44: 5 | L44: distribution determination
B45: TransGrid | C45: 19622755774 | D45: NSW | E45: Electricity | F45: Transmission | G45: Revenue cap | H45: 5 | I45: 5 | J45: NSW | K45: 5 | L45: distribution determination
B46: United Energy | C46: 70064651029 | D46: Vic | E46: Electricity | F46: Distribution | G46: Revenue cap | H46: 5 | I46: 5 | J46: Vic | K46: 2 | L46: 2016-20 Distribution Determination
B47: Victorian DNSP Backcasting | C47: 33333333666 | D47: Vic | E47: Electricity | F47: Distribution | G47: ? | H47: 5 | I47: 5 | J47: Vic | K47: x | L47: distribution determination
B48: Victorian DNSP Reset | C48: 33333333333 | D48: Vic | E48: Electricity | F48: Distribution | G48: ? | H48: 5 | I48: 5 | J48: Vic | K48: x | L48: distribution determination
B53: dms_SourceList | C53: dms_FormControl
B54: After appeal | C54: Revenue cap
B55: Draft decision | C55: Revenue yield
B56: Final decision | C56: Weighted average price cap
B57: Pass through decision
B58: PTRM annual update
B59: PTRM interim update 1
B60: PTRM interim update 2
B61: PTRM interim update 3
B62: PTRM interim update 4
B63: Regulatory proposal
B64: Reporting
B65: Revised regulatory proposal
B66: RFM annual update
B67: WACC annual update
B71: Notes
B72: RFM - Base year is usually CRCP_y1 | C72: EG. Victorian 2016-20 - base year = 2011
B73: RFM - Form of Control Field is not relevant
B74: PTRM - capture base year input by NSP | C74: ='[Published version - PTRM - TNSP - version 3 - January 2015 - Appendix A.xlsm]PTRM input'!Q7

Sheet Contents
C1: REGULATORY REPORTING STATEMENT
C2: =dms_TradingName -> AusNet (T)
C3: =CONCATENATE(FRCP_y1," to ",FRCP_y5) -> 2017-18 to 2021-22
C4: Contents
F7: 1. Business details | M7: 2. Expenditure | T7: 3. Economic benchmarking
F26: 5. Network information | T26: 7. Other templates

Sheet Instructions
B8: =CONCATENATE(dms_Segment," Network Service Provider") -> Transmission Network Service Provider
B9: Regulatory Proposal RIN Template
C11: =CONCATENATE(dms_TradingName," must fill out and submit the regulatory templates in this workbook as part of its revenue proposal") -> AusNet (T) must fill out and submit the regulatory templates in this workbook as part of its revenue proposal
C14: INSTRUCTIONS
C15: Complete the Business & other details worksheet before entering data or values in any other worksheets. The Business & other details worksheet is linked to other cells within the workbook and automatically generates certain column headings. Please identify whether this is a regulatory proposal or revised regulatory proposal on the Business & other details worksheet.
C16: =CONCATENATE("If ",dms_TradingName," needs to amend any data please resubmit this completed workbook in its entirety after making any necessary amendments and provide a brief description of those amendments and the reason for any amendments on the Business and other details worksheet.") -> If AusNet (T) needs to amend any data please resubmit this completed workbook in its entirety after making any necessary amendments and provide a brief description of those amendments and the reason for any amendments on the Business and other details worksheet.
C18: Identifying CONFIDENTIAL INFORMATION: Please use the macro at the top of each worksheet to identify confidential information.
C19: -Do this by selecting the cell or cells that contain confidential information and then run the Mark selected cells as CONFIDENTIAL macro. This will format the cells a specific colour that is identified by the AER's database which in turn marks that information as confidential. -To reverse this, select the cell or cells and run the Return cells to NON-CONFIDENTIAL macro
C21: All amounts are to be reported on a one for one basis: that is 1000 is to be entered as '1000' not '1' as in previous templates. Colour coding of input sheets:
D22: Yellow = input cells
D23: Orange = optional Input cells
D24: Grey = Not applicable/No inputs required
D25: Leave coloured cells blank if no information exists. PLEASE DO NOT ENTER TEXT unless specifically requested to do so.
C28: Returning completed responses Please return two (2) files to the AER: 1. A confidential (consolidated) version which must contain a complete set of all responses with confidential information marked using the Mark selected cells CONFIDENTIAL macro and which has been completed using the locked template file provided by the AER. 2. A public version with confidential information either removed completely or aggregated in some form together with writtten consent to disclose the public version of the response. Use the drop down box on the Business & other details worksheet to identify the file as either confidential ('consolidated') or public

Sheet Business & other details
A1: HIDE THIS COLUMN | C1: =(LOOKUP(dms_Model,dms_Model_List,dms_Worksheet_List)) -> REGULATORY REPORTING STATEMENT
C2: =dms_TradingName -> AusNet (T)
C3: =CONCATENATE(FRCP_y1," to ",FRCP_y5) -> 2017-18 to 2021-22
C4: BUSINESS & OTHER DETAILS
C7: Instructions
C8: Complete the following business details regulatory template before entering data or values in any other regulatory template. This regulatory template is linked to other cells within the spreadsheet and automatically generates column headings.
C10: SUBMISSION PARTICULARS INPUT SHEETS
C12: Entity details
C14: Trading name | D14: AusNet (T)
C15: ACN / ABN | D15: =INDEX(dms_ABN_List,MATCH(dms_TradingName,dms_TradingName_List)) -> 78079798173
C18: Business address | D18: Address 1 | F18: 2 Southbank Boulevard
E19: Address 2
D20: Suburb | F20: Southbank
E21: State | F21: =INDEX(dms_State_List,MATCH(dms_TradingName,dms_TradingName_List)) -> Vic | G21: p/code | H21: 3008
C23: Postal address | D23: Address 1 | F23: 2 Southbank Boulevard
E24: Address 2
D25: Suburb | F25: Southbank
E26: State | F26: Vic | G26: p/code | H26: 3008
C29: Contact name/s | D29: Anh Mai | G29: Charlotte Coster
C30: Contact phone/s | D30: 03 96956627 | G30: 03 96956309
C31: Contact email address/s | D31: anh.mai@ausnetservices.com.au | G31: charlotte.coster@ausnetservices.com.au
A33: KEEP VISIBLE FOR RESET, PTRM & RFMS | C33: Regulatory control period details
C35: Forthcoming regulatory control period | D35: =CONCATENATE(IF(dms_RPT="Calendar",CRCP_y5+1,(LEFT(CRCP_y5,4)+1&"-"&IF(MID(CRCP_y5,6,2)<"09","0"&RIGHT(CRCP_y5,1)+1,RIGHT(CRCP_y5,2)+1)))) -> 2017-18 | E35: =CONCATENATE(IF(dms_RPT="Calendar",FRCP_y1+1,(LEFT(FRCP_y1,4)+1&"-"&IF(MID(FRCP_y1,6,2)<"09","0"&RIGHT(FRCP_y1,1)+1,RIGHT(FRCP_y1,2)+1)))) -> 2018-19 | F35: =CONCATENATE(IF(dms_RPT="Calendar",FRCP_y2+1,(LEFT(FRCP_y2,4)+1&"-"&IF(MID(FRCP_y2,6,2)<"09","0"&RIGHT(FRCP_y2,1)+1,RIGHT(FRCP_y2,2)+1)))) -> 2019-20 | G35: =CONCATENATE(IF(dms_RPT="Calendar",FRCP_y3+1,(LEFT(FRCP_y3,4)+1&"-"&IF(MID(FRCP_y3,6,2)<"09","0"&RIGHT(FRCP_y3,1)+1,RIGHT(FRCP_y3,2)+1)))) -> 2020-21 | H35: =CONCATENATE(IF(dms_RPT="Calendar",FRCP_y4+1,(LEFT(FRCP_y4,4)+1&"-"&IF(MID(FRCP_y4,6,2)<"09","0"&RIGHT(FRCP_y4,1)+1,RIGHT(FRCP_y4,2)+1)))) -> 2021-22
C38: Current regulatory control period | D38: 2012-13 | E38: =CONCATENATE(IF(dms_RPT="Calendar",CRCP_y1+1,(LEFT(CRCP_y1,4)+1&"-"&IF(MID(CRCP_y1,6,2)<"09","0"&RIGHT(CRCP_y1,1)+1,RIGHT(CRCP_y1,2)+1)))) -> 2013-14 | F38: =CONCATENATE(IF(dms_RPT="Calendar",CRCP_y2+1,(LEFT(CRCP_y2,4)+1&"-"&IF(MID(CRCP_y2,6,2)<"09","0"&RIGHT(CRCP_y2,1)+1,RIGHT(CRCP_y2,2)+1)))) -> 2014-15 | G38: =CONCATENATE(IF(dms_RPT="Calendar",CRCP_y3+1,(LEFT(CRCP_y3,4)+1&"-"&IF(MID(CRCP_y3,6,2)<"09","0"&RIGHT(CRCP_y3,1)+1,RIGHT(CRCP_y3,2)+1)))) -> 2015-16 | H38: =CONCATENATE(IF(dms_RPT="Calendar",CRCP_y4+1,(LEFT(CRCP_y4,4)+1&"-"&IF(MID(CRCP_y4,6,2)<"09","0"&RIGHT(CRCP_y4,1)+1,RIGHT(CRCP_y4,2)+1)))) -> 2016-17
C41: Previous regulatory control period | D41: =CONCATENATE(IF(dms_RPT="Calendar",PRCP_y2-1,(LEFT(PRCP_y2,4)-1&"-"&IF(MID(PRCP_y2,3,1)="0","0"&RIGHT(PRCP_y2,2)-1,RIGHT(PRCP_y2,2)-1)))) -> 2007-08 | E41: =CONCATENATE(IF(dms_RPT="Calendar",PRCP_y3-1,(LEFT(PRCP_y3,4)-1&"-"&IF(MID(PRCP_y3,3,1)="0","0"&RIGHT(PRCP_y3,2)-1,RIGHT(PRCP_y3,2)-1)))) -> 2008-09 | F41: =CONCATENATE(IF(dms_RPT="Calendar",PRCP_y4-1,(LEFT(PRCP_y4,4)-1&"-"&IF(MID(PRCP_y4,3,1)="0","0"&RIGHT(PRCP_y4,2)-1,RIGHT(PRCP_y4,2)-1)))) -> 2009-10 | G41: =CONCATENATE(IF(dms_RPT="Calendar",PRCP_y5-1,(LEFT(PRCP_y5,4)-1&"-"&IF(MID(PRCP_y5,3,1)="0","0"&RIGHT(PRCP_y5,2)-1,RIGHT(PRCP_y5,2)-1)))) -> 2010-11 | H41: =CONCATENATE(IF(dms_RPT="Calendar",CRCP_y1-1,(LEFT(CRCP_y1,4)-1&"-"&IF(MID(CRCP_y1,3,1)="0","0"&RIGHT(CRCP_y1,2)-1,RIGHT(CRCP_y1,2)-1)))) -> 2011-12
A44: KEEP VISIBLE FOR CA & EB ONLY
C45: Current regulatory year | D45: 2014-15
A50: HIDE | C50: Sector | D50: =INDEX(dms_Sector_List,MATCH(dms_TradingName,dms_TradingName_List)) -> Electricity
C51: Segment | D51: =INDEX(dms_Segment_List,MATCH(dms_TradingName,dms_TradingName_List)) -> Transmission
C52: Source | D52: Revised regulatory proposal
C53: Regulatory Year Ending | D53: =(LOOKUP(dms_Model,dms_Model_List,dms_RYE_List2)) -> 2022
C54: Reporting Period Type | D54: =IF(LEN(CRCP_y1)>4,"Financial","Calendar") -> Financial
C55: Model or RIN Type | D55: Reset
C56: Security Classification | D56: Public
C57: Data quality (Public, Consolidated (confidential)) | D57: Consolidated
C58: EBSS - First application of scheme in forthcoming period? | D58: No
C59: Amended RIN submission - amendment reason
A60: HIDE THESE ROWS | C60: Template - version no. | D60: 1
C61: Dollar $ real (the last month before the FRCP_y1) | D61: March 2017
C62: Form of control | D62: =INDEX(dms_FormControl_List,MATCH(dms_TradingName,dms_TradingName_List)) -> Revenue cap
C63: Length of current reg control period | D63: 3
C64: Length of forthcoming reg control period | D64: =INDEX(dms_FRCPlength_List,MATCH(dms_TradingName,dms_TradingName_List)) -> 5
C65: RIN response - version no. | D65: 1
C66: Jurisdiction | D66: =INDEX(dms_JurisdictionList,MATCH(dms_TradingName,dms_TradingName_List)) -> Vic

Sheet 2.1 Expenditure summary
B1: =(LOOKUP(dms_Model,dms_Model_List,dms_Worksheet_List)) -> REGULATORY REPORTING STATEMENT
B2: =dms_TradingName -> AusNet (T)
B3: =CONCATENATE(FRCP_y1," to ",FRCP_y5) -> 2017-18 to 2021-22
B4: 2.1 Cost summary and reconciliation
B7: Table 2.1.1 - Prescribed transmission services capex (as incurred)
C9: =CONCATENATE("Forecast ($0's. real ",dms_DollarReal,")") -> Forecast ($0's. real March 2017)
C10: =CRCP_y4 -> 2015-16 | D10: =CRCP_y5 -> 2016-17 | E10: =FRCP_y1 -> 2017-18 | F10: =FRCP_y2 -> 2018-19 | G10: =FRCP_y3 -> 2019-20 | H10: =FRCP_y4 -> 2020-21 | I10: =FRCP_y5 -> 2021-22
B11: Replacement expenditure | D11: 142038275.9 | E11: 139988702 | F11: 122597583.1 | G11: 124378803.3 | H11: 111948459.6 | I11: 93551168.3
B12: Connections
B13: Augmentation Expenditure
B14: Non-network | D14: 21964156.4 | E14: 28781606.99 | F14: 26578546.68 | G14: 17977706.6 | H14: 15681708.61 | I14: 14933034.01
B15: capitalised network overheads | D15: 5703515.542 | E15: 5871784.946 | F15: 5943534.801 | G15: 5914687.109 | H15: 4663024.74 | I15: 3926875.237
B16: capitalised corporate overheads | D16: 6178808.504 | E16: 6361100.358 | F16: 6438829.368 | G16: 6407577.701 | H16: 5051610.135 | I16: 4254114.841
B17: balancing item
B18: TOTAL CAPEX | C18: =SUM(C11:C17) -> 0 | D18: 175884756.3 | E18: 181003194.3 | F18: 161558494 | G18: 154678774.7 | H18: 137344803.1 | I18: 116665192.4
B20: Table 2.1.2 - Prescribed transmission services opex
C21: =CONCATENATE("Forecast ($0's. real ",dms_DollarReal,")") -> Forecast ($0's. real March 2017)
C22: =CRCP_y4 -> 2015-16 | D22: =CRCP_y5 -> 2016-17
B23: Vegetation management | D23: 6112577.417
B24: Maintenance | D24: 20113449.08
B25: Non-network | D25: 22003436.02
B26: network overheads | D26: 26922009.54
B27: corporate overheads | D27: 134832781.9
B28: balancing item | D28: 0
B29: TOTAL OPEX | C29: =SUM(C23:C28) -> 0 | D29: =SUM(D23:D28) -> 209984253.9

Sheet 2.2 Repex
B1: =(LOOKUP(dms_Model,dms_Model_List,dms_Worksheet_List)) -> REGULATORY REPORTING STATEMENT
B2: =dms_TradingName -> AusNet (T)
B3: =CONCATENATE(FRCP_y1," to ",FRCP_y5) -> 2017-18 to 2021-22
B4: 2.2 REPEX
B6: TABLE 2.2.1 - REPLACEMENT EXPENDITURE, VOLUMES AND ASSET FAILURES BY ASSET CATEGORY
D7: EXPENDITURE | K7: ASSET REPLACEMENTS | R7: ASSET FAILURES
D8: =CONCATENATE("Forecast ($0's. real ",dms_DollarReal,")") -> Forecast ($0's. real March 2017) | K8: =CONCATENATE("Forecast ($0's. real ",dms_DollarReal,")") -> Forecast ($0's. real March 2017) | R8: =CONCATENATE("Forecast ($0's. real ",dms_DollarReal,")") -> Forecast ($0's. real March 2017)
B9: ASSET GROUP | C9: ASSET CATEGORY | D9: =CRCP_y4 -> 2015-16 | E9: =CRCP_y5 -> 2016-17 | F9: =FRCP_y1 -> 2017-18 | G9: =FRCP_y2 -> 2018-19 | H9: =FRCP_y3 -> 2019-20 | I9: =FRCP_y4 -> 2020-21 | J9: =FRCP_y5 -> 2021-22 | K9: =CRCP_y4 -> 2015-16 | L9: =CRCP_y5 -> 2016-17 | M9: =FRCP_y1 -> 2017-18 | N9: =FRCP_y2 -> 2018-19 | O9: =FRCP_y3 -> 2019-20 | P9: =FRCP_y4 -> 2020-21 | Q9: =FRCP_y5 -> 2021-22 | R9: =CRCP_y4 -> 2015-16 | S9: =CRCP_y5 -> 2016-17 | T9: =FRCP_y1 -> 2017-18 | U9: =FRCP_y2 -> 2018-19 | V9: =FRCP_y3 -> 2019-20 | W9: =FRCP_y4 -> 2020-21 | X9: =FRCP_y5 -> 2021-22
B10: TRANSMISSION TOWERS Highest operating voltage; Circuit configuration | C10: < = 33 kV; Single Circuit | D10: Refer unprotected sheet
C11: > 33 kV & < = 66 kV ; Single Circuit
C12: > 66 kV & < = 132 kV ; Single Circuit
C13: > 132 kV & < = 275 kV ; Single Circuit
C14: > 275 kV & < = 330 kV ; Single Circuit
C15: > 330 kV & < = 500 kV ; Single Circuit
C16: > 500 kV ; Single Circuit
C17: < = 33 kV; Multiple Circuit
C18: > 33 kV & < = 66 kV ; Multiple Circuit
C19: > 66 kV & < = 132 kV ; Multiple Circuit
C20: > 132 kV & < = 275 kV ; Multiple Circuit
C21: > 275 kV & < = 330 kV ; Multiple Circuit
C22: > 330 kV & < = 500 kV ; Multiple Circuit
C23: > 500 kV ; Multiple Circuit
C24: Other
B25: TRANSMISSION TOWER SUPPORT STRUCTURES BY: Highest operating voltage; Circuit configuration | C25: < = 33 kV; Single Circuit
C26: > 33 kV & < = 66 kV ; Single Circuit
C27: > 66 kV & < = 132 kV ; Single Circuit
C28: > 132 kV & < = 275 kV ; Single Circuit
C29: > 275 kV & < = 330 kV ; Single Circuit
C30: > 330 kV & < = 500 kV ; Single Circuit
C31: > 500 kV ; Single Circuit
C32: < = 33 kV; Multiple Circuit
C33: > 33 kV & < = 66 kV ; Multiple Circuit
C34: > 66 kV & < = 132 kV ; Multiple Circuit
C35: > 132 kV & < = 275 kV ; Multiple Circuit
C36: > 275 kV & < = 330 kV ; Multiple Circuit
C37: > 330 kV & < = 500 kV ; Multiple Circuit
C38: > 500 kV ; Multiple Circuit
C39: Other
B40: CONDUCTORS BY: Voltage; Maximum continuous rating | C40: < = 33 kV ; < = 100 MVA
C41: < = 33 kV ; > 100 MVA & < = 400 MVA
C42: < = 33 kV ; > 400 MVA
C43: > 33 kV & < = 66 kV ; < = 100 MVA
C44: > 33 kV & < = 66 kV ; > 100 MVA & < = 400 MVA
C45: > 33 kV & < = 66 kV ; > 400 MVA
C46: > 66 kV & < = 132 kV ; < = 100 MVA
C47: > 66 kV & < = 132 kV ; > 100 MVA & < = 400 MVA
C48: > 66 kV & < = 132 kV ; > 400 MVA
C49: > 132 kV & < = 275 kV ; < = 200 MVA
C50: > 132 kV & < = 275 kV ; > 200 MVA & < = 600 MVA
C51: > 132 kV & < = 275 kV ; > 600 MVA
C52: > 275 kV & < = 330 kV ; < = 800 MVA
C53: > 275 kV & < = 330 kV ; > 800 MVA & < = 1200 MVA
C54: > 275 kV & < = 330 kV ; > 1200 MVA
C55: > 330 kV & < = 500 kV ; < = 1000 MVA
C56: > 330 kV & < = 500 kV ; > 1000 MVA & < = 1500 MVA
C57: > 330 kV & < = 500 kV ; > 1500 MVA
C58: > 500 kV ; < = 2000 MVA
C59: > 500 kV ; > 2000 MVA & < = 3000 MVA
C60: > 500 kV ; > 3000 MVA
C61: Other
B62: TRANSMISSION CABLES BY: Highest operating voltage; Insulation type | C62: < = 33 kV; Oil Filled
C63: > 33 kV & < = 66 kV ; Oil Filled
C64: > 66 kV & < = 132 kV ; Oil Filled
C65: > 132 kV & < = 275 kV ; Oil Filled
C66: > 275 kV & < = 330 kV ; Oil Filled
C67: > 330 kV & < = 500 kV ; Oil Filled
C68: > 500 kV ; Oil Filled
C69: < = 33 kV; XLPE Insulated
C70: > 33 kV & < = 66 kV ; XLPE Insulated
C71: > 66 kV & < = 132 kV ; XLPE Insulated
C72: > 132 kV & < = 275 kV ; XLPE Insulated
C73: > 275 kV & < = 330 kV ; XLPE Insulated
C74: > 330 kV & < = 500 kV ; XLPE Insulated
C75: > 500 kV ; XLPE Insulated
C76: < = 33 kV; Other Insulated
C77: > 33 kV & < = 66 kV ; Other Insulated
C78: > 66 kV & < = 132 kV ; Other Insulated
C79: > 132 kV & < = 275 kV ; Other Insulated
C80: > 275 kV & < = 330 kV ; Other Insulated
C81: > 330 kV & < = 500 kV ; Other Insulated
C82: > 500 kV ; Other Insulated
C83: Other
B84: SUBSTATION SWITCHBAYS BY: Highest operating voltage; Switch type | C84: < = 33 kV; Air Insulated circuit Breaker
C85: > 33 kV & < = 66 kV ; Air Insulated circuit Breaker
C86: > 66 kV & < = 132 kV ; Air Insulated circuit Breaker
C87: > 132 kV & < = 275 kV ; Air Insulated circuit Breaker
C88: > 275 kV & < = 330 kV ; Air Insulated circuit Breaker
C89: > 330 kV & < = 500 kV ; Air Insulated circuit Breaker
C90: > 500 kV ; Air Insulated circuit Breaker
C91: < = 33 kV; Air Insulated Isolators / Earth Switch
C92: > 33 kV & < = 66 kV ; Air Insulated Isolators / Earth Switch
C93: > 66 kV & < = 132 kV ; Air Insulated Isolators / Earth Switch
C94: > 132 kV & < = 275 kV ; Air Insulated Isolators / Earth Switch
C95: > 275 kV & < = 330 kV ; Air Insulated Isolators / Earth Switch
C96: > 330 kV & < = 500 kV ; Air Insulated Isolators / Earth Switch
C97: > 500 kV ; Air Insulated Isolators / Earth Switch
C98: < = 33 kV; VT
C99: > 33 kV & < = 66 kV ; VT
C100: > 66 kV & < = 132 kV ; VT
C101: > 132 kV & < = 275 kV ; VT
C102: > 275 kV & < = 330 kV ; VT
C103: > 330 kV & < = 500 kV ; VT
C104: > 500 kV ; VT
C105: < = 33 kV; CT
C106: > 33 kV & < = 66 kV ; CT
C107: > 66 kV & < = 132 kV ; CT
C108: > 132 kV & < = 275 kV ; CT
C109: > 275 kV & < = 330 kV ; CT
C110: > 330 kV & < = 500 kV ; CT
C111: > 500 kV ; CT
C112: < = 33 kV; GIS Module
C113: > 33 kV & < = 66 kV ; GIS Module
C114: > 66 kV & < = 132 kV ; GIS Module
C115: > 132 kV & < = 275 kV ; GIS Module
C116: > 275 kV & < = 330 kV ; GIS Module
C117: > 330 kV & < = 500 kV ; GIS Module
C118: > 500 kV ; GIS Module
C119: Other
B120: SUBSTATION POWER TRANSFORMERS BY: Highest operating voltage; Ampere rating | C120: < = 33 kV ; < = 10 MVA
C121: < = 33 kV ; > 10 MVA & < = 30 MVA
C122: < = 33 kV ; > 30 MVA
C123: > 33 kV & < = 66 kV ; < = 10 MVA
C124: > 33 kV & < = 66 kV ; > 10 MVA & < = 30 MVA
C125: > 33 kV & < = 66 kV ; > 30 MVA
C126: > 66 kV & < = 132 kV ; < = 30 MVA
C127: > 66 kV & < = 132 kV ; > 30 MVA & < = 60 MVA
C128: > 66 kV & < = 132 kV ; > 60 MVA
C129: > 132 kV & < = 220 kV ; < = 50 MVA
C130: > 132 kV & < = 220 kV ; > 50 MVA & < = 100 MVA
C131: > 132 kV & < = 220 kV ; > 100 MVA
C132: > 220 kV & < = 275 kV ; < = 50 MVA
C133: > 220 kV & < = 275 kV ; > 50 MVA & < = 100 MVA
C134: > 220 kV & < = 275 kV ; > 100 MVA
C135: > 275 kV & < = 330 kV ; < = 100 MVA
C136: > 275 kV & < = 330 kV ; > 100 MVA & < = 250 MVA
C137: > 275 kV & < = 330 kV ; > 250 MVA
C138: > 330 kV & < = 500 kV ; < = 150 MVA
C139: > 330 kV & < = 500 kV ; > 150 MVA & < = 300 MVA
C140: > 330 kV & < = 500 kV ; > 300 MVA
C141: > 500 kV ; < = 1000 MVA
C142: > 500 kV ; > 1000 MVA & < = 1500 MVA
C143: > 500 kV ; > 1500 MVA
C144: Other
B145: SUBSTATION REACTIVE PLANT BY: Highest operating voltage; Function | C145: < = 33 kV; SVCS
C146: > 33 kV & < = 66 kV ; SVCS
C147: > 66 kV & < = 132 kV ; SVCS
C148: > 132 kV & < = 275 kV ; SVCS
C149: > 275 kV & < = 330 kV ; SVCS
C150: > 330 kV & < = 500 kV ; SVCS
C151: > 500 kV ; SVCS
C152: < = 33 kV; Capacitors
C153: > 33 kV & < = 66 kV ; Capacitors
C154: > 66 kV & < = 132 kV ; Capacitors
C155: > 132 kV & < = 275 kV ; Capacitors
C156: > 275 kV & < = 330 kV ; Capacitors
C157: > 330 kV & < = 500 kV ; Capacitors
C158: > 500 kV ; Capacitors
C159: < = 33 kV; Oil Filled Reactors
C160: > 33 kV & < = 66 kV ; Oil Filled Reactors
C161: > 66 kV & < = 132 kV ; Oil Filled Reactors
C162: > 132 kV & < = 275 kV ; Oil Filled Reactors
C163: > 275 kV & < = 330 kV ; Oil Filled Reactors
C164: > 330 kV & < = 500 kV ; Oil Filled Reactors
C165: > 500 kV ; Oil Filled Reactors
C166: Other
B167: SCADA, NETWORK CONTROL AND PROTECTION SYSTEMS BY: Function | C167: Communications Network Assets
C168: Control equipment / systems
C169: Infrastructure: protection and control
C170: Metering systems
C171: Protection schemes / systems
C172: Station SCADA and control systems
B173: OTHER BY: NSP defined | C173: Other - Secondary
C174: Power transformers - Bushings replacement
C175: Power transformers - life extension
C176: Power transformers - improved safe access
C177: On-line monitoring
C178: Fire protection systems
C179: Civil Infrastructure
C180: Infrastructure security
C181: Structure fall arrests (Stations)
C182: Earth wires (incl. OPGW)
C183: Insulators
C184: Tower fall arrests
C185: XC17 -FBTS Refurbishment - Other
C186: XC28 - HWPS 220kV Switchyard Redevelopment Stage 4 - Other
C187: XA09 - RTS Redevelopment - Other
C188: XB59 - HTS Rebuild - Other
C189: XC19 - SMTS H2 Transformer Replacement - Other
C190: XC16 - TTS Bus Tie CB Replacement - Other
C191: XC18 - YPS 220kV CB Replacement - Other
C192: XC21 - RWTS B4 220/66kV Transformer and 66kV CB Replacement - Other
C193: XC15 - TSTS B2 Transformer and 66kV CB Replacement - Other
C194: XB61 - SVTS Redevelopment Stage 1 - Other
C195: XA14 - WMTS Redevelopment - Other
C196: 284A - HYTS 500kV and 275kV CB Replacement - Other
C197: 285A - FBTS Transformer and Circuit Breaker Replacement - Other
C198: Other Ongoing Projects / Works

Sheet 2.6 Non-network
B1: =(LOOKUP(dms_Model,dms_Model_List,dms_Worksheet_List)) -> REGULATORY REPORTING STATEMENT
B2: =dms_TradingName -> AusNet (T)
B3: =CONCATENATE(FRCP_y1," to ",FRCP_y5) -> 2017-18 to 2021-22
B4: 2.6 NON NETWORK EXPENDITURE
B8: 2.6.1 NON-NETWORK EXPENDITURE | M8: TABLE 2.6.2 ANNUAL DESCRIPTOR METRICS - IT & COMMUNICATIONS EXPENDITURE
E9: =CONCATENATE("EXPENDITURE Forecast ($0's. real ",dms_DollarReal,")") -> EXPENDITURE Forecast ($0's. real March 2017) | M9: NON-NETWORK CATEGORY | N9: DESCRIPTOR METRIC | Q9: VOLUMES (0's)
B10: SERVICE SUBCATEGORY | C10: ASSET CATEGORY | D10: ASSET REPORTING CATEGORY | E10: =CRCP_y4 -> 2015-16 | F10: =CRCP_y5 -> 2016-17 | G10: =FRCP_y1 -> 2017-18 | H10: =FRCP_y2 -> 2018-19 | I10: =FRCP_y3 -> 2019-20 | J10: =FRCP_y4 -> 2020-21 | K10: =FRCP_y5 -> 2021-22 | Q10: =CRCP_y4 -> 2015-16 | R10: =CRCP_y5 -> 2016-17 | S10: =FRCP_y1 -> 2017-18 | T10: =FRCP_y2 -> 2018-19 | U10: =FRCP_y3 -> 2019-20 | V10: =FRCP_y4 -> 2020-21 | W10: =FRCP_y5 -> 2021-22
B11: IT & COMMUNICATIONS | C11: Client device expenditure | D11: Opex | F11: 0 | G11: 0 | H11: 0 | I11: 0 | J11: 0 | K11: 0 | M11: IT & COMMUNICATIONS | N11: Employee numbers | R11: 452.652912 | S11: 452.652912 | T11: 452.652912 | U11: 452.652912 | V11: 452.652912 | W11: 452.652912
D12: Capex | F12: 0 | G12: 950416.4706 | H12: 560772.9659 | I12: 0 | J12: 0 | K12: 91610.83264 | N12: User numbers | R12: 745.744976 | S12: 745.744976 | T12: 745.744976 | U12: 745.744976 | V12: 745.744976 | W12: 745.744976
C13: Recurrent expenditure | D13: Opex | F13: 11975959.93 | G13: 12020990.73 | H13: 12095454.15 | I13: 12184681.9 | J13: 12277752.95 | K13: 12370668.86 | N13: Number of devices | R13: 895.4929632 | S13: 895.4929632 | T13: 895.4929632 | U13: 895.4929632 | V13: 895.4929632 | W13: 895.4929632
D14: Capex | F14: 15619197.79 | G14: 13543434.71 | H14: 17448666.51 | I14: 8489420.856 | J14: 4625215.028 | K14: 5954704.122
C15: Non-recurrent expenditure | D15: Opex | F15: 1916983.074 | G15: 1924608.833 | H15: 1937218.87 | I15: 1952329.177 | J15: 1968090.331 | K15: 1983825.213
D16: Capex | F16: 2333903.117 | G16: 9266560.588 | H16: 3558751.514 | I16: 4373338.017 | J16: 6131098.991 | K16: 3114768.31
B17: MOTOR VEHICLES | C17: Car | D17: Opex | F17: 456048.7549 | G17: 457862.9168 | H17: 460862.8347 | I17: 464457.5648 | J17: 468207.1307 | K17: 471950.4467
D18: Capex | F18: 223364.6496 | G18: 476616.6091 | H18: 376273.5487 | I18: 521985.4253 | J18: 441185.1846 | K18: 444105.0132
C19: Light commercial vehicle | D19: Opex | F19: 828029.1249 | G19: 831323.0248 | H19: 836769.8532 | I19: 843296.6581 | J19: 850104.592 | K19: 856901.1782
D20: Capex | F20: 670093.9487 | G20: 1429849.827 | H20: 1128820.646 | I20: 1565956.276 | J20: 1323555.554 | K20: 1332315.04
C21: Elevated work platform (LCV) | D21: Opex | F21: 0 | G21: 0 | H21: 0 | I21: 0 | J21: 0 | K21: 0 | M21: TABLE 2.6.3 ANNUAL DESCRIPTOR METRICS - MOTOR VEHICLES
D22: Capex | F22: 0 | G22: 0 | H22: 0 | I22: 0 | J22: 0 | K22: 0
C23: Elevated work platform (HCV) | D23: Opex | F23: 0 | G23: 0 | H23: 0 | I23: 0 | J23: 0 | K23: 0 | M23: NON-NETWORK CATEGORY | N23: DESCRIPTOR METRIC | P23: Unit of Measure | Q23: VOLUMES (0's or %)
D24: Capex | F24: 0 | G24: 0 | H24: 0 | I24: 0 | J24: 0 | K24: 0 | Q24: =CRCP_y4 -> 2015-16 | R24: =CRCP_y5 -> 2016-17 | S24: =FRCP_y1 -> 2017-18 | T24: =FRCP_y2 -> 2018-19 | U24: =FRCP_y3 -> 2019-20 | V24: =FRCP_y4 -> 2020-21 | W24: =FRCP_y5 -> 2021-22
C25: Heavy commercial vehicle | D25: Opex | F25: 116260.4696 | G25: 116722.9537 | H25: 117487.7225 | I25: 118404.1268 | J25: 119360.0033 | K25: 120314.2865 | M25: MOTOR VEHICLES | N25: CAR | O25: Average kilometres travelled | P25: 0's | R25: 19102.91012 | S25: 19102.91012 | T25: 19102.91012 | U25: 19102.91012 | V25: 19102.91012 | W25: 19102.91012
D26: Capex | F26: 0 | G26: 0 | H26: 0 | I26: 0 | J26: 0 | K26: 0 | O26: Number purchased | P26: 0's | R26: 6.603346659 | S26: 14.09025421 | T26: 11.12380444 | U26: 15.43149608 | V26: 13.04279223 | W26: 13.12911135
B27: BUILDINGS AND PROPERTY | C27: Total buildings and property expenditure | D27: Opex | F27: 6710154.66 | G27: 6736847.655 | H27: 6780987.481 | I27: 6833879.183 | J27: 6889049.09 | K27: 6944127.038 | O27: Number leased | P27: 0's | R27: 6.473839858 | S27: 6.473839858 | T27: 6.473839858 | U27: 6.473839858 | V27: 6.473839858 | W27: 6.473839858
D28: Capex | F28: 530035.4621 | G28: 217398.9472 | H28: 590336.4441 | I28: 94772.96176 | J28: 209512.3516 | K28: 1024858.106 | O28: Number in fleet | P28: 0's | R28: 55.87765274 | S28: 55.87765274 | T28: 55.87765274 | U28: 55.87765274 | V28: 55.87765274 | W28: 55.87765274
B29: OTHER | C29: Other expenditure | D29: Opex | F29: 0 | G29: 0 | H29: 0 | I29: 0 | J29: 0 | K29: 0 | O29: Proportion of total fleet expenditure allocated as regulatory expenditure | P29: % | R29: 0.922859463 | S29: 0.922859463 | T29: 0.922859463 | U29: 0.922859463 | V29: 0.922859463 | W29: 0.922859463
D30: Capex | F30: 970335.5382 | G30: 362166.2301 | H30: 364365.6313 | I30: 366529.1328 | J30: 368892.6869 | K30: 371334.0731 | N30: LIGHT COMMERCIAL VEHICLE | O30: Average kilometres travelled | P30: 0's | R30: 25144.46354 | S30: 25144.46354 | T30: 25144.46354 | U30: 25144.46354 | V30: 25144.46354 | W30: 25144.46354
B31: OTHER - TNSP nominated | C31: Tools & Equipment | D31: Opex | F31: 0 | G31: 0 | H31: 0 | I31: 0 | J31: 0 | K31: 0 | O31: Number purchased | P31: 0's | R31: 12.91930363 | S31: 27.56727485 | T31: 21.76348062 | U31: 30.19138531 | V31: 25.51793835 | W31: 25.68681982
D32: Capex | F32: 1617225.897 | G32: 2535163.61 | H32: 2550559.419 | I32: 2565703.929 | J32: 2582248.808 | K32: 2599338.512 | O32: Number leased | P32: 0's | R32: 25.50975982 | S32: 25.50975982 | T32: 25.50975982 | U32: 25.50975982 | V32: 25.50975982 | W32: 25.50975982
D33: Opex | O33: Number in fleet | P33: 0's | R33: 77.92620467 | S33: 77.92620467 | T33: 77.92620467 | U33: 77.92620467 | V33: 77.92620467 | W33: 77.92620467
D34: Capex | O34: Proportion of total fleet expenditure allocated as regulatory expenditure | P34: % | R34: 0.922859463 | S34: 0.922859463 | T34: 0.922859463 | U34: 0.922859463 | V34: 0.922859463 | W34: 0.922859463
D35: Opex | N35: ELEVATED WORK PLATFORM (LCV) | O35: Average kilometres travelled | P35: 0's
D36: Capex | O36: Number purchased | P36: 0's
D37: Opex | O37: Number leased | P37: 0's
D38: Capex | O38: Number in fleet | P38: 0's
D39: Opex | O39: Proportion of total fleet expenditure allocated as regulatory expenditure | P39: %
D40: Capex | N40: ELEVATED WORK PLATFORM (HCV) | O40: Average kilometres travelled | P40: 0's
D41: Opex | O41: Number purchased | P41: 0's
D42: Capex | O42: Number leased | P42: 0's
D43: Opex | O43: Number in fleet | P43: 0's
D44: Capex | O44: Proportion of total fleet expenditure allocated as regulatory expenditure | P44: %
D45: Opex | N45: HEAVY COMMERCIAL VEHICLE | O45: Average kilometres travelled | P45: 0's | R45: 10364.20801 | S45: 10364.20801 | T45: 10364.20801 | U45: 10364.20801 | V45: 10364.20801 | W45: 10364.20801
D46: Capex | O46: Number purchased | P46: 0's
D47: Opex | O47: Number leased | P47: 0's | R47: 0.952859463 | S47: 0.952859463 | T47: 0.952859463 | U47: 0.952859463 | V47: 0.952859463 | W47: 0.952859463
D48: Capex | O48: Number in fleet | P48: 0's | R48: 8.242401833 | S48: 8.242401833 | T48: 8.242401833 | U48: 8.242401833 | V48: 8.242401833 | W48: 8.242401833
D49: Opex | O49: Proportion of total fleet expenditure allocated as regulatory expenditure | P49: % | R49: 0.922859463 | S49: 0.922859463 | T49: 0.922859463 | U49: 0.922859463 | V49: 0.922859463 | W49: 0.922859463
D50: Capex
D51: Opex
D52: Capex

Sheet 2.10 Overheads
B1: =(LOOKUP(dms_Model,dms_Model_List,dms_Worksheet_List)) -> REGULATORY REPORTING STATEMENT
B2: =dms_TradingName -> AusNet (T)
B3: =CONCATENATE(FRCP_y1," to ",FRCP_y5) -> 2017-18 to 2021-22
B4: 2.10 OVERHEADS
B8: TABLE 2.10.1 - NETWORK OVERHEADS EXPENDITURE
E9: =CONCATENATE("EXPENDITURE Forecast ($0's. real ",dms_DollarReal,")") -> EXPENDITURE Forecast ($0's. real March 2017)
E10: =CRCP_y4 -> 2015-16 | F10: =CRCP_y5 -> 2016-17 | G10: =FRCP_y1 -> 2017-18 | H10: =FRCP_y2 -> 2018-19 | I10: =FRCP_y3 -> 2019-20 | J10: =FRCP_y4 -> 2020-21 | K10: =FRCP_y5 -> 2021-22
B11: MAINTENANCE SUPPORT | C11: Total Overhead Expenditure - Prescribed Services | D11: NSP to enter expenditure categories currently reported under annual Information Guidelines
D12: MAINTENANCE | F12: 2958085.645 | G12: 3016293.191 | H12: 3046671.601 | I12: 3046444.522 | J12: 2656526.157 | K12: 2431040.79
C36: Total Overhead Expenditure - Negotiated Services | D36: Total
C37: Total Overhead Expenditure - Unregulated Services | D37: Total
B38: NETWORK MONITORING & CONTROL | C38: Total Overhead Expenditure - Prescribed Services | D38: NSP to enter expenditure categories currently reported under annual Information Guidelines
D39: OPERATIONS | F39: 7980726.921 | G39: 8040134.608 | H39: 8099136.375 | I39: 8148020.259 | J39: 7966911.015 | K39: 7883654.695
C59: Total Overhead Expenditure - Negotiated Services | D59: Total
C60: Total Overhead Expenditure - Unregulated Services | D60: Total
B61: ASSET MANAGEMENT SUPPORT | C61: Total Overhead Expenditure - Prescribed Services | D61: NSP to enter expenditure categories currently reported under annual Information Guidelines
D62: ASSET MANAGEMENT SUPPORT | F62: 15825469.98 | G62: 15959175.98 | H62: 16079913.57 | I62: 16168786.17 | J62: 15667802.72 | K62: 15417179.64
D63: ASSET WORKS PROGRAM | F63: 5861242.534 | G63: 5885286.461 | H63: 5924013.248 | I63: 5969844.515 | J63: 6011542.011 | K63: 6055737.138
C87: Total Overhead Expenditure - Negotiated Services | D87: Total
C88: Total Overhead Expenditure - Unregulated Services | D88: Total
B92: TABLE 2.10.2 - CORPORATE OVERHEADS EXPENDITURE
E93: =CONCATENATE("EXPENDITURE Forecast ($0's. real ",dms_DollarReal,")") -> EXPENDITURE Forecast ($0's. real March 2017)
E94: =CRCP_y4 -> 2015-16 | F94: =CRCP_y5 -> 2016-17 | G94: =FRCP_y1 -> 2017-18 | H94: =FRCP_y2 -> 2018-19 | I94: =FRCP_y3 -> 2019-20 | J94: =FRCP_y4 -> 2020-21 | K94: =FRCP_y5 -> 2021-22
B95: CORPORATE OVERHEADS | C95: Total Overhead Expenditure - Prescribed Services | D95: <Enter description of expenditure category > | F95: 3894825.8 | G95: 3398320.328 | H95: 3567431.4 | I95: 4152169.745 | J95: 4322466.586 | K95: 4459908.13
F96: 3675136.968 | G96: 3206637.038 | H96: 3366209.349 | I96: 3917965.35 | J96: 4078656.546 | K96: 4208345.658
F97: 1829721.098 | G97: 2717257.626 | H97: 2718608.239 | I97: 2701479.837 | J97: 2694767.81 | K97: 2684237.582
F98: 930513.2855 | G98: 937526.831 | H98: 944426.5795 | I98: 950082.1415 | J98: 928190.5399 | K98: 918015.882
F99: 5864808.952 | G99: 5896813.352 | H99: 5937432.083 | I99: 5979262.953 | J99: 5950110.266 | K99: 5951597.838
F100: 4613938.044 | G100: 4644278.444 | H100: 4677447.638 | I100: 4707739.665 | J100: 4638760.356 | K100: 4612168.143
F101: 1680635.913 | G101: 1730219.297 | H101: 1751361.588 | I101: 1742861.135 | J101: 1374037.957 | K101: 1157119.237
F102: 4207755.264 | G102: 4315336.146 | H102: 4364375.651 | I102: 4351488.448 | J102: 3575785.152 | K102: 3121752.994
F103: 0 | G103: 0 | H103: 0 | I103: 0 | J103: 0 | K103: 0
F104: 114314255.1 | G104: 114314255.1 | H104: 114314255.1 | I104: 114314255.1 | J104: 114314255.1 | K104: 114314255.1
C120: Total Overhead Expenditure - Negotiated Services | D120: Total
C121: Total Overhead Expenditure - Unregulated Services | D121: Total

Sheet 2.14 Forecast price changes
B1: =(LOOKUP(dms_Model,dms_Model_List,dms_Worksheet_List)) -> REGULATORY REPORTING STATEMENT
B2: =dms_TradingName -> AusNet (T)
B3: =CONCATENATE(FRCP_y1," to ",FRCP_y5) -> 2017-18 to 2021-22
B4: 2.14 FORECAST PRICE CHANGES
B6: Instructions
B7: The TNSP must provide all forecast price changes used to forecast opex and capex, including forecast changes in CPI. Forecast price changes must be expressed in real terms, except for CPI. If the same escalators are not used for capex and opex, report capex and opex escalators separately. If price changes for a given year were not used to forecast either opex or capex enter '0' for that year.
B9: Table 2.14.1 - Forecast labour and materials price changes
C11: Price changes (% YoY real) | H11: Price changes (%YoY real)
C12: Actual | F12: Forecast
C13: =CRCP_y1 -> 2012-13 | D13: =CRCP_y2 -> 2013-14 | E13: =CRCP_y3 -> 2014-15 | F13: =CRCP_y4 -> 2015-16 | G13: =CRCP_y5 -> 2016-17 | H13: =FRCP_y1 -> 2017-18 | I13: =FRCP_y2 -> 2018-19 | J13: =FRCP_y3 -> 2019-20 | K13: =FRCP_y4 -> 2020-21 | L13: =FRCP_y5 -> 2021-22
B14: Materials price changes
B15: Aluminium | C15: -0.1375882662 | D15: 0.04135015254 | E15: 0.2124358354 | F15: 0 | G15: 0 | H15: 0 | I15: 0 | J15: 0 | K15: 0 | L15: 0
B16: Copper | C16: -0.1655192158 | D16: -0.01535897169 | E16: 0.0909347065 | F16: 0 | G16: 0 | H16: 0 | I16: 0 | J16: 0 | K16: 0 | L16: 0
B17: Steel | C17: -0.6143445246 | D17: 1.172997754 | E17: -0.07742037819 | F17: 0 | G17: 0 | H17: 0 | I17: 0 | J17: 0 | K17: 0 | L17: 0
B18: Oil | C18: -0.1669840325 | D18: 0.02389073178 | E18: -0.4549018626 | F18: 0 | G18: 0 | H18: 0 | I18: 0 | J18: 0 | K18: 0 | L18: 0
B45: Labour and Other price changes
B46: Internal labour | C46: 0.01621437122 | D46: 0.01296574238 | E46: 0.03130149813 | F46: 0.0175 | G46: 0.0096 | H46: 0.0051 | I46: 0.0084 | J46: 0.01 | K46: 0.01035 | L46: 0.01025
B47: External labour | C47: 0.005381319535 | D47: 0.01266896641 | E47: 0.01334745054 | F47: 0.0175 | G47: 0.0096 | H47: 0.0051 | I47: 0.0084 | J47: 0.01 | K47: 0.01035 | L47: 0.01025
B61: CPI | C61: 0.02502502503 | D61: 0.029296875 | E61: 0.01328273245 | F61: 0.01310861423 | G61: 0.02020563771 | H61: 0.0165 | I61: 0.0165 | J61: 0.0165 | K61: 0.0165 | L61: 0.0165

Sheet 2.16 Opex Summary
B1: =(LOOKUP(dms_Model,dms_Model_List,dms_Worksheet_List)) -> REGULATORY REPORTING STATEMENT
B2: =dms_TradingName -> AusNet (T)
B3: =CONCATENATE(FRCP_y1," to ",FRCP_y5) -> 2017-18 to 2021-22
B4: 2.16 Opex Summary
B6: Instructions
B7: Complete the tables below in accordance with the regulatory information notice. The TNSP must input forecast opex by category in Table 2.16.2 and Table 2.16.4 if it did not forecast its total opex using a Base Year approach. Otherwise input '0'. The TNSP's total forecast opex must reconcile to Table 2.16.1 (and if the TNSP owns any dual function assets Table 2.16.3). If the TNSP did not forecast its total opex using a Base Year approach, total forecast opex must, in addition, reconcile to Table 2.16.2 (and if the TNSP owns any dual function assets Table 2.16.4). If the TNSP does not own any dual function assets,Table 2.16.3 and 2.16.4 may be left blank. The total step changes in Table 2.16.1 and Table 2.16.3 must reconcile (in each year) to the total step changes for each year in Table 2.17.1 and Table 2.17.3 of worksheet 2.17 Step Changes, respectively.
B9: Table 2.16.1 - Prescribed services - opex by driver | K9: Table 2.16.2 - Prescribed services - opex by category
C10: =CONCATENATE("Forecast ($0's, real ", dms_DollarReal, ")") -> Forecast ($0's, real March 2017) | L10: =CONCATENATE("Forecast ($0's, real ", dms_DollarReal, ")") -> Forecast ($0's, real March 2017)
C11: =CRCP_y4 -> 2015-16 | D11: =FRCP_y1 -> 2017-18 | E11: =FRCP_y1 -> 2017-18 | F11: =FRCP_y2 -> 2018-19 | G11: =FRCP_y3 -> 2019-20 | H11: =FRCP_y4 -> 2020-21 | I11: =FRCP_y5 -> 2021-22 | L11: =CRCP_y4 -> 2015-16 | M11: =FRCP_y1 -> 2017-18 | N11: =FRCP_y1 -> 2017-18 | O11: =FRCP_y2 -> 2018-19 | P11: =FRCP_y3 -> 2019-20 | Q11: =FRCP_y4 -> 2020-21 | R11: =FRCP_y5 -> 2021-22
K12: Vegetation management | L12: 0 | M12: 0 | N12: 0 | O12: 0 | P12: 0 | Q12: 0 | R12: 0
B13: Efficent historic opex | C13: 203392131.2 | D13: 206908566.6 | E13: 207691428.3 | F13: 207700536.8 | G13: 207680789.7 | H13: 207665233 | I13: 207636431.9 | K13: Maintenance | L13: 0 | M13: 0 | N13: 0 | O13: 0 | P13: 0 | Q13: 0 | R13: 0
B14: Real price changes | C14: 0 | D14: 0 | E14: 345975.3085 | F14: 918083.8234 | G14: 1603627.835 | H14: 2318700.284 | I14: 3032580.825 | K14: Emergency response | L14: 0 | M14: 0 | N14: 0 | O14: 0 | P14: 0 | Q14: 0 | R14: 0
B15: Output growth | C15: 0 | D15: 0 | E15: 0 | F15: 0 | G15: 0 | H15: 0 | I15: 0 | K15: Non-network | L15: 0 | M15: 0 | N15: 0 | O15: 0 | P15: 0 | Q15: 0 | R15: 0
B16: Productivity growth | C16: 0 | D16: 0 | E16: 0 | F16: 0 | G16: 0 | H16: 0 | I16: 0 | K16: Network overheads | L16: 0 | M16: 0 | N16: 0 | O16: 0 | P16: 0 | Q16: 0 | R16: 0
B17: Step changes | C17: 2714725.503 | D17: 3075687.352 | E17: 7593564.314 | F17: 1033439.556 | G17: 722245.1154 | H17: 1155065.845 | I17: 508941.1198 | K17: Corporate overheads | L17: 0 | M17: 0 | N17: 0 | O17: 0 | P17: 0 | Q17: 0 | R17: 0
B18: Total opex | C18: =SUM(C13:C17) -> 206106856.7 | D18: 209984253.9 | E18: 215630967.9 | F18: 209652060.2 | G18: 210006662.6 | H18: 211138999.1 | I18: 211177953.8 | K18: Total opex | L18: =SUM(L12:L17) -> 0 | M18: 0 | N18: 0 | O18: 0 | P18: 0 | Q18: 0 | R18: 0
B20: Note: The amount noted against step changes, include Other operating expenditure category in addition to the specifically identified step changes in the revenue proposal.

Sheet 2.17 Step Changes
B1: =(LOOKUP(dms_Model,dms_Model_List,dms_Worksheet_List)) -> REGULATORY REPORTING STATEMENT
B2: =dms_TradingName -> AusNet (T)
B3: =CONCATENATE(FRCP_y1," to ",FRCP_y5) -> 2017-18 to 2021-22
B4: 2.17 STEP CHANGES
B6: Instructions
B7: Complete the Tables below in accordance with the regulatory information notice. The total step changes in Table 2.17.1 must reconcile (in each year) to the total step changes for each year in Table 2.16.1 of worksheet 2.16 Opex Summary.
B9: Table 2.17.1 Forecast opex step changes
F10: Actual ($0's, nominal) | I10: =CONCATENATE("Forecast ($0's, real ", dms_DollarReal, ")") -> Forecast ($0's, real March 2017)
B11: Step change | C11: Description | D11: =CRCP_y1 -> 2012-13 | E11: =CRCP_y2 -> 2013-14 | F11: =CRCP_y1 -> 2012-13 | G11: =CRCP_y2 -> 2013-14 | H11: =CRCP_y3 -> 2014-15 | I11: =CRCP_y4 -> 2015-16 | J11: =CRCP_y5 -> 2016-17 | K11: =FRCP_y1 -> 2017-18 | L11: =FRCP_y2 -> 2018-19 | M11: =FRCP_y3 -> 2019-20 | N11: =FRCP_y4 -> 2020-21 | O11: =FRCP_y5 -> 2021-22
B12: AEMO Power System Security Functions Agreement | C12: As per 2014-17 determination (referred to as "AEMO operating agreement" in AER final decision) | F12: 0 | G12: 22240.1952 | H12: 30294.43746 | I12: 32092.4558 | J12: 32092.4558
B13: Transitional arrangements for the Economic Regulation of NSP’s rule change | C13: As per 2014-17 determination | F13: 324817.5113 | G13: 328357.4863 | H13: 531667.1366 | I13: 1176723.379 | J13: 855798.8212
B14: Fire services levy | C14: As per 2014-17 determination | F14: 0 | G14: 112885.44 | H14: 109308.74 | I14: 1005793.611 | J14: 1005793.611
B15: Controller simulator training | C15: As per 2014-17 determination | F15: 0 | G15: 0 | H15: 0 | I15: 327984.8982 | J15: 327984.8982
B16: Security of critical infrastructure | C16: As per 2014-17 determination | F16: 0 | G16: 0 | H16: 40392.58329 | I16: 42789.94106 | J16: 42789.94106
B17: Establishment of IT security team | C17: As per 2017-22 Revenue Proposal | F17: 0 | G17: 0 | H17: 0 | I17: 0 | J17: 656000 | K17: 656000 | L17: 656000 | M17: 656000 | N17: 656000 | O17: 656000
B18: Roll out of SAIP | C18: As per 2017-22 Revenue Proposal | F18: 0 | G18: 0 | H18: 125649.64 | I18: 103454.8105 | J18: 103454.8105 | K18: 349157.2317 | L18: 349157.2317 | M18: 73168.30528 | N18: 73168.30528 | O18: 73168.30528
B19: Lease of WMTS 22kV mobile switchboard | C19: As per 2017-22 Revenue Proposal | F19: 0 | G19: 0 | H19: 0 | I19: 25886.40724 | J19: 51772.81448 | K19: 709287.5584 | L19: 300282.324 | M19: 265076.8102 | N19: 697897.5393 | O19: 51772.81448
B20: Decommissioning of synchronous condensers | C20: As per 2017-22 Revenue Proposal | F20: 0 | G20: 0 | H20: 0 | I20: 0 | J20: 0 | K20: 3989340.883 | L20: -270000 | M20: -270000 | N20: -270000 | O20: -270000
B21: Decommissioning of Morwell Power Station assets | C21: As per 2017-22 Revenue Proposal | F21: 0 | G21: 0 | H21: 0 | I21: 0 | J21: 0 | K21: 1889778.641 | L21: -2000 | M21: -2000 | N21: -2000 | O21: -2000
D27: =SUM(D19:D26) -> 0 | E27: 0 | F27: 0 | G27: =SUM(G19:G26) -> 0 | H27: 0 | I27: 25886.40724 | J27: =SUM(J19:J26) -> 51772.81448 | K27: 6588407.083 | L27: 28282.32401 | M27: -6923.189837 | N27: 425897.5393 | O27: -220227.1855
B28: Check | K28: =IF(K$49-'2.16 Opex Summary'!C$17=0,"OK","Error") -> Error | L28: =IF(L$49-'2.16 Opex Summary'!F$17=0,"OK","Error") -> Error | M28: =IF(M$49-'2.16 Opex Summary'!G$17=0,"OK","Error") -> Error | N28: =IF(N$49-'2.16 Opex Summary'!H$17=0,"OK","Error") -> Error | O28: =IF(O$49-'2.16 Opex Summary'!I$17=0,"OK","Error") -> Error
B30: Table 2.17.2 Forecast capex step changes
F31: Actual ($0's, nominal) | I31: =CONCATENATE("Forecast ($0's, real ", dms_DollarReal, ")") -> Forecast ($0's, real March 2017)
B32: Step change | C32: Description | D32: =CRCP_y1 -> 2012-13 | E32: =CRCP_y2 -> 2013-14 | F32: =CRCP_y1 -> 2012-13 | G32: =CRCP_y2 -> 2013-14 | H32: =CRCP_y3 -> 2014-15 | I32: =CRCP_y4 -> 2015-16 | J32: =CRCP_y5 -> 2016-17 | K32: =FRCP_y1 -> 2017-18 | L32: =FRCP_y2 -> 2018-19 | M32: =FRCP_y3 -> 2019-20 | N32: =FRCP_y4 -> 2020-21 | O32: =FRCP_y5 -> 2021-22
D48: =SUM(D33:D47) -> 0 | E48: =SUM(E33:E47) -> 0 | F48: 0 | G48: =SUM(G33:G47) -> 0 | H48: 0 | I48: 0 | J48: 0 | K48: 0 | L48: 0 | M48: 0 | N48: 0 | O48: 0

Sheet 3.1 Revenue
B1: =(LOOKUP(dms_Model,dms_Model_List,dms_Worksheet_List)) -> REGULATORY REPORTING STATEMENT
B2: =dms_TradingName -> AusNet (T)
B3: =CONCATENATE(FRCP_y1," to ",FRCP_y5) -> 2017-18 to 2021-22
B4: 3.1 REVENUE
C8: =CONCATENATE("Forecast ($0's, real ",dms_DollarReal,")") -> Forecast ($0's, real March 2017)
C9: =CRCP_y4 -> 2015-16 | D9: =CRCP_y5 -> 2016-17 | E9: =FRCP_y1 -> 2017-18 | F9: =FRCP_y2 -> 2018-19 | G9: =FRCP_y3 -> 2019-20 | H9: =FRCP_y4 -> 2020-21 | I9: =FRCP_y5 -> 2021-22
B10: Table 3.1.1 Revenue Grouping by chargeable quantity
A11: TREV0101 | B11: From Fixed Customer (Exit Point) Charges | D11: 58994884.25 | E11: 64927636.83 | F11: 63507126.07 | G11: 62117693.78 | H11: 60758659.99 | I11: 59429359.65
A12: TREV0102 | B12: From Variable Customer (Exit Point) Charges | D12: 0 | E12: 0 | F12: 0 | G12: 0 | H12: 0 | I12: 0
A13: TREV0103 | B13: From Fixed Generator (Entry Point) Charges | D13: 7822957.053 | E13: 8609663.718 | F13: 8421298.324 | G13: 8237054.057 | H13: 8056840.754 | I13: 7880570.225
A14: TREV0104 | B14: From Variable Generator (Entry Point) Charges | D14: 0 | E14: 0 | F14: 0 | G14: 0 | H14: 0 | I14: 0
A15: TREV0105 | B15: From Fixed Energy Usage Charges (Charge per day basis) | D15: 0 | E15: 0 | F15: 0 | G15: 0 | H15: 0 | I15: 0
A16: TREV0106 | B16: From Variable Energy Usage charges (Charge per kWh basis) | D16: 0 | E16: 0 | F16: 0 | G16: 0 | H16: 0 | I16: 0
A17: TREV0107 | B17: From Energy based Common Service and General Charges | D17: 0 | E17: 0 | F17: 0 | G17: 0 | H17: 0 | I17: 0
A18: TREV0108 | B18: From Fixed Demand based Usage Charges | D18: 0 | E18: 0 | F18: 0 | G18: 0 | H18: 0 | I18: 0
A19: TREV0109 | B19: From Variable Demand based Usage Charges | D19: 0 | E19: 0 | F19: 0 | G19: 0 | H19: 0 | I19: 0
A20: TREV0110 | B20: Revenue from other Sources | D20: 469271285.6 | E20: 517071934.6 | F20: 505759244.3 | G20: 494694057.3 | H20: 483870958.5 | I20: 473284651.5
A21: TREV01 | B21: Total revenue by chargeable quantity
B24: Table 3.1.2 Revenue Grouping by type of connected equipment
A25: TREV0201 | B25: From Other connected transmission networks | D25: 0 | E25: 0 | F25: 0 | G25: 0 | H25: 0 | I25: 0
A26: TREV0202 | B26: From Distribution networks | D26: 58820181.59 | E26: 64735365.39 | F26: 63319061.23 | G26: 61933743.48 | H26: 60578734.23 | I26: 59253370.37
A27: TREV0203 | B27: From Directly connected end–users | D27: 174702.6606 | E27: 192271.4325 | F27: 188064.8472 | G27: 183950.2952 | H27: 179925.7629 | I27: 175989.2808
A28: TREV0204 | B28: From Generators | D28: 7822957.053 | E28: 8609663.718 | F28: 8421298.324 | G28: 8237054.057 | H28: 8056840.754 | I28: 7880570.225
A29: TREV0205 | B29: Other revenue | D29: 469271285.6 | E29: 517071934.6 | F29: 505759244.3 | G29: 494694057.3 | H29: 483870958.5 | I29: 473284651.5
A30: TREV02 | B30: Total revenue by type of connected equipment
A33: TREV0301 | B33: Table 3.1.3 Revenue (penalties) allowed (deducted) through incentive schemes
A34: TREV0302 | B34: EBSS | D34: 13005512.2 | E34: 200264.7787 | F34: 195883.3121 | G34: 191597.7049 | H34: 187405.8597 | I34: 183305.7253
A35: TREV0303 | B35: STPIS | D35: 8010697.237 | E35: 0 | F35: 0 | G35: 0 | H35: 0 | I35: 0
A36: TREV03 | B36: Other | D36: 0 | E36: 0 | F36: 0 | G36: 0 | H36: 0 | I36: 0
B37: Total revenue of incentive schemes

Sheet 3.2 Operating expenditure
B1: =(LOOKUP(dms_Model,dms_Model_List,dms_Worksheet_List)) -> REGULATORY REPORTING STATEMENT
B2: =dms_TradingName -> AusNet (T)
B3: =CONCATENATE(FRCP_y1," to ",FRCP_y5) -> 2017-18 to 2021-22
B4: 3.2 OPERATING EXPENDITURE
B7: Table 3.2.1 Opex categories
B8: Table 3.2.1.1 Current opex categories and cost allocations
C9: =CONCATENATE("Forecast ($0's, real ",dms_DollarReal,")") -> Forecast ($0's, real March 2017)
C10: =CRCP_y4 -> 2015-16 | D10: =CRCP_y5 -> 2016-17 | E10: =FRCP_y1 -> 2017-18 | F10: =FRCP_y2 -> 2018-19 | G10: =FRCP_y3 -> 2019-20 | H10: =FRCP_y4 -> 2020-21 | I10: =FRCP_y5 -> 2021-22
B11: Network Operations | D11: 5570184.859 | E11: 4860107.591 | F11: 5101961.78 | G11: 5938225.285 | H11: 6181775.3 | I11: 6378337.315
B12: Network Maintenance | D12: 26774708.91 | E12: 23361516.6 | F12: 24524058.9 | G12: 28543801.96 | H12: 29714495.74 | I12: 30659328.07
B13: Asset Works Program | D13: 4865837.68 | E13: 11047674.17 | F13: 4692081.361 | G13: 5088100.663 | H13: 5726887.474 | I13: 5246991.883
B14: Asset Works Program - Asset Management Support | D14: 1680639.573 | E14: 1466394.627 | F14: 1539367.02 | G14: 1791684.955 | H14: 1865169.014 | I14: 1924475.825
B15: Availability Rebate | D15: 0 | E15: 0 | F15: 0 | G15: 0 | H15: 0 | I15: 0
B16: Easement Tax | D16: 114314255.1 | E16: 114314255.1 | F16: 114314255.1 | G16: 114314255.1 | H16: 114314255.1 | I16: 114314255.1
B17: Insurance | D17: 3675136.968 | E17: 3206637.038 | F17: 3366209.349 | G17: 3917965.35 | H17: 4078656.546 | I17: 4208345.658
B18: Taxes and Charges | D18: 3894825.8 | E18: 3398320.328 | F18: 3567431.4 | G18: 4152169.745 | H18: 4322466.586 | I18: 4459908.13
B19: Self Insurance Costs | D19: 1829721.098 | E19: 2717257.626 | F19: 2718608.239 | G19: 2701479.837 | H19: 2694767.81 | I19: 2684237.582
B20: OHS | D20: 646390.3266 | E20: 563989.6364 | F20: 592055.5286 | G20: 689099.4606 | H20: 717362.1445 | I20: 740172.1208
B21: Finance | D21: 4462065.424 | E21: 3893249.252 | F21: 4086989.539 | G21: 4756888.756 | H21: 4951987.505 | I21: 5109445.937
B22: HR | D22: 3347047.961 | E22: 2920372.235 | F22: 3065699.112 | G22: 3568198.424 | H22: 3714544.3 | I22: 3832655.728
B23: IT | D23: 31846043.91 | E23: 37706011.33 | F23: 35600864.02 | G23: 26999769.95 | H23: 25002157.3 | I23: 23515577.34
B24: Building Services | D24: 1657884.916 | E24: 1446540.693 | F24: 1518525.092 | G24: 1767426.823 | H24: 1839915.96 | I24: 1898419.8
B25: Strategy and Business Development | D25: 1251061.685 | E25: 1091578.564 | F25: 1145898.935 | G25: 1333723.443 | H25: 1388424.696 | I25: 1432572.46
B26: Other Corporate Services | D26: 4168449.762 | E26: 3637063.193 | F26: 3818054.859 | G26: 4443872.942 | H26: 4626133.68 | I26: 4773230.932
B45: Total opex | C45: =SUM(C11:C44) -> 0 | D45: =SUM(D11:D44) -> 209984253.9 | E45: 215630967.9 | F45: 209652060.2 | G45: 210006662.6 | H45: 211138999.1 | I45: 211177953.8

Sheet 3.3 Assets (RAB)
B1: =(LOOKUP(dms_Model,dms_Model_List,dms_Worksheet_List)) -> REGULATORY REPORTING STATEMENT
B2: =dms_TradingName -> AusNet (T)
B3: =CONCATENATE(FRCP_y1," to ",FRCP_y5) -> 2017-18 to 2021-22
B4: 3.3 ASSETS
C7: =CONCATENATE("Forecast ($0's, real ",dms_DollarReal,")") -> Forecast ($0's, real March 2017)
C8: =CRCP_y4 -> 2015-16 | D8: =CRCP_y5 -> 2016-17 | E8: =FRCP_y1 -> 2017-18 | F8: =FRCP_y2 -> 2018-19 | G8: =FRCP_y3 -> 2019-20 | H8: =FRCP_y4 -> 2020-21 | I8: =FRCP_y5 -> 2021-22
B10: TABLE 3.3.1 - REGULATORY ASSET BASE VALUES
B11: For total asset base:
A12: TRAB0101 | B12: Opening value
A13: TRAB0102 | B13: Inflation addition
A14: TRAB0103 | B14: Straight line depreciation
A15: TRAB0104 | B15: Regulatory depreciation
A16: TRAB0105 | B16: Actual additions (recognised in RAB)
A17: TRAB0106 | B17: Disposals
A18: TRAB0107 | B18: Closing value
B21: TABLE 3.3.2 - ASSET VALUE ROLL FORWARD
B22: For overhead transmission assets:
A23: TRAB0201 | B23: Opening value
A24: TRAB0202 | B24: Inflation addition
A25: TRAB0203 | B25: Straight line depreciation
A26: TRAB0204 | B26: Regulatory depreciation
A27: TRAB0205 | B27: Actual additions (recognised in RAB)
A28: TRAB0206 | B28: Disposals
A29: TRAB0207 | B29: Closing value
B30: For underground transmission assets:
A31: TRAB0301 | B31: Opening value
A32: TRAB0302 | B32: Inflation addition
A33: TRAB0303 | B33: Straight line depreciation
A34: TRAB0304 | B34: Regulatory depreciation
A35: TRAB0305 | B35: Actual additions (recognised in RAB)
A36: TRAB0306 | B36: Disposals
A37: TRAB0307 | B37: Closing value
B38: For transmission switchyards, substations
A39: TRAB0401 | B39: Opening value
A40: TRAB0402 | B40: Inflation addition
A41: TRAB0403 | B41: Straight line depreciation
A42: TRAB0404 | B42: Regulatory depreciation
A43: TRAB0405 | B43: Actual additions (recognised in RAB)
A44: TRAB0406 | B44: Disposals
A45: TRAB0407 | B45: Closing value
B46: For easements:
A47: TRAB0501 | B47: Opening value
A48: TRAB0502 | B48: Inflation addition
A49: TRAB0503 | B49: Straight line depreciation
A50: TRAB0504 | B50: Regulatory depreciation
A51: TRAB0505 | B51: Actual additions (recognised in RAB)
A52: TRAB0506 | B52: Disposals
A53: TRAB0507 | B53: Closing value
B54: For “other” assets with long lives:
A55: TRAB0601 | B55: Opening value
A56: TRAB0602 | B56: Inflation addition
A57: TRAB0603 | B57: Straight line depreciation
A58: TRAB0604 | B58: Regulatory depreciation
A59: TRAB0605 | B59: Actual additions (recognised in RAB)
A60: TRAB0606 | B60: Disposals
A61: TRAB0607 | B61: Closing value
B62: For “other” assets with short lives:
A63: TRAB0701 | B63: Opening value
A64: TRAB0702 | B64: Inflation addition
A65: TRAB0703 | B65: Straight line depreciation
A66: TRAB0704 | B66: Regulatory depreciation
A67: TRAB0705 | B67: Actual additions (recognised in RAB)
A68: TRAB0706 | B68: Disposals
A69: TRAB0707 | B69: Closing value
B72: TABLE 3.3.3 - TOTAL DISAGGREGATED RAB ASSET VALUES
A73: TRAB0801 | B73: Overhead transmission assets (wires and towers/poles etc)
A74: TRAB0802 | B74: Underground transmission assets (cables, ducts etc)
A75: TRAB0803 | B75: Substations, switchyards, Transformers etc with transmission function
A76: TRAB0804 | B76: Easements
A77: TRAB0805 | B77: Other assets with long lives (please specify)
A78: TRAB0806 | B78: Other assets with short lives (please specify)
B81: TABLE 3.3.4 - ASSET LIVES
B82: 3.3.4.1 Asset Lives – estimated service life of new assets
A83: TRAB0901 | B83: Overhead transmission assets
A84: TRAB0902 | B84: Underground transmission assets
A85: TRAB0903 | B85: Switchyard, substation and transformer assets
A86: TRAB0904 | B86: “Other” assets with long lives
A87: TRAB0905 | B87: “Other assets with short lives
B89: 3.3.4.2 Asset Lives – estimated residual service life
A90: TRAB1001 | B90: Overhead transmission assets
A91: TRAB1002 | B91: Underground transmission assets
A92: TRAB1003 | B92: Switchyard, substation and transformer assets
A93: TRAB1004 | B93: Other assets with long lives
A94: TRAB1005 | B94: Other assets with short lives

Sheet Unprotected 3.3 Assets (RAB)
B1: REGULATORY REPORTING STATEMENT
B2: AusNet (T)
B3: 2017-18 to 2021-22
B4: 3.3 ASSETS
C6: Forecast ($0's, real March 2017)
C7: 2015-16 | D7: 2016-17 | E7: 2017-18 | F7: 2018-19 | G7: 2019-20 | H7: 2020-21 | I7: 2021-22
B9: 3.3.1 - REGULATORY ASSET BASE VALUES
B10: For total asset base:
A11: TRAB0201 | B11: Opening value | C11: 2796758861 | D11: 2818856238 | E11: 3029527148 | F11: 3073847734 | G11: 3105609201 | H11: 3120790840 | I11: 3085136066
A12: TRAB0202 | B12: Inflation addition | C12: 42056524.23 | D12: 46511127.93 | E12: 0 | F12: 0 | G12: 0 | H12: 0 | I12: 0
A13: TRAB0203 | B13: Straight line depreciation | C13: -152480082.4 | D13: -161231040.2 | E13: -170431946.8 | F13: -170893861.9 | G13: -175824982.7 | H13: -176599482 | I13: -158449621.6
A14: TRAB0204 | B14: Regulatory depreciation | C14: -110423558.2 | D14: -114719912.3 | E14: -170431946.8 | F14: -170893861.9 | G14: -175824982.7 | H14: -176599482 | I14: -158449621.6
A15: TRAB0205 | B15: Actual additions (recognised in RAB) | C15: 132632814.3 | D15: 187824670.7 | E15: 214970532 | F15: 202826328.8 | G15: 191245622.5 | H15: 141147707.2 | I15: 119272803.8
A16: TRAB0206 | B16: Disposals | C16: -111879.12 | D16: 0 | E16: -218000 | F16: -171000 | G16: -239000 | H16: -203000 | I16: -208000
B17: RFM True Up & Group 3 assets roll-in | C17: 0 | D17: 137566151.7 | E17: 0 | F17: 0 | G17: 0 | H17: 0 | I17: 0
A18: TRAB0207 | B18: Closing value | C18: 2818856238 | D18: 3029527148 | E18: 3073847734 | F18: 3105609201 | G18: 3120790840 | H18: 3085136066 | I18: 3045751248
B21: 3.3.2 - ASSET VALUE ROLL FORWARD
B22: For overhead transmission assets:
A23: TRAB0201 | B23: Opening value | C23: 1058221486 | D23: 1047046692 | E23: 1063456893 | F23: 1030527191 | G23: 1001470074 | H23: 964901389 | I23: 927895354.3
A24: TRAB0202 | B24: Inflation addition | C24: 15913105.06 | D24: 17276270.42 | E24: 0 | F24: 0 | G24: 0 | H24: 0 | I24: 0
A25: TRAB0203 | B25: Straight line depreciation | C25: -46187088.1 | D25: -47194528.2 | E25: -47395887.1 | F25: -47650006.19 | G25: -47977319.88 | H25: -48178648.11 | I25: -48376403.07
A26: TRAB0204 | B26: Regulatory depreciation | C26: -30273983.04 | D26: -29918257.78 | E26: -47395887.1 | F26: -47650006.19 | G26: -47977319.88 | H26: -48178648.11 | I26: -48376403.07
A27: TRAB0205 | B27: Actual additions (recognised in RAB) | C27: 19099188.95 | D27: 11529418.18 | E27: 14466185.31 | F27: 18592888.79 | G27: 11408635.19 | H27: 11172613.41 | I27: 10912076.64
A28: TRAB0206 | B28: Disposals | C28: 0 | D28: 0 | E28: 0 | F28: 0 | G28: 0 | H28: 0 | I28: 0
B29: RFM True Up & Group 3 assets roll-in | C29: 0 | D29: 34799040.14 | E29: 0 | F29: 0 | G29: 0 | H29: 0 | I29: 0
A30: TRAB0207 | B30: Closing value | C30: 1047046692 | D30: 1063456893 | E30: 1030527191 | F30: 1001470074 | G30: 964901389 | H30: 927895354.3 | I30: 890431027.9
B31: For underground transmission assets:
A32: TRAB0301 | B32: Opening value | C32: 35321171.33 | D32: 34345333.41 | E32: 33372177.49 | F32: 31884854.44 | G32: 30410547.38 | H32: 28953672.53 | I32: 27507982
A33: TRAB0302 | B33: Inflation addition | C33: 531145.4336 | D33: 566698.0013 | E33: 0 | F33: 0 | G33: 0 | H33: 0 | I33: 0
A34: TRAB0303 | B34: Straight line depreciation | C34: -1506983.357 | D34: -1539853.918 | E34: -1487323.057 | F34: -1474307.058 | G34: -1456874.846 | H34: -1445690.53 | I34: -1434145.8
A35: TRAB0304 | B35: Regulatory depreciation | C35: -975837.9236 | D35: -973155.9163 | E35: -1487323.057 | F35: -1474307.058 | G35: -1456874.846 | H35: -1445690.53 | I35: -1434145.8
A36: TRAB0305 | B36: Actual additions (recognised in RAB) | C36: 0 | D36: 0 | E36: 0 | F36: 0 | G36: 0 | H36: 0 | I36: 0
A37: TRAB0306 | B37: Disposals | C37: 0 | D37: 0 | E37: 0 | F37: 0 | G37: 0 | H37: 0 | I37: 0
B38: RFM True Up & Group 3 assets roll-in | C38: 0 | D38: 0 | E38: 0 | F38: 0 | G38: 0 | H38: 0 | I38: 0
A39: TRAB0307 | B39: Closing value | C39: 34345333.41 | D39: 33372177.49 | E39: 31884854.44 | F39: 30410547.38 | G39: 28953672.53 | H39: 27507982 | I39: 26073836.2
B40: For transmission switchyards, substations
A41: TRAB0401 | B41: Opening value | C41: 1236360693 | D41: 1250929139 | E41: 1390977079 | F41: 1447062501 | G41: 1500130564 | H41: 1553342898 | I41: 1568578142
A42: TRAB0402 | B42: Inflation addition | C42: 18591890.12 | D42: 20640330.79 | E42: 0 | F42: 0 | G42: 0 | H42: 0 | I42: 0
A43: TRAB0403 | B43: Straight line depreciation | C43: -62035872.18 | D43: -64280385.07 | E43: -67275411.09 | F43: -59700103.54 | G43: -62206586.48 | H43: -59949613.51 | I43: -47153821
A44: TRAB0404 | B44: Regulatory depreciation | C44: -43443982.06 | D44: -43640054.27 | E44: -67275411.09 | F44: -59700103.54 | G44: -62206586.48 | H44: -59949613.51 | I44: -47153821
A45: TRAB0405 | B45: Actual additions (recognised in RAB) | C45: 58012428.02 | D45: 112641655.9 | E45: 123360832.9 | F45: 112768166.7 | G45: 115418920.1 | H45: 75184857.91 | I45: 59248541.62
A46: TRAB0406 | B46: Disposals | C46: 0 | D46: 0 | E46: 0 | F46: 0 | G46: 0 | H46: 0 | I46: 0
B47: RFM True Up & Group 3 assets roll-in | C47: 0 | D47: 71046338.52 | E47: 0 | F47: 0 | G47: 0 | H47: 0 | I47: 0
A48: TRAB0407 | B48: Closing value | C48: 1250929139 | D48: 1390977079 | E48: 1447062501 | F48: 1500130564 | G48: 1553342898 | H48: 1568578142 | I48: 1580672863
B49: For easements:
A50: TRAB0501 | B50: Opening value | C50: 131187407.5 | D50: 133160150.5 | E50: 135344233.8 | F50: 135344233.8 | G50: 135344233.8 | H50: 135344233.8 | I50: 135344233.8
A51: TRAB0502 | B51: Inflation addition | C51: 1972742.97 | D51: 2197142.483 | E51: 0 | F51: 0 | G51: 0 | H51: 0 | I51: 0
A52: TRAB0503 | B52: Straight line depreciation | C52: 0 | D52: 0 | E52: 0 | F52: 0 | G52: 0 | H52: 0 | I52: 0
A53: TRAB0504 | B53: Regulatory depreciation | C53: 1972742.97 | D53: 2197142.483 | E53: 0 | F53: 0 | G53: 0 | H53: 0 | I53: 0
A54: TRAB0505 | B54: Actual additions (recognised in RAB) | C54: 0 | D54: 0 | E54: 0 | F54: 0 | G54: 0 | H54: 0 | I54: 0
A55: TRAB0506 | B55: Disposals | C55: 0 | D55: 0 | E55: 0 | F55: 0 | G55: 0 | H55: 0 | I55: 0
B56: RFM True Up & Group 3 assets roll-in | C56: 0 | D56: -13059.13484 | E56: 0 | F56: 0 | G56: 0 | H56: 0 | I56: 0
A57: TRAB0507 | B57: Closing value | C57: 133160150.5 | D57: 135344233.8 | E57: 135344233.8 | F57: 135344233.8 | G57: 135344233.8 | H57: 135344233.8 | I57: 135344233.8
B58: For “other” assets with long lives:
A59: TRAB0601 | B59: Opening value | C59: 277171944.2 | D59: 270897904.6 | E59: 317723104.4 | F59: 332036192.6 | G59: 340718432.5 | H59: 349808648.8 | I59: 351351907.7
A60: TRAB0602 | B60: Inflation addition | C60: 4167999.16 | D60: 4469815.426 | E60: 0 | F60: 0 | G60: 0 | H60: 0 | I60: 0
A61: TRAB0603 | B61: Straight line depreciation | C61: -30970025.24 | D61: -31681644.33 | E61: -34896793.94 | F61: -37724963.85 | G61: -38810711.72 | H61: -39596109.79 | I61: -39998965.06
A62: TRAB0604 | B62: Regulatory depreciation | C62: -26802026.08 | D62: -27211828.9 | E62: -34896793.94 | F62: -37724963.85 | G62: -38810711.72 | H62: -39596109.79 | I62: -39998965.06
A63: TRAB0605 | B63: Actual additions (recognised in RAB) | C63: 20527986.52 | D63: 42769944.93 | E63: 49209882.15 | F63: 46407203.75 | G63: 47900927.98 | H63: 41139368.69 | I63: 37217224.99
A64: TRAB0606 | B64: Disposals | C64: 0 | D64: 0 | E64: 0 | F64: 0 | G64: 0 | H64: 0 | I64: 0
B65: RFM True Up & Group 3 assets roll-in | C65: 0 | D65: 31267083.77 | E65: 0 | F65: 0 | G65: 0 | H65: 0 | I65: 0
A66: TRAB0607 | B66: Closing value | C66: 270897904.6 | D66: 317723104.4 | E66: 332036192.6 | F66: 340718432.5 | G66: 349808648.8 | H66: 351351907.7 | I66: 348570167.6
B67: For “other” assets with short lives:
A68: TRAB0701 | B68: Opening value | C68: 58496158.93 | D68: 82477018.52 | E68: 88653660.65 | F68: 96992760.62 | G68: 97535348.91 | H68: 88439998.46 | I68: 74458445.56
A69: TRAB0702 | B69: Inflation addition | C69: 879641.4877 | D69: 1360870.806 | E69: 0 | F69: 0 | G69: 0 | H69: 0 | I69: 0
A70: TRAB0703 | B70: Straight line depreciation | C70: -11780113.55 | D70: -16534628.73 | E70: -19376531.65 | F70: -24344481.23 | G70: -25373489.76 | H70: -27429420.08 | I70: -21486286.67
A71: TRAB0704 | B71: Regulatory depreciation | C71: -10900472.07 | D71: -15173757.92 | E71: -19376531.65 | F71: -24344481.23 | G71: -25373489.76 | H71: -27429420.08 | I71: -21486286.67
A72: TRAB0705 | B72: Actual additions (recognised in RAB) | C72: 34993210.77 | D72: 20883651.65 | E72: 27933631.63 | F72: 25058069.52 | G72: 16517139.31 | H72: 13650867.18 | I72: 11894960.57
A73: TRAB0706 | B73: Disposals | C73: -111879.12 | D73: 0 | E73: -218000 | F73: -171000 | G73: -239000 | H73: -203000 | I73: -208000
B74: RFM True Up & Group 3 assets roll-in | C74: 0 | D74: 466748.4092 | E74: 0 | F74: 0 | G74: 0 | H74: 0 | I74: 0
A75: TRAB0707 | B75: Closing value | C75: 82477018.52 | D75: 88653660.65 | E75: 96992760.62 | F75: 97535348.91 | G75: 88439998.46 | H75: 74458445.56 | I75: 64659119.46
B78: 3.3.3 - TOTAL DISAGGREGATED RAB ASSET VALUES
A79: TRAB0801 | B79: Overhead transmission assets (wires and towers/poles etc) | C79: 1052634089 | D79: 1055251793 | E79: 1046992042 | F79: 1015998632 | G79: 983185731.3 | H79: 946398371.6 | I79: 909163191.1
A80: TRAB0802 | B80: Underground transmission assets (cables, ducts etc) | C80: 34833252.37 | D80: 33858755.45 | E80: 32628515.97 | F80: 31147700.91 | G80: 29682109.96 | H80: 28230827.27 | I80: 26790909.1
A81: TRAB0803 | B81: Substations, switchyards, Transformers etc with transmission function | C81: 1243644916 | D81: 1320953109 | E81: 1419019790 | F81: 1473596533 | G81: 1526736731 | H81: 1560960520 | I81: 1574625502
A82: TRAB0804 | B82: Easements | C82: 132173779 | D82: 134252192.2 | E82: 135344233.8 | F82: 135344233.8 | G82: 135344233.8 | H82: 135344233.8 | I82: 135344233.8
A83: TRAB0805 | B83: Other assets with long lives (please specify) | C83: 274034924.4 | D83: 294310504.5 | E83: 324879648.5 | F83: 336377312.6 | G83: 345263540.6 | H83: 350580278.2 | I83: 349961037.6
A84: TRAB0806 | B84: Other assets with short lives (please specify) | C84: 70486588.72 | D84: 85565339.58 | E84: 92823210.64 | F84: 97264054.77 | G84: 92987673.69 | H84: 81449222.01 | I84: 69558782.51
B87: 3.3.4 - ASSET LIVES
B88: 3.3.4.1 Asset Lives – estimated service life of new assets
A89: TRAB0901 | B89: Overhead transmission assets | C89: 68.6 | D89: 68.6 | E89: 68.6 | F89: 68.6 | G89: 68.6 | H89: 68.6 | I89: 68.6
A90: TRAB0902 | B90: Underground transmission assets | C90: 60 | D90: 60 | E90: 60 | F90: 60 | G90: 60 | H90: 60 | I90: 60
A91: TRAB0903 | B91: Switchyard, substation and transformer assets | C91: 40.6 | D91: 40.6 | E91: 40.6 | F91: 40.6 | G91: 40.6 | H91: 40.6 | I91: 40.6
A92: TRAB0904 | B92: “Other” assets with long lives | C92: 17.0617908 | D92: 16.79559195 | E92: 16.47553518 | F92: 16.37280734 | G92: 16.28511598 | H92: 16.22587377 | I92: 16.16330059
A93: TRAB0905 | B93: “Other assets with short lives | C93: 5.110542075 | D93: 5.106293237 | E93: 5.120016083 | F93: 5.124121979 | G93: 5.153996242 | H93: 5.192948234 | I93: 5.233925923
B95: 3.3.4.2 Asset Lives – estimated residual service life
A96: TRAB1001 | B96: Overhead transmission assets | C96: 23.6 | D96: 22.6 | E96: 21.6 | F96: 20.7 | G96: 19.7 | H96: 18.7 | I96: 17.7
A97: TRAB1002 | B97: Underground transmission assets | C97: 37.9 | D97: 36.9 | E97: 35.9 | F97: 34.9 | G97: 33.9 | H97: 32.9 | I97: 31.9
A98: TRAB1003 | B98: Switchyard, substation and transformer assets | C98: 11.6 | D98: 10.9 | E98: 10.2 | F98: 9.6 | G98: 9 | H98: 8.2 | I98: 7.6
A99: TRAB1004 | B99: Other assets with long lives | C99: 12.77523299 | D99: 12.0878392 | E99: 11.64428478 | F99: 11.34608465 | G99: 11.08365777 | H99: 10.74460849 | I99: 10.36292563
A100: TRAB1005 | B100: Other assets with short lives | C100: 3.343074176 | D100: 3.288210695 | E100: 3.232949944 | F100: 3.119534194 | G100: 2.825651178 | H100: 2.63467161 | I100: 2.537278697

Sheet 7.5 EBSS
C1: REGULATORY REPORTING STATEMENT
C2: =dms_TradingName -> AusNet (T)
C3: =FRCP_span -> 2017-18 to 2021-22
C4: 7.5 EBSS
C7: Instructions The NSP is required to populate all input cells (yellow) in table 7.5.1 presented below. Efficiency gains are calculated using the formulae below. Adjusted target and actual amounts are used to calculate the carry-over amounts. We will calculate the efficiency gain in 2014–15 (year 7) as follows: E7 = (F7 – A7) – (F6 – A6) + (F4 – A4) where F7 is the forecast opex we approved for year 7, and A7 is the actual opex incurred for year 7, and so on. The formula references year 4 (2011-12) because it was the base year used to forecast opex.
C16: Actual and estimated inflation
D17: Actual | N17: Estimated
D18: 2005-06 | E18: 2006-07 | F18: =PRCP_y1 -> 2007-08 | G18: =PRCP_y2 -> 2008-09 | H18: =PRCP_y3 -> 2009-10 | I18: =PRCP_y4 -> 2010-11 | J18: =PRCP_y5 -> 2011-12 | K18: =CRCP_y1 -> 2012-13 | L18: =CRCP_y2 -> 2013-14 | M18: =CRCP_y3 -> 2014-15 | N18: =CRCP_y4 -> 2015-16 | O18: =CRCP_y5 -> 2016-17
C19: Actual CPI - Mar quarter (old base) | E19: 155.6 | F19: 162.2 | G19: 166.2 | H19: 171 | I19: 176.7 | J19: 179.5
C20: Actual CPI - Mar quarter (rebased in Sep 2012) | J20: 99.9 | K20: 102.4 | L20: 105.4 | M20: 106.8 | N20: 108.2 | O20: 110.38625
C21: Actual inflation rate (consistent with annual revenue adj) | F21: =F19/E19-1 -> 0.04241645244 | G21: 0.02466091245 | H21: 0.02888086643 | I21: 0.03333333333 | J21: =J19/I19-1 -> 0.01584606678 | K21: =K20/J20-1 -> 0.02502502503 | L21: =L20/K20-1 -> 0.029296875 | M21: 0.01328273245 | N21: 0.01310861423 | O21: =O20/N20-1 -> 0.02020563771
C22: Actual inflation rate (lagged by one year)
C23: =CONCATENATE("Reconstructed cumulative index (",CRCP_y5,"=1)") -> Reconstructed cumulative index (2016-17=1) | F23: =G23/(1+G21) -> 0.8177807913 | G23: =H23/(1+H21) -> 0.8379480118 | H23: 0.8621486764 | I23: 0.8908869656 | J23: 0.90500402 | K23: 0.9276517682 | L23: 0.9548290661 | M23: 0.9675118051 | N23: =O23/(1+O21) -> 0.9801945442 | O23: 1
C27: TABLE 7.5.1 - The carryover amounts that arise from applying the EBSS during the current regulatory control period
C29: Table 7.5.1.1 - Opex allowance applicable to EBSS (EBSS target)
D30: Previous period | H30: Current regulatory control period | L30: Previous period | P30: Current regulatory control period
D31: =CONCATENATE("$m, real ", (PRCP_y1)) -> $m, real 2007-08 | H31: =CONCATENATE("$m, real ", CRCP_y2) -> $m, real 2013-14 | L31: $m, real 2016-17 | P31: =CONCATENATE("$m, real ", CRCP_y5) -> $m, real 2016-17
D32: =PRCP_y4 -> 2010-11 | E32: =PRCP_y5 -> 2011-12 | F32: =CRCP_y1 -> 2012-13 | G32: =CRCP_y2 -> 2013-14 | H32: =CRCP_y3 -> 2014-15 | I32: =CRCP_y4 -> 2015-16 | J32: =CRCP_y5 -> 2016-17 | L32: =PRCP_y4 -> 2010-11 | M32: =PRCP_y5 -> 2011-12 | N32: =CRCP_y1 -> 2012-13 | O32: =CRCP_y2 -> 2013-14 | P32: =CRCP_y3 -> 2014-15 | Q32: =CRCP_y4 -> 2015-16 | R32: =CRCP_y5 -> 2016-17
A33: ED_EBS7511_00001 | C33: Total opex allowance | D33: 163.6567357 | E33: 171.3074299 | F33: 168.5793724 | G33: 176.8087447 | H33: 185.1351554 | I33: 189.8099122 | J33: 188.0055947 | L33: =+D33/$F$23 -> 200.1229883 | M33: =+E33/$F$23 -> 209.4784223 | N33: 206.1424947 | O33: 216.2055487 | P33: =+H33/$L$23 -> 193.8935062 | Q33: =+I33/$L$23 -> 198.7894157 | R33: 196.8997398
C34: Approved excludable costs - allowance
C35: Equity raising costs | D35: 1.570242433 | E35: 1.500921856 | F35: 1.434105769 | G35: 1.37480315 | L35: =-D35/$F$23 -> -1.920126334 | M35: -1.835359637 | N35: -1.753655484 | O35: -1.681138961
C36: Opex glide path | D36: 5.067521035 | E36: 3.378347357 | F36: 1.689173678 | G36: 0 | L36: -6.196674083 | M36: -4.131116055 | N36: -2.065558028 | O36: 0
A37: ED_EBS7511_00002 | C37: Easement land tax | D37: 82.32564709 | E37: 90.97269373 | F37: 88.67814669 | G37: 97.99070449 | H37: 100.9190293 | I37: 103.442005 | J37: 100.9190293 | L37: -100.6695779 | M37: -111.2433732 | N37: -108.4375515 | O37: -119.8251482 | P37: =+-H37/$L$23 -> -105.6932941 | Q37: =+-I37/$L$23 -> -108.3356264 | R37: -105.6932941
A38: ED_EBS7511_00003 | C38: Self insurance | D38: 2.091917 | E38: 2.091917 | F38: 2.091917 | G38: 2.091917 | H38: 1.7 | I38: 1.7 | J38: 1.6 | L38: -2.558041253 | M38: -2.558041253 | N38: -2.558041253 | O38: -2.558041253 | P38: =+-H38/$L$23 -> -1.780423387 | Q38: -1.780423387 | R38: -1.6756926
A39: ED_EBS7511_00004 | C39: Rebates made under the Availability Incentive Scheme | D39: 2.789851383 | E39: 2.789851383 | F39: 2.789851383 | G39: 2.789851383 | H39: 2.281293 | I39: 2.281293 | J39: 2.281293 | L39: -3.411490478 | M39: -3.411490478 | N39: -3.411490478 | O39: -3.411490478 | P39: -2.389216124 | Q39: -2.389216124 | R39: -2.389216124
A40: ED_EBS7511_00005 | C40: Debt Raising costs | D40: 1.099704923 | E40: 1.109704166 | F40: 1.121581658 | G40: 1.123062181 | H40: 1.549610545 | I40: 1.556109859 | J40: 1.577585208 | L40: -1.344742913 | M40: -1.356970203 | N40: -1.371494256 | O40: -1.373304672 | P40: -1.622919327 | Q40: -1.629726109 | R40: -1.652217411
A41: ED_EBS7511_00006 | C41: Priority projects approved under STPIS network capability component | H41: 0 | I41: 0 | J41: 0 | P41: 0 | Q41: 0 | R41: 0
C42: Movements in provisions related to opex | D42: 2.180654662 | E42: 2.180654662 | F42: 2.180654662 | G42: 2.180654662 | H42: 0 | I42: 0 | J42: 0 | L42: -2.666551581 | M42: -2.666551581 | N42: -2.666551581 | O42: -2.666551581 | P42: 0 | Q42: 0 | R42: 0
A43: ED_EBS7511_00008 | C43: Capitalisation policy changes | H43: 0 | I43: 0 | J43: 0 | L43: =D43/$F$23 -> 0 | M43: =E43/$F$23 -> 0 | N43: 0 | O43: 0 | P43: =+H43/$L$23 -> 0 | Q43: =+I43/$L$23 -> 0 | R43: 0
A44: ED_EBS7511_00010 | C44: Other adjustments or exclusions required by the EBSS | H44: 0 | I44: 0 | J44: 0 | L44: =D44/$F$23 -> 0 | M44: 0 | N44: 0 | O44: 0 | P44: =+H44/$L$23 -> 0 | Q44: 0 | R44: 0
C45: Forecast opex for EBSS purposes | D45: =(D33-SUM(D35:D42)+SUM(D43:D44)) -> 66.53119717 | E45: =(E33-SUM(E35:E42)+SUM(E43:E44)) -> 67.28333976 | F45: =(F33-SUM(F35:F42)+SUM(F43:F44)) -> 68.59394157 | G45: =(G33-SUM(G35:G42)+SUM(G43:G44)) -> 69.25775183 | H45: =(H33-SUM(H35:H42)+SUM(H43:H44)) -> 78.6852226 | I45: =(I33-SUM(I35:I42)+SUM(I43:I44)) -> 80.83050433 | J45: 81.6276872 | L45: =+SUM(L33:L44) -> 81.3557837 | M45: 82.27551989 | N45: 83.87815206 | O45: 84.68987358 | P45: 82.40765326 | Q45: 84.65442371 | R45: 85.4893196
C47: Table 7.5.1.2 - Actual and estimated opex applicable to EBSS
D48: Previous period | H48: Current regulatory control period | L48: Previous period | P48: Current regulatory control period
D49: $m, Actual | H49: $m, Actual | L49: $m, real 2016-17 | P49: =CONCATENATE("$m, real ", CRCP_y5) -> $m, real 2016-17
D50: =PRCP_y4 -> 2010-11 | E50: =PRCP_y5 -> 2011-12 | F50: =CRCP_y1 -> 2012-13 | G50: =CRCP_y2 -> 2013-14 | H50: =CRCP_y3 -> 2014-15 | I50: =CRCP_y4 -> 2015-16 | J50: =CRCP_y5 -> 2016-17 | L50: =PRCP_y4 -> 2010-11 | M50: =PRCP_y5 -> 2011-12 | N50: =CRCP_y1 -> 2012-13 | O50: =CRCP_y2 -> 2013-14 | P50: =CRCP_y3 -> 2014-15 | Q50: =CRCP_y4 -> 2015-16 | R50: =CRCP_y5 -> 2016-17
A51: ED_EBS7512_0001 | C51: Total opex | D51: =172362.976328331/1000 -> 172.3629763 | E51: =175683.335237523/1000 -> 175.6833352 | F51: =179435.10486911/1000 -> 179.4351049 | G51: =189339.332393219/1000 -> 189.3393324 | H51: =191223.065007723/1000 -> 191.223065 | I51: 201.5354286 | L51: =+D51/I$23*(1+I$21)^0.5 -> 196.6715767 | M51: =+E51/J$23*(1+J$21)^0.5 -> 195.6563787 | N51: 195.8347105 | O51: 201.1803399 | P51: =+H51/M$23*(1+M$21)^0.5 -> 198.9524644 | Q51: =+I51/N$23*(1+N$21)^0.5 -> 206.9508081
C52: Approved excludable costs
C53: Equity raising costs | D53: 0 | E53: 0 | F53: 0 | G53: 0 | L53: =-D53/I$23*(1+I$21)^0.5 -> 0 | M53: 0 | N53: 0 | O53: 0
C54: Opex glide path (not incurred) | D54: 0 | E54: 0 | F54: 0 | G54: 0 | L54: 0 | M54: 0 | N54: 0 | O54: 0
A55: ED_EBS7512_0002 | C55: =C37 -> Easement land tax | D55: 93.271 | E55: 99.342 | F55: 99.342 | G55: 103.442005 | H55: 103.442005 | I55: 111.32294 | L55: =-D55/I$23*(1+I$21)^0.5 -> -106.4251443 | M55: -110.6359686 | N55: -108.4214364 | O55: -109.9111181 | P55: =-H55/M$23*(1+M$21)^0.5 -> -107.6232191 | Q55: =-I55/N$23*(1+N$21)^0.5 -> -114.3142551
A56: ED_EBS7512_0003 | C56: Self insurance | D56: 2.28 | E56: 2.341 | F56: 2.413 | G56: 2.463920716 | H56: 1.74165 | I56: 1.781841923 | L56: =-D56/I$23*(1+I$21)^0.5 -> -2.601551704 | M56: -2.607143027 | N56: -2.63353794 | O56: -2.618010748 | P56: -1.812048979 | Q56: -1.829721098
A57: ED_EBS7512_0004 | C57: Rebates made under the Availability Incentive Scheme | D57: 2.61 | E57: 2.172 | F57: 2.011 | G57: 3.10947598 | H57: 2.40279536 | I57: 1.76669522 | L57: -2.978092082 | M57: -2.418929797 | N57: -2.194796849 | O57: -3.303938103 | P57: -2.499918398 | Q57: -1.814167394
A58: ED_EBS7512_0005 | C58: Debt Raising costs | D58: =3994.19573344048/1000 -> 3.994195733 | E58: =3599.20323376781/1000 -> 3.599203234 | F58: =3963.0469008545/1000 -> 3.963046901 | G58: =3163.05941340303/1000 -> 3.163059413 | H58: =2884.88771805622/1000 -> 2.884887718 | I58: 0 | L58: -4.557502946 | M58: -4.008388558 | N58: -4.325252537 | O58: -3.360872566 | P58: -3.001497341 | Q58: 0
A59: ED_EBS7512_0006 | C59: Priority projects approved under STPIS network capability component | H59: 0.25119547 | I59: 0.82261509 | L59: 0 | M59: 0 | N59: 0 | O59: 0 | P59: -0.2613490052 | Q59: -0.8447192574
A60: ED_EBS7512_0008 | C60: Movements in provisions related to opex | D60: 0.336 | E60: 0.62 | F60: 1.262 | G60: 1.374140328 | H60: -0.1307895098 | I60: 4.920939749 | L60: -0.3833865669 | M60: -0.6904864061 | N60: -1.377341434 | O60: -1.460077073 | P60: 0.1360761333 | Q60: -5.053168391
A61: ED_EBS7512_0008 | C61: Opex associated with approved cost pass through | G61: 0 | H61: 0 | L61: 0 | M61: 0 | N61: 0 | O61: 0 | P61: 0
A62: ED_EBS7512_0009 | C62: =C43 -> Capitalisation policy changes | G62: 0 | H62: 0 | L62: =D62/I$23*(1+I$21)^0.5 -> 0 | M62: =E62/J$23*(1+J$21)^0.5 -> 0 | N62: 0 | O62: 0 | P62: 0
A63: ED_EBS7512_0011 | C63: Other adjustments or exclusions required by the EBSS | G63: 0 | H63: 0 | L63: =D63/I$23*(1+I$21)^0.5 -> 0 | M63: 0 | N63: 0 | O63: 0 | P63: 0
C64: Actual opex for EBSS purposes | D64: =(D51-SUM(D53:D61)+SUM(D62:D63)) -> 69.87178059 | E64: =(E51-SUM(E53:E61)+SUM(E62:E63)) -> 67.609132 | F64: =(F51-SUM(F53:F61)+SUM(F62:F63)) -> 70.44405797 | G64: =(G51-SUM(G53:G61)+SUM(G62:G63)) -> 75.78673096 | H64: =(H51-SUM(H55:H61)+SUM(H62:H63)) -> 80.63132097 | I64: =(I51-SUM(I55:I61)+SUM(I62:I63)) -> 80.92039663 | J64: =(J51-SUM(J55:J61)+SUM(J62:J63)) -> 0 | L64: =L51+SUM(L53:L63) -> 79.72589907 | M64: =M51+SUM(M53:M63) -> 75.29546222 | N64: 76.88234534 | O64: 80.52632331 | P64: =P51+SUM(P55:P63) -> 83.89050774 | Q64: =Q51+SUM(Q55:Q63) -> 83.09477687 | R64: =+R45-(P45-P64) -> 86.97217409
M65: Base year | P65: Base year
L66: =CONCATENATE("Incremental gain ($m, ",CRCP_y5,")") -> Incremental gain ($m, 2016-17)
A67: ED_EBS7512_0012 | P67: =(P45-P64)-(O45-O64)+(M45-M64) -> 1.333652902 | Q67: =(Q45-Q64)-(P45-P64) -> 3.042501326 | R67: =(R45-R64)-(Q45-Q64) -> -3.042501326
L69: Carryover
P70: Current regulatory control period | S70: Forthcoming regulatory control period
N71: =CONCATENATE("$m, real ", CRCP_y5) -> $m, real 2016-17
P72: =CRCP_y3 -> 2014-15 | Q72: =CRCP_y4 -> 2015-16 | R72: =CRCP_y5 -> 2016-17 | S72: =FRCP -> 2017-18 | T72: 2018-19 | U72: 2019-20 | V72: 2020-21 | W72: 2021-22 | X72: Total
A73: ED_EBS7512_0015 | L73: =CRCP_y3 -> 2014-15 | Q73: =$P$67 -> 1.333652902 | R73: =$P$67 -> 1.333652902 | S73: =$P$67 -> 1.333652902 | T73: =$P$67 -> 1.333652902 | U73: =$P$67 -> 1.333652902
A74: ED_EBS7512_0016 | L74: =CRCP_y4 -> 2015-16 | R74: =$Q$67 -> 3.042501326 | S74: =$Q$67 -> 3.042501326 | T74: =$Q$67 -> 3.042501326 | U74: =$Q$67 -> 3.042501326 | V74: =$Q$67 -> 3.042501326
A75: ED_EBS7512_0017 | L75: =CRCP_y5 -> 2016-17 | S75: =+$R$67 -> -3.042501326 | T75: =+$R$67 -> -3.042501326 | U75: =+$R$67 -> -3.042501326 | V75: =+$R$67 -> -3.042501326 | W75: =+$R$67 -> -3.042501326
L76: =CONCATENATE("Total Carryover Amount ($m, ",CRCP_y5,")") -> Total Carryover Amount ($m, 2016-17) | S76: =+SUM(S73:S75) -> 1.333652902 | T76: =+SUM(T73:T75) -> 1.333652902 | U76: =+SUM(U73:U75) -> 1.333652902 | V76: =+SUM(V73:V75) -> 0 | W76: =+SUM(W73:W75) -> -3.042501326 | X76: =SUM(S76:W76) -> 0.9584573808
L78: =CONCATENATE("PTRM inputs ($m, ",CRCP_y5,")") -> PTRM inputs ($m, 2016-17) | S78: =S76 -> 1.333652902 | T78: =T76 -> 1.333652902 | U78: =U76 -> 1.333652902 | V78: =V76 -> 0 | W78: =W76 -> -3.042501326 | X78: =SUM(S78:W78) -> 0.9584573808
C80: TABLE 7.5.2 - Proposed forecast opex for the EBSS for the forthcoming regulatory control period
D82: Forthcoming regulatory control period
D83: =CONCATENATE("$m, real ", CRCP_y5) -> $m, real 2016-17
D84: =FRCP -> 2017-18 | E84: 2018-19 | F84: 2019-20 | G84: 2020-21 | H84: 2021-22
A85: ED_EBS752_00001 | C85: Forecast opex | D85: 215.6309679 | E85: 209.6520602 | F85: 210.0066626 | G85: 211.1389991 | H85: 211.1779538 | I85: =+SUM(D85:H85) -> 1057.606644
C86: Less excluded costs
A87: ED_EBS752_00002 | C87: Easement land tax | D87: 114.3142551 | E87: 114.3142551 | F87: 114.3142551 | G87: 114.3142551 | H87: 114.3142551 | I87: =+SUM(D87:H87) -> 571.5712753
A88: ED_EBS752_00003 | C88: Debt raising costs | D88: 1.605242875 | E88: 1.613000756 | F88: 1.610382045 | G88: 1.601537351 | H88: 1.583266487 | I88: 8.013429514
A89: ED_EBS752_00004 | C89: Rebates under the AIS | D89: 0 | E89: 0 | F89: 0 | G89: 0 | H89: 0 | I89: 0
A90: ED_EBS752_00005 | C90: Priority projects approved under the STPIS network capability component | D90: 0 | E90: 0 | F90: 0 | G90: 0 | H90: 0 | I90: 0
A91: ED_EBS752_00006 | C91: Self-insurance | D91: 2.717257626 | E91: 2.718608239 | F91: 2.701479837 | G91: 2.69476781 | H91: 2.684237582 | I91: 13.51635109
A92: ED_EBS752_00007 | D92: 0 | E92: 0 | F92: 0 | G92: 0 | H92: 0 | I92: 0
A93: ED_EBS752_00008 | D93: 0 | E93: 0 | F93: 0 | G93: 0 | H93: 0 | I93: 0
A94: ED_EBS752_00009 | D94: 0 | E94: 0 | F94: 0 | G94: 0 | H94: 0 | I94: 0
A95: ED_EBS752_00010 | D95: 0 | E95: 0 | F95: 0 | G95: 0 | H95: 0 | I95: 0
A96: ED_EBS752_00011 | D96: 0 | E96: 0 | F96: 0 | G96: 0 | H96: 0 | I96: 0
C97: =CONCATENATE("Adjusted forecast opex ($m, ",CRCP_y5,")") -> Adjusted forecast opex ($m, 2016-17) | D97: =+D85-SUM(D87:D96) -> 96.99421238 | E97: 91.00619614 | F97: 91.38054571 | G97: 92.52843889 | H97: 92.5961947 | I97: 464.5055878

Sheet 7.6 Indicative bill impact
B1: =(LOOKUP(dms_Model,dms_Model_List,dms_Worksheet_List)) -> REGULATORY REPORTING STATEMENT
B2: =dms_TradingName -> AusNet (T)
B3: =CONCATENATE(FRCP_y1," to ",FRCP_y5) -> 2017-18 to 2021-22
B4: 7.6 INDICATIVE IMPACT ON TRANSMISSION CHARGES AND ELECTRICITY BILLS
B7: Table 7.6.1 Indicative impact of the revenue proposal on the average residential electricity bills
B8: Instructions The TNSP is required to populate all input cells (yellow) in table 7.6.1 presented below. Transmission pricing impact should refer to AusNet related transmission costs only.
B10: Transmission costs as a proportion of a typical residential customer's electricity bill (per cent) | C10: 0.05
B11: Transmission costs as a proportion of a typical business customer's electricity bill (per cent) | C11: 0.04
B12: Source data: | C12: Based on customers located in AusNet Services' distribution network. Customer numbers and energy: AusNet Services' billing data, distribution Regulatory Accounts DUoS/ TUoS: AusNet Services (distribution) pricing data Proportion of bill attributed to network costs: AusNet Services (distribution) assumption, as per annual pricing proposal Proportion of TUoS attributable to AusNet Services (not AEMO): AEMO revenue data, AusNet Services' transmission pricing data Expected inflation: 2.35% (see transmission Revenue Proposal)
B14: Typical electricity bill - Residential customer
B15: Tariff type | C15: Description of tariff type | D15: =CONCATENATE("Annual bill amount ($", CRCP_y5,")") -> Annual bill amount ($2016-17)
B16: Residential | C16: Residential | D16: 1531
B19: <NSP to insert any additional items>
B20: <NSP to insert any additional items>
B21: Source data: | C21: Victorian DNSPs reset RIN data. Calculated as the average of reported typical residential customer electricity bills weighted by reported residential customer numbers for 2015. This has been escalated into real $2016-17 using AusNet Services' expected inflation of 2.35%.
B23: Typical electricity bill - Business customer
B24: Tariff type | C24: Description of tariff type | D24: =CONCATENATE("Annual bill amount ($", CRCP_y5,")") -> Annual bill amount ($2016-17)
B25: Small I & C | C25: Small I & C | D25: 6714
B26: Large I & C | C26: Large I & C | D26: 33255
B27: <NSP to insert any additional items>
B28: <NSP to insert any additional items>
B29: Source data: | C29: Based on small and large I&C customers located in AusNet Services' distribution network . Customer numbers and energy: AusNet Services' billing data, distribution Regulatory Accounts DUoS/ TUoS: AusNet Services (distribution) pricing data Proportion of bill attributed to network costs: AusNet Services (distribution) assumption, as per annual pricing proposal Proportion of TUoS attributable to AusNet Services (not AEMO): AEMO revenue data, AusNet Services' transmission pricing data Expected inflation: 2.35% (see transmission Revenue Proposal)
B31: Indicative annual average transmission price impact as shown in the proposed PTRM (per cent)
C32: =CRCP_y5 -> 2016-17 | D32: =FRCP_y1 -> 2017-18 | E32: =FRCP_y2 -> 2018-19 | F32: =FRCP_y3 -> 2019-20 | G32: =FRCP_y4 -> 2020-21 | H32: =FRCP_y5 -> 2021-22 | I32: Average
B33: Annual price path (per cent, nominal) | D33: 0.1293457742 | E33: -0.01315146087 | F33: -0.01428724514 | G33: -0.01158878627 | H33: -0.005081862144 | I33: =+AVERAGE(D33:H33) -> 0.01704728396
B34: Annual price path (per cent, $2013-14) | D34: 0.1110140425 | E34: -0.02917015334 | F34: -0.03028750137 | G34: -0.02763284434 | H34: -0.02123154171 | I34: =+AVERAGE(D34:H34) -> 0.0005384003511
B37: Transmission bill component - Residential customer | C37: =CONCATENATE("Real ", CRCP_y5) -> Real 2016-17
B38: Tariff type | C38: =CRCP_y5 -> 2016-17 | D38: =FRCP_y1 -> 2017-18 | E38: =FRCP_y2 -> 2018-19 | F38: =FRCP_y3 -> 2019-20 | G38: =FRCP_y4 -> 2020-21 | H38: =FRCP_y5 -> 2021-22 | I38: =CONCATENATE("Total ",FRCP_y1," to ", FRCP_y5) -> Total 2017-18 to 2021-22 | J38: Annual average | K38: Annual impact on customer bill (%)
B40: =+B16 -> Residential | C40: =+D16*$C$10 -> 76.55 | D40: =+C40*(1+IF($C$37="Nominal",D$33,D$34)) -> 85.04812495 | E40: =+D40*(1+IF($C$37="Nominal",E$33,E$34)) -> 82.56725811 | F40: =+E40*(1+IF($C$37="Nominal",F$33,F$34)) -> 80.06650217 | G40: =+F40*(1+IF($C$37="Nominal",G$33,G$34)) -> 77.85403697 | H40: =+G40*(1+IF($C$37="Nominal",H$33,H$34)) -> 76.20107574 | I40: =+SUM(D40:H40) -> 401.7369979 | J40: =+AVERAGE(D40:H40) -> 80.34739959
B41: Annual change | D41: =+D40-C40 -> 8.498124954 | E41: =+E40-D40 -> -2.480866846 | F41: =+F40-E40 -> -2.500755943 | G41: =+G40-F40 -> -2.212465191 | H41: =+H40-G40 -> -1.652961233 | I41: =+SUM(D41:H41) -> -0.3489242591 | J41: =+AVERAGE(D41:H41) -> -0.06978485183 | K41: =+J41/D16 -> -4.558122262e-05
B43: =+B17 -> 0 | C43: =+D17*$C$10 -> 0 | D43: =+C43*(1+IF($C$37="Nominal",D$33,D$34)) -> 0 | E43: =+D43*(1+IF($C$37="Nominal",E$33,E$34)) -> 0 | F43: =+E43*(1+IF($C$37="Nominal",F$33,F$34)) -> 0 | G43: =+F43*(1+IF($C$37="Nominal",G$33,G$34)) -> 0 | H43: =+G43*(1+IF($C$37="Nominal",H$33,H$34)) -> 0 | I43: 0 | J43: =+AVERAGE(D43:H43) -> 0
B44: Annual change | D44: =+D43-C43 -> 0 | E44: =+E43-D43 -> 0 | F44: =+F43-E43 -> 0 | G44: =+G43-F43 -> 0 | H44: =+H43-G43 -> 0 | I44: 0 | J44: 0 | K44: =+J44/D17 -> 
B46: =+B18 -> 0 | C46: =+D18*$C$10 -> 0 | D46: =+C46*(1+IF($C$37="Nominal",D$33,D$34)) -> 0 | E46: =+D46*(1+IF($C$37="Nominal",E$33,E$34)) -> 0 | F46: =+E46*(1+IF($C$37="Nominal",F$33,F$34)) -> 0 | G46: =+F46*(1+IF($C$37="Nominal",G$33,G$34)) -> 0 | H46: =+G46*(1+IF($C$37="Nominal",H$33,H$34)) -> 0 | I46: 0 | J46: 0
B47: Annual change | D47: =+D46-C46 -> 0 | E47: =+E46-D46 -> 0 | F47: =+F46-E46 -> 0 | G47: =+G46-F46 -> 0 | H47: =+H46-G46 -> 0 | I47: 0 | J47: 0 | K47: =+J47/D18 -> 
B49: =+B19 -> <NSP to insert any additional items> | C49: =+D19*$C$10 -> 0 | D49: =+C49*(1+IF($C$37="Nominal",D$33,D$34)) -> 0 | E49: =+D49*(1+IF($C$37="Nominal",E$33,E$34)) -> 0 | F49: =+E49*(1+IF($C$37="Nominal",F$33,F$34)) -> 0 | G49: =+F49*(1+IF($C$37="Nominal",G$33,G$34)) -> 0 | H49: =+G49*(1+IF($C$37="Nominal",H$33,H$34)) -> 0 | I49: 0 | J49: 0
B50: Annual change | D50: =+D49-C49 -> 0 | E50: =+E49-D49 -> 0 | F50: =+F49-E49 -> 0 | G50: =+G49-F49 -> 0 | H50: =+H49-G49 -> 0 | I50: 0 | J50: 0 | K50: =+J50/D19 -> 
B52: =+B20 -> <NSP to insert any additional items> | C52: =+D20*$C$10 -> 0 | D52: =+C52*(1+IF($C$37="Nominal",D$33,D$34)) -> 0 | E52: =+D52*(1+IF($C$37="Nominal",E$33,E$34)) -> 0 | F52: =+E52*(1+IF($C$37="Nominal",F$33,F$34)) -> 0 | G52: =+F52*(1+IF($C$37="Nominal",G$33,G$34)) -> 0 | H52: =+G52*(1+IF($C$37="Nominal",H$33,H$34)) -> 0 | I52: =+SUM(D52:H52) -> 0 | J52: =+AVERAGE(D52:H52) -> 0
B53: Annual change | D53: =+D52-C52 -> 0 | E53: =+E52-D52 -> 0 | F53: =+F52-E52 -> 0 | G53: =+G52-F52 -> 0 | H53: =+H52-G52 -> 0 | I53: =+SUM(D53:H53) -> 0 | J53: =+AVERAGE(D53:H53) -> 0 | K53: =+J53/D20 -> 
B56: Transmission bill component - Business customer | C56: =CONCATENATE("Real ", CRCP_y5) -> Real 2016-17
B57: Tariff type | C57: =CRCP_y5 -> 2016-17 | D57: =FRCP_y1 -> 2017-18 | E57: =FRCP_y2 -> 2018-19 | F57: =FRCP_y3 -> 2019-20 | G57: =FRCP_y4 -> 2020-21 | H57: =FRCP_y5 -> 2021-22 | I57: =CONCATENATE("Total ",FRCP_y1," to ", FRCP_y5) -> Total 2017-18 to 2021-22 | J57: Annual average | K57: Annual impact on customer bill (%)
B59: =+B25 -> Small I & C | C59: =+D25*$C$11 -> 268.56 | D59: =+C59*(1+IF($C$56="Nominal",D$33,D$34)) -> 298.3739313 | E59: =+D59*(1+IF(D56="Nominal",E$33,E$34)) -> 289.6703179 | F59: =+E59*(1+IF(E56="Nominal",F$33,F$34)) -> 280.8969278 | G59: =+F59*(1+IF(F56="Nominal",G$33,G$34)) -> 273.1349467 | H59: =+G59*(1+IF(G56="Nominal",H$33,H$34)) -> 267.3358707 | I59: =+SUM(D59:H59) -> 1409.411994 | J59: =+AVERAGE(D59:H59) -> 281.8823989
B60: Annual change | D60: =+D59-C59 -> 29.81393126 | E60: =+E59-D59 -> -8.703613327 | F60: =+F59-E59 -> -8.77339015 | G60: =+G59-F59 -> -7.761981082 | H60: =+H59-G59 -> -5.799076012 | I60: =+SUM(D60:H60) -> -1.224129315 | J60: =+AVERAGE(D60:H60) -> -0.2448258629 | K60: =+J60/D25 -> -3.646497809e-05
B62: =+B26 -> Large I & C | C62: =+D26*$C$11 -> 1330.2 | D62: =+C62*(1+IF(C59="Nominal",D$33,D$34)) -> 1477.870879 | E62: =+D62*(1+IF(D59="Nominal",E$33,E$34)) -> 1434.761159 | F62: =+E62*(1+IF(E59="Nominal",F$33,F$34)) -> 1391.305829 | G62: =+F62*(1+IF(F59="Nominal",G$33,G$34)) -> 1352.860091 | H62: =+G62*(1+IF(G59="Nominal",H$33,H$34)) -> 1324.136786 | I62: 6980.934744 | J62: 1396.186949
B63: Annual change | D63: =+D62-C62 -> 147.6708793 | E63: =+E62-D62 -> -43.10972017 | F63: =+F62-E62 -> -43.45533057 | G63: =+G62-F62 -> -38.4457374 | H63: =+H62-G62 -> -28.72330545 | I63: -6.063214233 | J63: -1.212642847 | K63: =+J63/D26 -> -3.646497809e-05
B65: =+B27 -> <NSP to insert any additional items> | C65: =+D27*$C$11 -> 0 | D65: =+C65*(1+IF(C62="Nominal",D$33,D$34)) -> 0 | E65: =+D65*(1+IF(D62="Nominal",E$33,E$34)) -> 0 | F65: =+E65*(1+IF(E62="Nominal",F$33,F$34)) -> 0 | G65: =+F65*(1+IF(F62="Nominal",G$33,G$34)) -> 0 | H65: =+G65*(1+IF(G62="Nominal",H$33,H$34)) -> 0 | I65: 0 | J65: 0
B66: Annual change | D66: =+D65-C65 -> 0 | E66: =+E65-D65 -> 0 | F66: =+F65-E65 -> 0 | G66: =+G65-F65 -> 0 | H66: =+H65-G65 -> 0 | I66: 0 | J66: 0 | K66: =+J66/D27 -> 
B68: =+B28 -> <NSP to insert any additional items> | C68: =+D28*$C$11 -> 0 | D68: =+C68*(1+IF(C65="Nominal",D$33,D$34)) -> 0 | E68: =+D68*(1+IF(D65="Nominal",E$33,E$34)) -> 0 | F68: =+E68*(1+IF(E65="Nominal",F$33,F$34)) -> 0 | G68: =+F68*(1+IF(F65="Nominal",G$33,G$34)) -> 0 | H68: =+G68*(1+IF(G65="Nominal",H$33,H$34)) -> 0 | I68: =+SUM(D68:H68) -> 0 | J68: =+AVERAGE(D68:H68) -> 0
B69: Annual change | D69: =+D68-C68 -> 0 | E69: =+E68-D68 -> 0 | F69: =+F68-E68 -> 0 | G69: =+G68-F68 -> 0 | H69: =+H68-G68 -> 0 | I69: =+SUM(D69:H69) -> 0 | J69: =+AVERAGE(D69:H69) -> 0 | K69: =+J69/D28 -> 

Sheet 7.7 STPIS
B1: =(LOOKUP(dms_Model,dms_Model_List,dms_Worksheet_List)) -> REGULATORY REPORTING STATEMENT
B2: =dms_TradingName -> AusNet (T)
B3: =CONCATENATE(FRCP_y1," to ",FRCP_y5) -> 2017-18 to 2021-22
B4: 7.7 SERVICE TARGET PERFORMANCE INCENTIVE SCHEME (STPIS)
B7: Instructions
B8: =dms_TradingName&" is required to provide the performance actuals for the most recent five years, and the proposed caps, collars and targets for the next regulatory control period for the parameters under the service component of the STPIS in table 7.7.1 below." -> AusNet (T) is required to provide the performance actuals for the most recent five years, and the proposed caps, collars and targets for the next regulatory control period for the parameters under the service component of the STPIS in table 7.7.1 below.
B10: Table 7.7.1 Historical performance and proposed caps, collars and targets for the service component of the STPIS
B11: Parameter | C11: Performance actuals | H11: Average of actual performance | I11: Collar | J11: Target | K11: Cap | L11: Weighting (% of MAR)
C12: =LEFT(PRCP_y3,2)&RIGHT(PRCP_y3,2) -> 2010 | D12: =(LEFT(PRCP_y4,2)&RIGHT(PRCP_y4,2)) -> 2011 | E12: =LEFT(PRCP_y5,2)&RIGHT(PRCP_y5,2) -> 2012 | F12: =(LEFT(CRCP_y1,2)&RIGHT(CRCP_y1,2)) -> 2013 | G12: =(LEFT(CRCP_y2,2)&RIGHT(CRCP_y2,2)) -> 2014
B13: Unplanned circuit outage event rate (per cent):
B14: Transmission line outage - fault | C14: Refer to unlocked sheet. | H14: =+AVERAGE(C14:G14) ->  | L14: 0.002
B15: Transformer outage – fault | H15: =+AVERAGE(C15:G15) ->  | L15: 0.002
B16: Reactive plant – fault | L16: 0.001
B17: Transmission line outage – forced outage | L17: 0.001
B18: Transformer outage – forced outage | L18: 0.001
B19: Reactive plant – forced outage | L19: 0.0005
B20: Loss of supply event frequency (minutes):
B21: > (x) system minutes | L21: 0.0015
B22: > (y) system minutes | L22: 0.0015
B23: Average outage duration (minutes):
B24: Proper operation of equipment (number of events):
B25: Failure of protection system | L25: 0
B26: Material failure of SCADA | L26: 0
B27: Incorrect operational isolation of primary or secondary equipment | L27: 0
B29: Instructions
B30: =dms_TradingName&" is required to provide a list of proposed priority projects for the network capability incentive parameter including a brief description and the cost for each proposed project in table 7.7.2 below." -> AusNet (T) is required to provide a list of proposed priority projects for the network capability incentive parameter including a brief description and the cost for each proposed project in table 7.7.2 below.
B32: Table 7.7.2 - Proposed priority projects for the network capability incentive parameter
B33: Project ranking | C33: Project/ Injection Point | D33: Description | E33: =CONCATENATE(("If applicable, the present value of quantified benefits associated with the project ($million, "),CRCP_y5) -> If applicable, the present value of quantified benefits associated with the project ($million, 2016-17 | F33: =CONCATENATE(("Project cost ($million, "),FRCP_y1) -> Project cost ($million, 2017-18 | N33: =CONCATENATE("Total proposed MAR for the ",FRCP_y1," to ",FRCP_y5," regulatory control period ($million, ",CRCP_y5) -> Total proposed MAR for the 2017-18 to 2021-22 regulatory control period ($million, 2016-17 | O33: Project cost as a proportion of the MAR
F34: =FRCP_y1 -> 2017-18 | G34: =FRCP_y2 -> 2018-19 | H34: =FRCP_y3 -> 2019-20 | I34: =FRCP_y4 -> 2020-21 | J34: =FRCP_y5 -> 2021-22 | K34: Opex | L34: Capex | M34: Total cost
B35: 1 | C35: Hazelwood to Jeeralang 220 kV No. 4 line | D35: Replace the existing interplant connections of the Hazelwood to Jeeralang 220 kV No.4 line at Hazelwood power station | E35: 1.987354066 | F35: 0.107078 | G35: 0 | H35: 0 | I35: 0 | J35: 0 | K35: 0 | L35: 0.107078 | M35: =+SUM(K35:L35) -> 0.107078 | N35: 2826.056895 | O35: =+M35/N35 -> 3.78895415e-05
B36: 2 | C36: South East to Heywood 275 kV No.1 and No. 2 lines | D36: Increase the operating temperature of the South East to Heywood 275 kV lines from 90°C to 100°C. | E36: 0.1684760822 | F36: 0.018138 | G36: 0 | H36: 0 | I36: 0 | J36: 0 | K36: 0 | L36: 0.018138 | M36: =+SUM(K36:L36) -> 0.018138 | N36: =+$N$35 -> 2826.056895 | O36: =+M36/N36 -> 6.418129809e-06
B37: 3 | M37: =+SUM(K37:L37) -> 0 | N37: =+$N$35 -> 2826.056895 | O37: 0
B38: 4 | M38: 0 | N38: 2826.056895 | O38: 0
B39: 5 | M39: 0 | N39: 2826.056895 | O39: 0
B40: 6 | M40: 0 | N40: 2826.056895 | O40: 0
B41: 7 | M41: 0 | N41: 2826.056895 | O41: 0
B42: 8 | M42: 0 | N42: 2826.056895 | O42: 0
B43: 9 | M43: 0 | N43: 2826.056895 | O43: 0
B44: 10 | M44: 0 | N44: 2826.056895 | O44: 0
B45: 11 | M45: 0 | N45: 2826.056895 | O45: 0
B46: 12 | M46: 0 | N46: 2826.056895 | O46: 0
B47: 13 | M47: 0 | N47: 2826.056895 | O47: 0
B48: 14 | M48: 0 | N48: 2826.056895 | O48: 0
B49: 15 | M49: 0 | N49: 2826.056895 | O49: 0
B50: 16 | M50: 0 | N50: 2826.056895 | O50: 0
B51: <NSP to insert additional lines if required> | M51: 0 | N51: 2826.056895 | O51: 0
B54: Instructions
B55: =dms_TradingName&" is required to provide the following information in table 7.7.3 below." -> AusNet (T) is required to provide the following information in table 7.7.3 below.
B57: Table 7.7.3 – Limits identified for proposed priority projects
B58: Limit identification | C58: Define limit | D58: Reason for the limit | E58: Is limit addressed by priority project
B59: HWPS - JLTS No.4 220 kV line | C59: 23 MVA lower than line short term rating | D59: Interplant connection at HWPS with lower rating than line short term rating | E59: Yes
B60: SESS - HYTS No.1 275 kV line | C60: The short term (15 min) rating of this line is 58MVA lower than the short term rating of the Tailem Bend to South East 275 kV line at 35°C | D60: The South East to Heywood lines will become the limiting elements constraining flows on the interconnector between Victoria and South Australia following the interconnector upgrade project and ElectraNet’s proposed NCIPAP project to uprate the 275 kV lines between South East and Tailem Bend to 120°C. | E60: Yes
B61: SESS - HYTS No.2 275 kV line | C61: The short term (15 min) rating of this line is 58MVA lower than the short term rating of the Tailem Bend to South East 275 kV line at 35°C | D61: The South East to Heywood lines will become the limiting elements constraining flows on the interconnector between Victoria and South Australia following the interconnector upgrade project and ElectraNet’s proposed NCIPAP project to uprate the 275 kV lines between South East and Tailem Bend to 120°C. | E61: Yes
B71: Instructions
B72: =dms_TradingName&" is required to provide performance data in accordance with Appendix C of the STPIS for the preceding six calendar years in table 7.7.4 below. "&dms_TradingName&" is also required to provide relevant information in the MIC workbook attached to Appendix G of the Notice." -> AusNet (T) is required to provide performance data in accordance with Appendix C of the STPIS for the preceding six calendar years in table 7.7.4 below. AusNet (T) is also required to provide relevant information in the MIC workbook attached to Appendix G of the Notice.
B74: Table 7.7.4 - Market impact component
B75: Year | C75: Month | D75: Market impact parameter count (DI) (without exclusions) | E75: Market impact parameter count (DI) (with exclusions) | F75: Market impact parameters (Hrs)
B76: =LEFT(PRCP_y2,4) -> 2008 | C76: January | F76: =+E76/12 -> 0
B77: 2008 | C77: February | F77: =+E77/12 -> 0
B78: 2008 | C78: March | F78: 0
B79: 2008 | C79: April | F79: 0
B80: 2008 | C80: May | F80: 0
B81: 2008 | C81: June | F81: 0
B82: 2008 | C82: July | F82: 0
B83: 2008 | C83: August | F83: 0
B84: 2008 | C84: September | F84: 0
B85: 2008 | C85: October | F85: 0
B86: 2008 | C86: November | F86: 0
B87: 2008 | C87: December | F87: 0
B88: =CONCATENATE("Total ",LEFT(PRCP_y2,4)) -> Total 2008 | D88: =+SUM(D76:D87) -> 0 | E88: =+SUM(E76:E87) -> 0 | F88: =+SUM(F76:F87) -> 0
B89: =LEFT(PRCP_y3,4) -> 2009 | C89: January | D89: Refer to unlocked sheet | F89: =+E89/12 -> 0
B90: 2009 | C90: February | F90: =+E90/12 -> 0
B91: 2009 | C91: March | F91: 0
B92: 2009 | C92: April | F92: 0
B93: 2009 | C93: May | F93: 0
B94: 2009 | C94: June | F94: 0
B95: 2009 | C95: July | F95: 0
B96: 2009 | C96: August | F96: 0
B97: 2009 | C97: September | F97: 0
B98: 2009 | C98: October | F98: 0
B99: 2009 | C99: November | F99: 0
B100: 2009 | C100: December | F100: 0
B101: =CONCATENATE("Total ", LEFT(PRCP_y3,4)) -> Total 2009 | D101: =+SUM(D89:D100) -> 0 | E101: =+SUM(E89:E100) -> 0 | F101: =+SUM(F89:F100) -> 0
B102: =LEFT(PRCP_y4,4) -> 2010 | C102: January | F102: =+E102/12 -> 0
B103: 2010 | C103: February | F103: =+E103/12 -> 0
B104: 2010 | C104: March | F104: 0
B105: 2010 | C105: April | F105: 0
B106: 2010 | C106: May | F106: 0
B107: 2010 | C107: June | F107: 0
B108: 2010 | C108: July | F108: 0
B109: 2010 | C109: August | F109: 0
B110: 2010 | C110: September | F110: 0
B111: 2010 | C111: October | F111: 0
B112: 2010 | C112: November | F112: 0
B113: 2010 | C113: December | F113: 0
B114: =CONCATENATE("Total ", LEFT(PRCP_y4,4)) -> Total 2010 | D114: =+SUM(D102:D113) -> 0 | E114: =+SUM(E102:E113) -> 0 | F114: =+SUM(F102:F113) -> 0
B115: =LEFT(PRCP_y5,4) -> 2011 | C115: January | F115: =+E115/12 -> 0
B116: 2011 | C116: February | F116: =+E116/12 -> 0
B117: 2011 | C117: March | F117: 0
B118: 2011 | C118: April | F118: 0
B119: 2011 | C119: May | F119: 0
B120: 2011 | C120: June | F120: 0
B121: 2011 | C121: July | F121: 0
B122: 2011 | C122: August | F122: 0
B123: 2011 | C123: September | F123: 0
B124: 2011 | C124: October | F124: 0
B125: 2011 | C125: November | F125: 0
B126: 2011 | C126: December | F126: 0
B127: =CONCATENATE("Total ", LEFT(PRCP_y5,4)) -> Total 2011 | D127: =+SUM(D115:D126) -> 0 | E127: =+SUM(E115:E126) -> 0 | F127: =+SUM(F115:F126) -> 0
B128: =LEFT(CRCP_y1,4) -> 2012 | C128: January | F128: =+E128/12 -> 0
B129: 2012 | C129: February | F129: =+E129/12 -> 0
B130: 2012 | C130: March | F130: 0
B131: 2012 | C131: April | F131: 0
B132: 2012 | C132: May | F132: 0
B133: 2012 | C133: June | F133: 0
B134: 2012 | C134: July | F134: 0
B135: 2012 | C135: August | F135: 0
B136: 2012 | C136: September | F136: 0
B137: 2012 | C137: October | F137: 0
B138: 2012 | C138: November | F138: 0
B139: 2012 | C139: December | F139: 0
B140: =CONCATENATE("Total ", LEFT(CRCP_y1,4)) -> Total 2012 | D140: =+SUM(D128:D139) -> 0 | E140: =+SUM(E128:E139) -> 0 | F140: =+SUM(F128:F139) -> 0
B141: =LEFT(CRCP_y2,4) -> 2013 | C141: January | F141: =+E141/12 -> 0
B142: 2013 | C142: February | F142: =+E142/12 -> 0
B143: 2013 | C143: March | F143: 0
B144: 2013 | C144: April | F144: 0
B145: 2013 | C145: May | F145: 0
B146: 2013 | C146: June | F146: 0
B147: 2013 | C147: July | F147: 0
B148: 2013 | C148: August | F148: 0
B149: 2013 | C149: September | F149: 0
B150: 2013 | C150: October | F150: 0
B151: 2013 | C151: November | F151: 0
B152: 2013 | C152: December | F152: 0
B153: =CONCATENATE("Total ", LEFT(CRCP_y2,4)) -> Total 2013 | D153: =+SUM(D141:D152) -> 0 | E153: =+SUM(E141:E152) -> 0 | F153: =+SUM(F141:F152) -> 0
B154: =LEFT(CRCP_y3,4) -> 2014 | C154: January | F154: =+E154/12 -> 0
B155: 2014 | C155: February | F155: =+E155/12 -> 0
B156: 2014 | C156: March | F156: 0
B157: 2014 | C157: April | F157: 0
B158: 2014 | C158: May | F158: 0
B159: 2014 | C159: June | F159: 0
B160: 2014 | C160: July | F160: 0
B161: 2014 | C161: August | F161: 0
B162: 2014 | C162: September | F162: 0
B163: 2014 | C163: October | F163: 0
B164: 2014 | C164: November | F164: 0
B165: 2014 | C165: December | F165: 0
B166: =CONCATENATE("Total ", LEFT(CRCP_y3,4)) -> Total 2014 | D166: =+SUM(D154:D165) -> 0 | E166: =+SUM(E154:E165) -> 0 | F166: =+SUM(F154:F165) -> 0

Sheet 2.10.2, 2.17.1, 7.7.1
B2: TABLE 2.10.2 - CORPORATE OVERHEADS EXPENDITURE
E3: =CONCATENATE("EXPENDITURE Forecast ($0's. real ",dms_DollarReal,")") -> EXPENDITURE Forecast ($0's. real March 2017)
E4: =CRCP_y4 -> 2015-16 | F4: =CRCP_y5 -> 2016-17 | G4: =FRCP_y1 -> 2017-18 | H4: =FRCP_y2 -> 2018-19 | I4: =FRCP_y3 -> 2019-20 | J4: =FRCP_y4 -> 2020-21 | K4: =FRCP_y5 -> 2021-22
B5: CORPORATE OVERHEADS | C5: Total Overhead Expenditure - Prescribed Services | D5: TAXES AND CHARGES | F5: 3894825.8 | G5: 3398320.328 | H5: 3567431.4 | I5: 4152169.745 | J5: 4322466.586 | K5: 4459908.13
D6: INSURANCE | F6: 3675136.968 | G6: 3206637.038 | H6: 3366209.349 | I6: 3917965.35 | J6: 4078656.546 | K6: 4208345.658
D7: SELF-INSURANCE | F7: 1829721.098 | G7: 2717257.626 | H7: 2718608.239 | I7: 2701479.837 | J7: 2694767.81 | K7: 2684237.582
D8: OH&S | F8: 930513.2855 | G8: 937526.831 | H8: 944426.5795 | I8: 950082.1415 | J8: 928190.5399 | K8: 918015.882
D9: FINANCE | F9: 5864808.952 | G9: 5896813.352 | H9: 5937432.083 | I9: 5979262.953 | J9: 5950110.266 | K9: 5951597.838
D10: HR | F10: 4613938.044 | G10: 4644278.444 | H10: 4677447.638 | I10: 4707739.665 | J10: 4638760.356 | K10: 4612168.143
D11: IT SUPPORT | F11: 1680635.913 | G11: 1730219.297 | H11: 1751361.588 | I11: 1742861.135 | J11: 1374037.957 | K11: 1157119.237
D12: OTHER | F12: 4207755.264 | G12: 4315336.146 | H12: 4364375.651 | I12: 4351488.448 | J12: 3575785.152 | K12: 3121752.994
D13: AVAILABILITY REBATE | F13: 0 | G13: 0 | H13: 0 | I13: 0 | J13: 0 | K13: 0
D14: EASEMENT TAX | F14: 114314255.1 | G14: 114314255.1 | H14: 114314255.1 | I14: 114314255.1 | J14: 114314255.1 | K14: 114314255.1
C16: Total Overhead Expenditure - Negotiated Services | D16: Total
C17: Total Overhead Expenditure - Unregulated Services | D17: Total
B22: Table 2.17.1 Forecast opex step changes
D23: Actual ($0's, nominal) | G23: =CONCATENATE("Forecast ($0's, real ", dms_DollarReal, ")") -> Forecast ($0's, real March 2017)
B24: Step change | C24: Description | D24: =CRCP_y1 -> 2012-13 | E24: =CRCP_y2 -> 2013-14 | F24: =CRCP_y3 -> 2014-15 | G24: =CRCP_y4 -> 2015-16 | H24: =CRCP_y5 -> 2016-17 | I24: =FRCP_y1 -> 2017-18 | J24: =FRCP_y2 -> 2018-19 | K24: =FRCP_y3 -> 2019-20 | L24: =FRCP_y4 -> 2020-21 | M24: =FRCP_y5 -> 2021-22
B25: AEMO Power System Security Functions Agreement | C25: As per 2014-17 determination (referred to as "AEMO operating agreement" in AER final decision) | D25: 0 | E25: 22240.1952 | F25: 30294.43746 | G25: 32092.4558 | H25: 32092.4558
B26: Transitional arrangements for the Economic Regulation of NSP’s rule change | C26: As per 2014-17 determination | D26: 324817.5113 | E26: 328357.4863 | F26: 531667.1366 | G26: 1176723.379 | H26: 855798.8212
B27: Fire services levy | C27: As per 2014-17 determination | D27: 0 | E27: 112885.44 | F27: 109308.74 | G27: 1005793.611 | H27: 1005793.611
B28: Controller simulator training | C28: As per 2014-17 determination | D28: 0 | E28: 0 | F28: 0 | G28: 327984.8982 | H28: 327984.8982
B29: Security of critical infrastructure | C29: As per 2014-17 determination | D29: 0 | E29: 0 | F29: 40392.58329 | G29: 42789.94106 | H29: 42789.94106
B30: Establishment of IT security team | C30: As per 2017-22 Revenue Proposal | D30: 0 | E30: 0 | F30: 0 | G30: 0 | H30: 656000 | I30: 656000 | J30: 656000 | K30: 656000 | L30: 656000 | M30: 656000
B31: Roll out of SAIP | C31: As per 2017-22 Revenue Proposal | D31: 0 | E31: 0 | F31: 125649.64 | G31: 103454.8105 | H31: 103454.8105 | I31: 349157.2317 | J31: 349157.2317 | K31: 73168.30528 | L31: 73168.30528 | M31: 73168.30528
B32: Lease of WMTS 22kV mobile switchboard | C32: As per 2017-22 Revenue Proposal | D32: 0 | E32: 0 | F32: 0 | G32: 25886.40724 | H32: 51772.81448 | I32: 709287.5584 | J32: 300282.324 | K32: 265076.8102 | L32: 697897.5393 | M32: 51772.81448
B33: Decommissioning of synchronous condensers | C33: As per 2017-22 Revenue Proposal | D33: 0 | E33: 0 | F33: 0 | G33: 0 | H33: 0 | I33: 3989340.883 | J33: -270000 | K33: -270000 | L33: -270000 | M33: -270000
B34: Decommissioning of Morwell Power Station assets | C34: As per 2017-22 Revenue Proposal | D34: 0 | E34: 0 | F34: 0 | G34: 0 | H34: 0 | I34: 1889778.641 | J34: -2000 | K34: -2000 | L34: -2000 | M34: -2000
B35: Decommissioning of Morwell Power Station assets | C35: As per 2017-22 Revenue Proposal | D35: 0 | E35: 0 | F35: 0 | G35: 0 | H35: 0 | I35: 1891778.641 | J35: 0 | K35: 0 | L35: 0 | M35: 0
D36: 324817.5113 | E36: 463483.1215 | F36: 837312.5374 | G36: 2714725.503 | H36: 3075687.352 | I36: 7593564.314 | J36: 1033439.556 | K36: 722245.1154 | L36: 1155065.845 | M36: 508941.1198
B39: Table 7.7.1 Historical performance and proposed caps, collars and targets for the service component of the STPIS
B40: Parameter | C40: Performance actuals | H40: Average of actual performance | I40: Collar | J40: Target | K40: Cap | L40: Weighting (% of MAR)
C41: 2011 | D41: 2012 | E41: 2013 | F41: 2014 | G41: 2015
B42: Unplanned circuit outage event rate (per cent):
B43: Transmission line outage - fault | C43: 0.2437 | D43: 0.325 | E43: 0.20661 | F43: 0.305785124 | G43: 0.1900826446 | H43: =+AVERAGE(C43:G43) -> 0.2542355537 | I43: 0.3381 | J43: 0.2542355537 | K43: 0.1597 | L43: 0.002
B44: Transformer outage – fault | C44: 0.119047619 | D44: 0.2125984252 | E44: 0.3125 | F44: 0.2283464567 | G44: 0.1428571429 | H44: =+AVERAGE(C44:G44) -> 0.2030699288 | I44: 0.3177 | J44: 0.2030699288 | K44: 0.0916 | L44: 0.002
B45: Reactive plant – fault | C45: 0.34286 | D45: 0.45714 | E45: 0.47143 | F45: 0.2571428571 | G45: 0.1857142857 | H45: 0.3428574286 | I45: 0.6117 | J45: 0.3428574286 | K45: 0.184 | L45: 0.001
B46: Transmission line outage – forced outage | C46: 0.16807 | D46: 0.14167 | E46: 0.12397 | F46: 0.1570247934 | G46: 0.1570247934 | H46: 0.1495519174 | I46: 0.1705 | J46: 0.1495519174 | K46: 0.1233 | L46: 0.001
B47: Transformer outage – forced outage | C47: 0.04761904762 | D47: 0.1338582677 | E47: 0.109375 | F47: 0.1181102362 | G47: 0.1111111111 | H47: 0.1040147325 | I47: 0.144 | J47: 0.1040147325 | K47: 0.061 | L47: 0.001
B48: Reactive plant – forced outage | C48: 0.22857 | D48: 0.22857 | E48: 0.35714 | F48: 0.3857142857 | G48: 0.3428571429 | H48: 0.3085702857 | I48: 0.4068 | J48: 0.3085702857 | K48: 0.1989 | L48: 0.0005
B49: Loss of supply event frequency (minutes):
B50: > (x) system minutes | C50: 0 | D50: 2 | E50: 5 | F50: 3 | G50: 2 | H50: 2.4 | I50: 5 | J50: 2 | K50: 0 | L50: 0.0015
B51: > (y) system minutes | C51: 0 | D51: 1 | E51: 1 | F51: 0 | G51: 1 | H51: 0.6 | I51: 2 | J51: 1 | K51: 0 | L51: 0.0015
B52: Average outage duration (minutes): | C52: 4 | D52: 230 | E52: 19.9 | F52: 24 | G52: 97.5 | H52: 75.08 | I52: 334.2004 | J52: 75.08 | K52: 3.3786
B53: Proper operation of equipment (number of events):
B54: Failure of protection system | C54: 23 | D54: 33 | E54: 41 | F54: 33 | G54: 30 | H54: 32 | I54: 42 | J54: 32 | K54: 23 | L54: 0
B55: Material failure of SCADA | C55: 0 | D55: 1 | E55: 6 | F55: 2 | G55: 0 | H55: 1.8 | I55: 4 | J55: 1.8 | K55: 0 | L55: 0
B56: Incorrect operational isolation of primary or secondary equipment | C56: 5 | D56: 8 | E56: 4 | F56: 6 | G56: 5 | H56: 5.6 | I56: 10 | J56: 5.6 | K56: 2 | L56: 0
B59: Table 7.7.4 - Market impact component
B60: Year | C60: Month | D60: Market impact parameter count (DI) (without exclusions) | E60: Market impact parameter count (DI) (with exclusions) | F60: Market impact parameters (Hrs)
B61: =LEFT(PRCP_y2,4) -> 2008 | C61: January
B62: 2008 | C62: February
B63: 2008 | C63: March
B64: 2008 | C64: April
B65: 2008 | C65: May
B66: 2008 | C66: June
B67: 2008 | C67: July
B68: 2008 | C68: August
B69: 2008 | C69: September
B70: 2008 | C70: October
B71: 2008 | C71: November
B72: 2008 | C72: December
B73: =CONCATENATE("Total ",LEFT(PRCP_y2,4)) -> Total 2008 | D73: =+SUM(D61:D72) -> 0 | E73: =+SUM(E61:E72) -> 0 | F73: =+SUM(F61:F72) -> 0
B74: =LEFT(PRCP_y3,4) -> 2009 | C74: January | D74: 135 | E74: 135 | F74: =+E74/12 -> 11.25
B75: 2009 | C75: February | D75: 358 | E75: 82 | F75: =+E75/12 -> 6.833333333
B76: 2009 | C76: March | D76: 46 | E76: 24 | F76: 2
B77: 2009 | C77: April | D77: 290 | E77: 290 | F77: 24.16666667
B78: 2009 | C78: May | D78: 335 | E78: 313 | F78: 26.08333333
B79: 2009 | C79: June | D79: 41 | E79: 22 | F79: 1.833333333
B80: 2009 | C80: July | D80: 25 | E80: 25 | F80: 2.083333333
B81: 2009 | C81: August | D81: 1 | E81: 1 | F81: 0.08333333333
B82: 2009 | C82: September | D82: 259 | E82: 260 | F82: 21.66666667
B83: 2009 | C83: October | D83: 82 | E83: 82 | F83: 6.833333333
B84: 2009 | C84: November | D84: 149 | E84: 149 | F84: 12.41666667
B85: 2009 | C85: December | D85: 34 | E85: 34 | F85: 2.833333333
B86: =CONCATENATE("Total ", LEFT(PRCP_y3,4)) -> Total 2009 | D86: =+SUM(D74:D85) -> 1755 | E86: =+SUM(E74:E85) -> 1417 | F86: =+SUM(F74:F85) -> 118.0833333
B87: =LEFT(PRCP_y4,4) -> 2010 | C87: January | D87: 375 | E87: 314 | F87: =+E87/12 -> 26.16666667
B88: 2010 | C88: February | D88: 264 | E88: 264 | F88: =+E88/12 -> 22
B89: 2010 | C89: March | D89: 229 | E89: 229 | F89: 19.08333333
B90: 2010 | C90: April | D90: 206 | E90: 206 | F90: 17.16666667
B91: 2010 | C91: May | D91: 0 | E91: 0 | F91: 0
B92: 2010 | C92: June | D92: 322 | E92: 321 | F92: 26.75
B93: 2010 | C93: July | D93: 117 | E93: 45 | F93: 3.75
B94: 2010 | C94: August | D94: 8 | E94: 3 | F94: 0.25
B95: 2010 | C95: September | D95: 157 | E95: 157 | F95: 13.08333333
B96: 2010 | C96: October | D96: 117 | E96: 117 | F96: 9.75
B97: 2010 | C97: November | D97: 399 | E97: 398 | F97: 33.16666667
B98: 2010 | C98: December | D98: 80 | E98: 80 | F98: 6.666666667
B99: =CONCATENATE("Total ", LEFT(PRCP_y4,4)) -> Total 2010 | D99: =+SUM(D87:D98) -> 2274 | E99: =+SUM(E87:E98) -> 2134 | F99: =+SUM(F87:F98) -> 177.8333333
B100: =LEFT(PRCP_y5,4) -> 2011 | C100: January | D100: 27 | E100: 24 | F100: =+E100/12 -> 2
B101: 2011 | C101: February | D101: 524 | E101: 488 | F101: =+E101/12 -> 40.66666667
B102: 2011 | C102: March | D102: 355 | E102: 41 | F102: 3.416666667
B103: 2011 | C103: April | D103: 22 | E103: 22 | F103: 1.833333333
B104: 2011 | C104: May | D104: 583 | E104: 426 | F104: 35.5
B105: 2011 | C105: June | D105: 253 | E105: 42 | F105: 3.5
B106: 2011 | C106: July | D106: 74 | E106: 20 | F106: 1.666666667
B107: 2011 | C107: August | D107: 210 | E107: 181 | F107: 15.08333333
B108: 2011 | C108: September | D108: 410 | E108: 321 | F108: 26.75
B109: 2011 | C109: October | D109: 1081 | E109: 897 | F109: 74.75
B110: 2011 | C110: November | D110: 109 | E110: 90 | F110: 7.5
B111: 2011 | C111: December | D111: 135 | E111: 135 | F111: 11.25
B112: =CONCATENATE("Total ", LEFT(PRCP_y5,4)) -> Total 2011 | D112: =+SUM(D100:D111) -> 3783 | E112: =+SUM(E100:E111) -> 2687 | F112: =+SUM(F100:F111) -> 223.9166667
B113: =LEFT(CRCP_y1,4) -> 2012 | C113: January | D113: 326 | E113: 326 | F113: =+E113/12 -> 27.16666667
B114: 2012 | C114: February | D114: 130 | E114: 130 | F114: =+E114/12 -> 10.83333333
B115: 2012 | C115: March | D115: 281 | E115: 5 | F115: 0.4166666667
B116: 2012 | C116: April | D116: 412 | E116: 57 | F116: 4.75
B117: 2012 | C117: May | D117: 170 | E117: 124 | F117: 10.33333333
B118: 2012 | C118: June | D118: 273 | E118: 48 | F118: 4
B119: 2012 | C119: July | D119: 80 | E119: 6 | F119: 0.5
B120: 2012 | C120: August | D120: 239 | E120: 18 | F120: 1.5
B121: 2012 | C121: September | D121: 64 | E121: 8 | F121: 0.6666666667
B122: 2012 | C122: October | D122: 141 | E122: 141 | F122: 11.75
B123: 2012 | C123: November | D123: 355 | E123: 25 | F123: 2.083333333
B124: 2012 | C124: December | D124: 104 | E124: 21 | F124: 1.75
B125: =CONCATENATE("Total ", LEFT(CRCP_y1,4)) -> Total 2012 | D125: =+SUM(D113:D124) -> 2575 | E125: =+SUM(E113:E124) -> 909 | F125: =+SUM(F113:F124) -> 75.75
B126: =LEFT(CRCP_y2,4) -> 2013 | C126: January | D126: 70 | E126: 56 | F126: =+E126/12 -> 4.666666667
B127: 2013 | C127: February | D127: 98 | E127: 51 | F127: =+E127/12 -> 4.25
B128: 2013 | C128: March | D128: 967 | E128: 98 | F128: 8.166666667
B129: 2013 | C129: April | D129: 105 | E129: 105 | F129: 8.75
B130: 2013 | C130: May | D130: 121 | F130: 0
B131: 2013 | C131: June | D131: 138 | F131: 0
B132: 2013 | C132: July | D132: 86 | E132: 0 | F132: 0
B133: 2013 | C133: August | D133: 119 | E133: 12 | F133: 1
B134: 2013 | C134: September | D134: 161 | E134: 151 | F134: 12.58333333
B135: 2013 | C135: October | D135: 283 | E135: 270 | F135: 22.5
B136: 2013 | C136: November | D136: 28 | F136: 0
B137: 2013 | C137: December | D137: 14 | E137: 2 | F137: =+E137/12 -> 0.1666666667
B138: =CONCATENATE("Total ", LEFT(CRCP_y2,4)) -> Total 2013 | D138: =+SUM(D126:D137) -> 2190 | E138: =+SUM(E126:E137) -> 745 | F138: =+SUM(F126:F137) -> 62.08333333
B139: =LEFT(CRCP_y3,4) -> 2014 | C139: January | D139: 86 | E139: 78 | F139: =+E139/12 -> 6.5
B140: 2014 | C140: February | D140: 0 | E140: 0 | F140: =+E140/12 -> 0
B141: 2014 | C141: March | D141: 8 | E141: 0 | F141: 0
B142: 2014 | C142: April | D142: 44 | E142: 17 | F142: 1.416666667
B143: 2014 | C143: May | D143: 124 | E143: 111 | F143: 9.25
B144: 2014 | C144: June | D144: 111 | E144: 96 | F144: 8
B145: 2014 | C145: July | D145: 67 | E145: 50 | F145: 4.166666667
B146: 2014 | C146: August | D146: 37 | E146: 37 | F146: 3.083333333
B147: 2014 | C147: September | D147: 227 | E147: 169 | F147: 14.08333333
B148: 2014 | C148: October | D148: 173.5 | E148: 172.5 | F148: 14.375
B149: 2014 | C149: November | D149: 80 | E149: 75 | F149: 6.25
B150: 2014 | C150: December | D150: 61 | E150: 46 | F150: 3.833333333
B151: =CONCATENATE("Total ", LEFT(CRCP_y3,4)) -> Total 2014 | D151: =+SUM(D139:D150) -> 1018.5 | E151: =+SUM(E139:E150) -> 851.5 | F151: =+SUM(F139:F150) -> 70.95833333
B152: =LEFT(CRCP_y4,4) -> 2015 | C152: January | D152: 220 | E152: 0 | F152: =+E152/12 -> 0
B153: 2015 | C153: February | D153: 253 | E153: 185 | F153: =+E153/12 -> 15.41666667
B154: 2015 | C154: March | D154: 95 | E154: 18 | F154: 1.5
B155: 2015 | C155: April | D155: 594 | E155: 103 | F155: 8.583333333
B156: 2015 | C156: May | D156: 354 | E156: 92.49 | F156: 7.7075
B157: 2015 | C157: June | D157: 24 | E157: 0 | F157: 0
B158: 2015 | C158: July | D158: 1171 | E158: 0 | F158: 0
B159: 2015 | C159: August | D159: 430 | E159: 0 | F159: 0
B160: 2015 | C160: September | D160: 939 | E160: 46 | F160: 3.833333333
B161: 2015 | C161: October | D161: 722 | E161: 253 | F161: 21.08333333
B162: 2015 | C162: November | D162: 427 | E162: 119 | F162: 9.916666667
B163: 2015 | C163: December | D163: 518 | E163: 150 | F163: 12.5
B164: =CONCATENATE("Total ", LEFT(CRCP_y4,4)) -> Total 2015 | D164: =+SUM(D152:D163) -> 5747 | E164: =+SUM(E152:E163) -> 966.49 | F164: =+SUM(F152:F163) -> 80.54083333

Sheet Unprotected 2.2 Repex
B1: =(LOOKUP(dms_Model,dms_Model_List,dms_Worksheet_List)) -> REGULATORY REPORTING STATEMENT
B2: =dms_TradingName -> AusNet (T)
B3: =CONCATENATE(FRCP_y1," to ",FRCP_y5) -> 2017-18 to 2021-22
B4: 2.2 REPEX
B6: TABLE 2.2.1 - REPLACEMENT EXPENDITURE, VOLUMES AND ASSET FAILURES BY ASSET CATEGORY
D7: EXPENDITURE | K7: ASSET REPLACEMENTS | R7: ASSET FAILURES
D8: =CONCATENATE("Forecast ($0's. real ",dms_DollarReal,")") -> Forecast ($0's. real March 2017) | K8: =CONCATENATE("Forecast ($0's. real ",dms_DollarReal,")") -> Forecast ($0's. real March 2017) | R8: =CONCATENATE("Forecast ($0's. real ",dms_DollarReal,")") -> Forecast ($0's. real March 2017)
B9: ASSET GROUP | C9: ASSET CATEGORY | D9: =CRCP_y4 -> 2015-16 | E9: =CRCP_y5 -> 2016-17 | F9: =FRCP_y1 -> 2017-18 | G9: =FRCP_y2 -> 2018-19 | H9: =FRCP_y3 -> 2019-20 | I9: =FRCP_y4 -> 2020-21 | J9: =FRCP_y5 -> 2021-22 | K9: =CRCP_y4 -> 2015-16 | L9: =CRCP_y5 -> 2016-17 | M9: =FRCP_y1 -> 2017-18 | N9: =FRCP_y2 -> 2018-19 | O9: =FRCP_y3 -> 2019-20 | P9: =FRCP_y4 -> 2020-21 | Q9: =FRCP_y5 -> 2021-22 | R9: =CRCP_y4 -> 2015-16 | S9: =CRCP_y5 -> 2016-17 | T9: =FRCP_y1 -> 2017-18 | U9: =FRCP_y2 -> 2018-19 | V9: =FRCP_y3 -> 2019-20 | W9: =FRCP_y4 -> 2020-21 | X9: =FRCP_y5 -> 2021-22
B10: TRANSMISSION TOWERS Highest operating voltage; Circuit configuration | C10: < = 33 kV; Single Circuit | D10: 0 | E10: 0 | F10: 0 | G10: 0 | H10: 0 | I10: 0 | J10: 0 | K10: 0 | L10: 0 | M10: 0 | N10: 0 | O10: 0 | P10: 0 | Q10: 0 | R10: 0 | S10: 0 | T10: 0 | U10: 0 | V10: 0 | W10: 0 | X10: 0
C11: > 33 kV & < = 66 kV ; Single Circuit | D11: 0 | E11: 0 | F11: 0 | G11: 0 | H11: 0 | I11: 0 | J11: 0 | K11: 0 | L11: 0 | M11: 0 | N11: 0 | O11: 0 | P11: 0 | Q11: 0 | R11: 0 | S11: 0 | T11: 0 | U11: 0 | V11: 0 | W11: 0 | X11: 0
C12: > 66 kV & < = 132 kV ; Single Circuit | D12: 0 | E12: 0 | F12: 0 | G12: 0 | H12: 0 | I12: 0 | J12: 0 | K12: 0 | L12: 0 | M12: 0 | N12: 0 | O12: 0 | P12: 0 | Q12: 0 | R12: 0 | S12: 0 | T12: 0 | U12: 0 | V12: 0 | W12: 0 | X12: 0
C13: > 132 kV & < = 275 kV ; Single Circuit | D13: 0 | E13: 0 | F13: 0 | G13: 0 | H13: 0 | I13: 0 | J13: 0 | K13: 0 | L13: 0 | M13: 0 | N13: 0 | O13: 0 | P13: 0 | Q13: 0 | R13: 0 | S13: 0 | T13: 0 | U13: 0 | V13: 0 | W13: 0 | X13: 0
C14: > 275 kV & < = 330 kV ; Single Circuit | D14: 0 | E14: 0 | F14: 0 | G14: 0 | H14: 0 | I14: 0 | J14: 0 | K14: 0 | L14: 0 | M14: 0 | N14: 0 | O14: 0 | P14: 0 | Q14: 0 | R14: 0 | S14: 0 | T14: 0 | U14: 0 | V14: 0 | W14: 0 | X14: 0
C15: > 330 kV & < = 500 kV ; Single Circuit | D15: 0 | E15: 0 | F15: 0 | G15: 0 | H15: 0 | I15: 0 | J15: 0 | K15: 0 | L15: 0 | M15: 0 | N15: 0 | O15: 0 | P15: 0 | Q15: 0 | R15: 0 | S15: 0 | T15: 0 | U15: 0 | V15: 0 | W15: 0 | X15: 0
C16: > 500 kV ; Single Circuit | D16: 0 | E16: 0 | F16: 0 | G16: 0 | H16: 0 | I16: 0 | J16: 0 | K16: 0 | L16: 0 | M16: 0 | N16: 0 | O16: 0 | P16: 0 | Q16: 0 | R16: 0 | S16: 0 | T16: 0 | U16: 0 | V16: 0 | W16: 0 | X16: 0
C17: < = 33 kV; Multiple Circuit | D17: 0 | E17: 0 | F17: 0 | G17: 0 | H17: 0 | I17: 0 | J17: 0 | K17: 0 | L17: 0 | M17: 0 | N17: 0 | O17: 0 | P17: 0 | Q17: 0 | R17: 0 | S17: 0 | T17: 0 | U17: 0 | V17: 0 | W17: 0 | X17: 0
C18: > 33 kV & < = 66 kV ; Multiple Circuit | D18: 0 | E18: 0 | F18: 0 | G18: 0 | H18: 0 | I18: 0 | J18: 0 | K18: 0 | L18: 0 | M18: 0 | N18: 0 | O18: 0 | P18: 0 | Q18: 0 | R18: 0 | S18: 0 | T18: 0 | U18: 0 | V18: 0 | W18: 0 | X18: 0
C19: > 66 kV & < = 132 kV ; Multiple Circuit | D19: 0 | E19: 0 | F19: 0 | G19: 0 | H19: 0 | I19: 0 | J19: 0 | K19: 0 | L19: 0 | M19: 0 | N19: 0 | O19: 0 | P19: 0 | Q19: 0 | R19: 0 | S19: 0 | T19: 0 | U19: 0 | V19: 0 | W19: 0 | X19: 0
C20: > 132 kV & < = 275 kV ; Multiple Circuit | D20: 0 | E20: 0 | F20: 0 | G20: 0 | H20: 0 | I20: 0 | J20: 0 | K20: 0 | L20: 0 | M20: 0 | N20: 0 | O20: 0 | P20: 0 | Q20: 0 | R20: 0 | S20: 0 | T20: 0 | U20: 0 | V20: 0 | W20: 0 | X20: 0
C21: > 275 kV & < = 330 kV ; Multiple Circuit | D21: 0 | E21: 0 | F21: 0 | G21: 0 | H21: 0 | I21: 0 | J21: 0 | K21: 0 | L21: 0 | M21: 0 | N21: 0 | O21: 0 | P21: 0 | Q21: 0 | R21: 0 | S21: 0 | T21: 0 | U21: 0 | V21: 0 | W21: 0 | X21: 0
C22: > 330 kV & < = 500 kV ; Multiple Circuit | D22: 0 | E22: 0 | F22: 0 | G22: 0 | H22: 0 | I22: 0 | J22: 0 | K22: 0 | L22: 0 | M22: 0 | N22: 0 | O22: 0 | P22: 0 | Q22: 0 | R22: 0 | S22: 0 | T22: 0 | U22: 0 | V22: 0 | W22: 0 | X22: 0
C23: > 500 kV ; Multiple Circuit | D23: 0 | E23: 0 | F23: 0 | G23: 0 | H23: 0 | I23: 0 | J23: 0 | K23: 0 | L23: 0 | M23: 0 | N23: 0 | O23: 0 | P23: 0 | Q23: 0 | R23: 0 | S23: 0 | T23: 0 | U23: 0 | V23: 0 | W23: 0 | X23: 0
C24: Other | D24: 1981109.082 | E24: 0 | F24: 23832.23201 | G24: 3613371.436 | H24: 0 | I24: 0 | J24: 0 | K24: 0 | L24: 0 | M24: 0 | N24: 0 | O24: 0 | P24: 0 | Q24: 0 | R24: 0 | S24: 0 | T24: 0 | U24: 0 | V24: 0 | W24: 0 | X24: 0
B25: TRANSMISSION TOWER SUPPORT STRUCTURES BY: Highest operating voltage; Circuit configuration | C25: < = 33 kV; Single Circuit | D25: 0 | E25: 0 | F25: 0 | G25: 0 | H25: 0 | I25: 0 | J25: 0 | K25: 0 | L25: 0 | M25: 0 | N25: 0 | O25: 0 | P25: 0 | Q25: 0 | R25: 0 | S25: 0 | T25: 0 | U25: 0 | V25: 0 | W25: 0 | X25: 0
C26: > 33 kV & < = 66 kV ; Single Circuit | D26: 0 | E26: 0 | F26: 0 | G26: 0 | H26: 0 | I26: 0 | J26: 0 | K26: 0 | L26: 0 | M26: 0 | N26: 0 | O26: 0 | P26: 0 | Q26: 0 | R26: 0 | S26: 0 | T26: 0 | U26: 0 | V26: 0 | W26: 0 | X26: 0
C27: > 66 kV & < = 132 kV ; Single Circuit | D27: 0 | E27: 0 | F27: 0 | G27: 0 | H27: 0 | I27: 0 | J27: 0 | K27: 0 | L27: 0 | M27: 0 | N27: 0 | O27: 0 | P27: 0 | Q27: 0 | R27: 0 | S27: 0 | T27: 0 | U27: 0 | V27: 0 | W27: 0 | X27: 0
C28: > 132 kV & < = 275 kV ; Single Circuit | D28: 0 | E28: 0 | F28: 0 | G28: 0 | H28: 0 | I28: 0 | J28: 0 | K28: 0 | L28: 0 | M28: 0 | N28: 0 | O28: 0 | P28: 0 | Q28: 0 | R28: 0 | S28: 0 | T28: 0 | U28: 0 | V28: 0 | W28: 0 | X28: 0
C29: > 275 kV & < = 330 kV ; Single Circuit | D29: 0 | E29: 0 | F29: 0 | G29: 0 | H29: 0 | I29: 0 | J29: 0 | K29: 0 | L29: 0 | M29: 0 | N29: 0 | O29: 0 | P29: 0 | Q29: 0 | R29: 0 | S29: 0 | T29: 0 | U29: 0 | V29: 0 | W29: 0 | X29: 0
C30: > 330 kV & < = 500 kV ; Single Circuit | D30: 0 | E30: 0 | F30: 0 | G30: 0 | H30: 0 | I30: 0 | J30: 0 | K30: 0 | L30: 0 | M30: 0 | N30: 0 | O30: 0 | P30: 0 | Q30: 0 | R30: 0 | S30: 0 | T30: 0 | U30: 0 | V30: 0 | W30: 0 | X30: 0
C31: > 500 kV ; Single Circuit | D31: 0 | E31: 0 | F31: 0 | G31: 0 | H31: 0 | I31: 0 | J31: 0 | K31: 0 | L31: 0 | M31: 0 | N31: 0 | O31: 0 | P31: 0 | Q31: 0 | R31: 0 | S31: 0 | T31: 0 | U31: 0 | V31: 0 | W31: 0 | X31: 0
C32: < = 33 kV; Multiple Circuit | D32: 0 | E32: 0 | F32: 0 | G32: 0 | H32: 0 | I32: 0 | J32: 0 | K32: 0 | L32: 0 | M32: 0 | N32: 0 | O32: 0 | P32: 0 | Q32: 0 | R32: 0 | S32: 0 | T32: 0 | U32: 0 | V32: 0 | W32: 0 | X32: 0
C33: > 33 kV & < = 66 kV ; Multiple Circuit | D33: 0 | E33: 0 | F33: 0 | G33: 0 | H33: 0 | I33: 0 | J33: 0 | K33: 0 | L33: 0 | M33: 0 | N33: 0 | O33: 0 | P33: 0 | Q33: 0 | R33: 0 | S33: 0 | T33: 0 | U33: 0 | V33: 0 | W33: 0 | X33: 0
C34: > 66 kV & < = 132 kV ; Multiple Circuit | D34: 0 | E34: 0 | F34: 0 | G34: 0 | H34: 0 | I34: 0 | J34: 0 | K34: 0 | L34: 0 | M34: 0 | N34: 0 | O34: 0 | P34: 0 | Q34: 0 | R34: 0 | S34: 0 | T34: 0 | U34: 0 | V34: 0 | W34: 0 | X34: 0
C35: > 132 kV & < = 275 kV ; Multiple Circuit | D35: 0 | E35: 0 | F35: 0 | G35: 0 | H35: 0 | I35: 0 | J35: 0 | K35: 0 | L35: 0 | M35: 0 | N35: 0 | O35: 0 | P35: 0 | Q35: 0 | R35: 0 | S35: 0 | T35: 0 | U35: 0 | V35: 0 | W35: 0 | X35: 0
C36: > 275 kV & < = 330 kV ; Multiple Circuit | D36: 0 | E36: 0 | F36: 0 | G36: 0 | H36: 0 | I36: 0 | J36: 0 | K36: 0 | L36: 0 | M36: 0 | N36: 0 | O36: 0 | P36: 0 | Q36: 0 | R36: 0 | S36: 0 | T36: 0 | U36: 0 | V36: 0 | W36: 0 | X36: 0
C37: > 330 kV & < = 500 kV ; Multiple Circuit | D37: 0 | E37: 0 | F37: 0 | G37: 0 | H37: 0 | I37: 0 | J37: 0 | K37: 0 | L37: 0 | M37: 0 | N37: 0 | O37: 0 | P37: 0 | Q37: 0 | R37: 0 | S37: 0 | T37: 0 | U37: 0 | V37: 0 | W37: 0 | X37: 0
C38: > 500 kV ; Multiple Circuit | D38: 0 | E38: 0 | F38: 0 | G38: 0 | H38: 0 | I38: 0 | J38: 0 | K38: 0 | L38: 0 | M38: 0 | N38: 0 | O38: 0 | P38: 0 | Q38: 0 | R38: 0 | S38: 0 | T38: 0 | U38: 0 | V38: 0 | W38: 0 | X38: 0
C39: Other | D39: 0 | E39: 0 | F39: 0 | G39: 0 | H39: 0 | I39: 0 | J39: 0 | K39: 0 | L39: 0 | M39: 0 | N39: 0 | O39: 0 | P39: 0 | Q39: 0 | R39: 0 | S39: 0 | T39: 0 | U39: 0 | V39: 0 | W39: 0 | X39: 0
B40: CONDUCTORS BY: Voltage; Maximum continuous rating | C40: < = 33 kV ; < = 100 MVA | D40: 0 | E40: 0 | F40: 0 | G40: 0 | H40: 0 | I40: 0 | J40: 0 | K40: 0 | L40: 0 | M40: 0 | N40: 0 | O40: 0 | P40: 0 | Q40: 0 | R40: 0 | S40: 0 | T40: 0 | U40: 0 | V40: 0 | W40: 0 | X40: 0
C41: < = 33 kV ; > 100 MVA & < = 400 MVA | D41: 0 | E41: 0 | F41: 0 | G41: 0 | H41: 0 | I41: 0 | J41: 0 | K41: 0 | L41: 0 | M41: 0 | N41: 0 | O41: 0 | P41: 0 | Q41: 0 | R41: 0 | S41: 0 | T41: 0 | U41: 0 | V41: 0 | W41: 0 | X41: 0
C42: < = 33 kV ; > 400 MVA | D42: 0 | E42: 0 | F42: 0 | G42: 0 | H42: 0 | I42: 0 | J42: 0 | K42: 0 | L42: 0 | M42: 0 | N42: 0 | O42: 0 | P42: 0 | Q42: 0 | R42: 0 | S42: 0 | T42: 0 | U42: 0 | V42: 0 | W42: 0 | X42: 0
C43: > 33 kV & < = 66 kV ; < = 100 MVA | D43: 0 | E43: 0 | F43: 0 | G43: 0 | H43: 0 | I43: 0 | J43: 0 | K43: 0 | L43: 0 | M43: 0 | N43: 0 | O43: 0 | P43: 0 | Q43: 0 | R43: 0 | S43: 0 | T43: 0 | U43: 1 | V43: 1 | W43: 1 | X43: 1
C44: > 33 kV & < = 66 kV ; > 100 MVA & < = 400 MVA | D44: 0 | E44: 0 | F44: 0 | G44: 0 | H44: 0 | I44: 0 | J44: 0 | K44: 0 | L44: 0 | M44: 0 | N44: 0 | O44: 0 | P44: 0 | Q44: 0 | R44: 0 | S44: 0 | T44: 0 | U44: 0 | V44: 0 | W44: 0 | X44: 0
C45: > 33 kV & < = 66 kV ; > 400 MVA | D45: 0 | E45: 0 | F45: 0 | G45: 0 | H45: 0 | I45: 0 | J45: 0 | K45: 0 | L45: 0 | M45: 0 | N45: 0 | O45: 0 | P45: 0 | Q45: 0 | R45: 0 | S45: 0 | T45: 0 | U45: 0 | V45: 0 | W45: 0 | X45: 0
C46: > 66 kV & < = 132 kV ; < = 100 MVA | D46: 0 | E46: 0 | F46: 0 | G46: 0 | H46: 0 | I46: 0 | J46: 0 | K46: 0 | L46: 0 | M46: 0 | N46: 0 | O46: 0 | P46: 0 | Q46: 0 | R46: 0 | S46: 0 | T46: 0 | U46: 0 | V46: 0 | W46: 0 | X46: 0
C47: > 66 kV & < = 132 kV ; > 100 MVA & < = 400 MVA | D47: 0 | E47: 0 | F47: 0 | G47: 0 | H47: 0 | I47: 0 | J47: 0 | K47: 0 | L47: 0 | M47: 0 | N47: 0 | O47: 0 | P47: 0 | Q47: 0 | R47: 0 | S47: 0 | T47: 0 | U47: 0 | V47: 0 | W47: 0 | X47: 0
C48: > 66 kV & < = 132 kV ; > 400 MVA | D48: 0 | E48: 0 | F48: 0 | G48: 0 | H48: 0 | I48: 0 | J48: 0 | K48: 0 | L48: 0 | M48: 0 | N48: 0 | O48: 0 | P48: 0 | Q48: 0 | R48: 0 | S48: 0 | T48: 0 | U48: 0 | V48: 0 | W48: 0 | X48: 0
C49: > 132 kV & < = 275 kV ; < = 200 MVA | D49: 0 | E49: 0 | F49: 0 | G49: 0 | H49: 0 | I49: 0 | J49: 0 | K49: 0 | L49: 0 | M49: 0 | N49: 0 | O49: 0 | P49: 0 | Q49: 0 | R49: 0 | S49: 0 | T49: 0 | U49: 0 | V49: 0 | W49: 0 | X49: 0
C50: > 132 kV & < = 275 kV ; > 200 MVA & < = 600 MVA | D50: 0 | E50: 0 | F50: 0 | G50: 0 | H50: 0 | I50: 0 | J50: 0 | K50: 0 | L50: 0 | M50: 0 | N50: 0 | O50: 0 | P50: 0 | Q50: 0 | R50: 4 | S50: 5 | T50: 5 | U50: 8 | V50: 9 | W50: 11 | X50: 14
C51: > 132 kV & < = 275 kV ; > 600 MVA | D51: 0 | E51: 0 | F51: 0 | G51: 0 | H51: 0 | I51: 0 | J51: 0 | K51: 0 | L51: 0 | M51: 0 | N51: 0 | O51: 0 | P51: 0 | Q51: 0 | R51: 0 | S51: 0 | T51: 1 | U51: 1 | V51: 1 | W51: 1 | X51: 1
C52: > 275 kV & < = 330 kV ; < = 800 MVA | D52: 0 | E52: 0 | F52: 0 | G52: 0 | H52: 0 | I52: 0 | J52: 0 | K52: 0 | L52: 0 | M52: 0 | N52: 0 | O52: 0 | P52: 0 | Q52: 0 | R52: 0 | S52: 0 | T52: 0 | U52: 0 | V52: 0 | W52: 0 | X52: 0
C53: > 275 kV & < = 330 kV ; > 800 MVA & < = 1200 MVA | D53: 0 | E53: 0 | F53: 0 | G53: 0 | H53: 0 | I53: 0 | J53: 0 | K53: 0 | L53: 0 | M53: 0 | N53: 0 | O53: 0 | P53: 0 | Q53: 0 | R53: 1 | S53: 1 | T53: 1 | U53: 1 | V53: 1 | W53: 1 | X53: 2
C54: > 275 kV & < = 330 kV ; > 1200 MVA | D54: 0 | E54: 0 | F54: 0 | G54: 0 | H54: 0 | I54: 0 | J54: 0 | K54: 0 | L54: 0 | M54: 0 | N54: 0 | O54: 0 | P54: 0 | Q54: 0 | R54: 0 | S54: 0 | T54: 0 | U54: 0 | V54: 0 | W54: 0 | X54: 0
C55: > 330 kV & < = 500 kV ; < = 1000 MVA | D55: 0 | E55: 0 | F55: 0 | G55: 0 | H55: 0 | I55: 0 | J55: 0 | K55: 0 | L55: 0 | M55: 0 | N55: 0 | O55: 0 | P55: 0 | Q55: 0 | R55: 0 | S55: 0 | T55: 0 | U55: 0 | V55: 0 | W55: 0 | X55: 0
C56: > 330 kV & < = 500 kV ; > 1000 MVA & < = 1500 MVA | D56: 0 | E56: 0 | F56: 0 | G56: 0 | H56: 0 | I56: 0 | J56: 0 | K56: 0 | L56: 0 | M56: 0 | N56: 0 | O56: 0 | P56: 0 | Q56: 0 | R56: 0 | S56: 0 | T56: 0 | U56: 0 | V56: 0 | W56: 0 | X56: 0
C57: > 330 kV & < = 500 kV ; > 1500 MVA | D57: 0 | E57: 0 | F57: 0 | G57: 0 | H57: 0 | I57: 0 | J57: 0 | K57: 0 | L57: 0 | M57: 0 | N57: 0 | O57: 0 | P57: 0 | Q57: 0 | R57: 2 | S57: 2 | T57: 3 | U57: 3 | V57: 6 | W57: 8 | X57: 9
C58: > 500 kV ; < = 2000 MVA | D58: 0 | E58: 0 | F58: 0 | G58: 0 | H58: 0 | I58: 0 | J58: 0 | K58: 0 | L58: 0 | M58: 0 | N58: 0 | O58: 0 | P58: 0 | Q58: 0 | R58: 0 | S58: 0 | T58: 0 | U58: 0 | V58: 0 | W58: 0 | X58: 0
C59: > 500 kV ; > 2000 MVA & < = 3000 MVA | D59: 0 | E59: 0 | F59: 0 | G59: 0 | H59: 0 | I59: 0 | J59: 0 | K59: 0 | L59: 0 | M59: 0 | N59: 0 | O59: 0 | P59: 0 | Q59: 0 | R59: 0 | S59: 0 | T59: 0 | U59: 0 | V59: 0 | W59: 0 | X59: 0
C60: > 500 kV ; > 3000 MVA | D60: 0 | E60: 0 | F60: 0 | G60: 0 | H60: 0 | I60: 0 | J60: 0 | K60: 0 | L60: 0 | M60: 0 | N60: 0 | O60: 0 | P60: 0 | Q60: 0 | R60: 0 | S60: 0 | T60: 0 | U60: 0 | V60: 0 | W60: 0 | X60: 0
C61: Other | D61: 46669.25314 | E61: 419505.2344 | F61: 0 | G61: 0 | H61: 0 | I61: 0 | J61: 0 | K61: 9 | L61: 1 | M61: 0 | N61: 0 | O61: 0 | P61: 0 | Q61: 0 | R61: 0 | S61: 0 | T61: 0 | U61: 0 | V61: 0 | W61: 0 | X61: 0
B62: TRANSMISSION CABLES BY: Highest operating voltage; Insulation type | C62: < = 33 kV; Oil Filled | D62: 0 | E62: 0 | F62: 0 | G62: 0 | H62: 0 | I62: 0 | J62: 0 | K62: 0 | L62: 0 | M62: 0 | N62: 0 | O62: 0 | P62: 0 | Q62: 0 | R62: 0 | S62: 0 | T62: 0 | U62: 0 | V62: 0 | W62: 0 | X62: 0
C63: > 33 kV & < = 66 kV ; Oil Filled | D63: 0 | E63: 0 | F63: 0 | G63: 0 | H63: 0 | I63: 0 | J63: 0 | K63: 0 | L63: 0 | M63: 0 | N63: 0 | O63: 0 | P63: 0 | Q63: 0 | R63: 0 | S63: 0 | T63: 0 | U63: 0 | V63: 0 | W63: 0 | X63: 0
C64: > 66 kV & < = 132 kV ; Oil Filled | D64: 0 | E64: 0 | F64: 0 | G64: 0 | H64: 0 | I64: 0 | J64: 0 | K64: 0 | L64: 0 | M64: 0 | N64: 0 | O64: 0 | P64: 0 | Q64: 0 | R64: 0 | S64: 0 | T64: 0 | U64: 0 | V64: 0 | W64: 0 | X64: 0
C65: > 132 kV & < = 275 kV ; Oil Filled | D65: 0 | E65: 0 | F65: 0 | G65: 0 | H65: 0 | I65: 0 | J65: 1700000 | K65: 0 | L65: 0 | M65: 0 | N65: 0 | O65: 1 | P65: 0 | Q65: 0 | R65: 0 | S65: 0 | T65: 0 | U65: 0 | V65: 0 | W65: 0 | X65: 0
C66: > 275 kV & < = 330 kV ; Oil Filled | D66: 0 | E66: 0 | F66: 0 | G66: 0 | H66: 0 | I66: 0 | J66: 0 | K66: 0 | L66: 0 | M66: 0 | N66: 0 | O66: 0 | P66: 0 | Q66: 0 | R66: 0 | S66: 0 | T66: 0 | U66: 0 | V66: 0 | W66: 0 | X66: 0
C67: > 330 kV & < = 500 kV ; Oil Filled | D67: 0 | E67: 0 | F67: 0 | G67: 0 | H67: 0 | I67: 0 | J67: 0 | K67: 0 | L67: 0 | M67: 0 | N67: 0 | O67: 0 | P67: 0 | Q67: 0 | R67: 0 | S67: 0 | T67: 0 | U67: 0 | V67: 0 | W67: 0 | X67: 0
C68: > 500 kV ; Oil Filled | D68: 0 | E68: 0 | F68: 0 | G68: 0 | H68: 0 | I68: 0 | J68: 0 | K68: 0 | L68: 0 | M68: 0 | N68: 0 | O68: 0 | P68: 0 | Q68: 0 | R68: 0 | S68: 0 | T68: 0 | U68: 0 | V68: 0 | W68: 0 | X68: 0
C69: < = 33 kV; XLPE Insulated | D69: 0 | E69: 0 | F69: 0 | G69: 0 | H69: 0 | I69: 0 | J69: 0 | K69: 0 | L69: 0 | M69: 0 | N69: 0 | O69: 0 | P69: 0 | Q69: 0 | R69: 0 | S69: 0 | T69: 0 | U69: 0 | V69: 0 | W69: 0 | X69: 0
C70: > 33 kV & < = 66 kV ; XLPE Insulated | D70: 0 | E70: 0 | F70: 0 | G70: 0 | H70: 0 | I70: 0 | J70: 1500000 | K70: 0 | L70: 0 | M70: 0 | N70: 1 | O70: 1 | P70: 1 | Q70: 0 | R70: 0 | S70: 0 | T70: 0 | U70: 0 | V70: 0 | W70: 0 | X70: 0
C71: > 66 kV & < = 132 kV ; XLPE Insulated | D71: 0 | E71: 0 | F71: 0 | G71: 0 | H71: 0 | I71: 0 | J71: 0 | K71: 0 | L71: 0 | M71: 0 | N71: 0 | O71: 0 | P71: 0 | Q71: 0 | R71: 0 | S71: 0 | T71: 0 | U71: 0 | V71: 0 | W71: 0 | X71: 0
C72: > 132 kV & < = 275 kV ; XLPE Insulated | D72: 0 | E72: 0 | F72: 0 | G72: 0 | H72: 0 | I72: 0 | J72: 0 | K72: 0 | L72: 0 | M72: 0 | N72: 0 | O72: 0 | P72: 0 | Q72: 0 | R72: 0 | S72: 0 | T72: 0 | U72: 0 | V72: 0 | W72: 0 | X72: 0
C73: > 275 kV & < = 330 kV ; XLPE Insulated | D73: 0 | E73: 0 | F73: 0 | G73: 0 | H73: 0 | I73: 0 | J73: 0 | K73: 0 | L73: 0 | M73: 0 | N73: 0 | O73: 0 | P73: 0 | Q73: 0 | R73: 0 | S73: 0 | T73: 0 | U73: 0 | V73: 0 | W73: 0 | X73: 0
C74: > 330 kV & < = 500 kV ; XLPE Insulated | D74: 0 | E74: 0 | F74: 0 | G74: 0 | H74: 0 | I74: 0 | J74: 0 | K74: 0 | L74: 0 | M74: 0 | N74: 0 | O74: 0 | P74: 0 | Q74: 0 | R74: 0 | S74: 0 | T74: 0 | U74: 0 | V74: 0 | W74: 0 | X74: 0
C75: > 500 kV ; XLPE Insulated | D75: 0 | E75: 0 | F75: 0 | G75: 0 | H75: 0 | I75: 0 | J75: 0 | K75: 0 | L75: 0 | M75: 0 | N75: 0 | O75: 0 | P75: 0 | Q75: 0 | R75: 0 | S75: 0 | T75: 0 | U75: 0 | V75: 0 | W75: 0 | X75: 0
C76: < = 33 kV; Other Insulated | D76: 0 | E76: 0 | F76: 0 | G76: 0 | H76: 0 | I76: 0 | J76: 0 | K76: 0 | L76: 0 | M76: 0 | N76: 0 | O76: 0 | P76: 0 | Q76: 0 | R76: 0 | S76: 0 | T76: 0 | U76: 0 | V76: 0 | W76: 0 | X76: 0
C77: > 33 kV & < = 66 kV ; Other Insulated | D77: 0 | E77: 0 | F77: 0 | G77: 0 | H77: 0 | I77: 0 | J77: 0 | K77: 0 | L77: 0 | M77: 0 | N77: 0 | O77: 0 | P77: 0 | Q77: 0 | R77: 0 | S77: 0 | T77: 0 | U77: 0 | V77: 0 | W77: 0 | X77: 0
C78: > 66 kV & < = 132 kV ; Other Insulated | D78: 0 | E78: 0 | F78: 0 | G78: 0 | H78: 0 | I78: 0 | J78: 0 | K78: 0 | L78: 0 | M78: 0 | N78: 0 | O78: 0 | P78: 0 | Q78: 0 | R78: 0 | S78: 0 | T78: 0 | U78: 0 | V78: 0 | W78: 0 | X78: 0
C79: > 132 kV & < = 275 kV ; Other Insulated | D79: 0 | E79: 0 | F79: 0 | G79: 0 | H79: 0 | I79: 0 | J79: 0 | K79: 0 | L79: 0 | M79: 0 | N79: 0 | O79: 0 | P79: 0 | Q79: 0 | R79: 0 | S79: 0 | T79: 0 | U79: 0 | V79: 0 | W79: 0 | X79: 0
C80: > 275 kV & < = 330 kV ; Other Insulated | D80: 0 | E80: 0 | F80: 0 | G80: 0 | H80: 0 | I80: 0 | J80: 0 | K80: 0 | L80: 0 | M80: 0 | N80: 0 | O80: 0 | P80: 0 | Q80: 0 | R80: 0 | S80: 0 | T80: 0 | U80: 0 | V80: 0 | W80: 0 | X80: 0
C81: > 330 kV & < = 500 kV ; Other Insulated | D81: 0 | E81: 0 | F81: 0 | G81: 0 | H81: 0 | I81: 0 | J81: 0 | K81: 0 | L81: 0 | M81: 0 | N81: 0 | O81: 0 | P81: 0 | Q81: 0 | R81: 0 | S81: 0 | T81: 0 | U81: 0 | V81: 0 | W81: 0 | X81: 0
C82: > 500 kV ; Other Insulated | D82: 0 | E82: 0 | F82: 0 | G82: 0 | H82: 0 | I82: 0 | J82: 0 | K82: 0 | L82: 0 | M82: 0 | N82: 0 | O82: 0 | P82: 0 | Q82: 0 | R82: 0 | S82: 0 | T82: 0 | U82: 0 | V82: 0 | W82: 0 | X82: 0
C83: Other | D83: 0 | E83: 0 | F83: 0 | G83: 0 | H83: 0 | I83: 0 | J83: 0 | K83: 0 | L83: 0 | M83: 0 | N83: 0 | O83: 0 | P83: 0 | Q83: 0 | R83: 0 | S83: 0 | T83: 0 | U83: 0 | V83: 0 | W83: 0 | X83: 0
B84: SUBSTATION SWITCHBAYS BY: Highest operating voltage; Switch type | C84: < = 33 kV; Air Insulated circuit Breaker | D84: 0 | E84: 0 | F84: 325349.1789 | G84: 263348.5821 | H84: 279344.1999 | I84: 0 | J84: 0 | K84: 0 | L84: 0 | M84: 1 | N84: 1 | O84: 1 | P84: 0 | Q84: 0 | R84: 3 | S84: 3 | T84: 3 | U84: 3 | V84: 3 | W84: 4 | X84: 4
C85: > 33 kV & < = 66 kV ; Air Insulated circuit Breaker | D85: 2499831.913 | E85: 1025457.24 | F85: 9230840.967 | G85: 5196137.239 | H85: 3735441.999 | I85: 4300484.538 | J85: 19091299.24 | K85: 14.42179132 | L85: 12.32413422 | M85: 25 | N85: 31 | O85: 27 | P85: 24 | Q85: 18 | R85: 11 | S85: 11 | T85: 12 | U85: 13 | V85: 14 | W85: 15 | X85: 16
C86: > 66 kV & < = 132 kV ; Air Insulated circuit Breaker | D86: 0 | E86: 0 | F86: 0 | G86: 0 | H86: 0 | I86: 0 | J86: 0 | K86: 0 | L86: 0 | M86: 0 | N86: 0 | O86: 0 | P86: 0 | Q86: 0 | R86: 0 | S86: 0 | T86: 0 | U86: 0 | V86: 0 | W86: 0 | X86: 0
C87: > 132 kV & < = 275 kV ; Air Insulated circuit Breaker | D87: 0 | E87: 1030000 | F87: 3685521.239 | G87: 5915146.635 | H87: 2867847.554 | I87: 4045838.636 | J87: 4331056.905 | K87: 2 | L87: 6 | M87: 7 | N87: 11 | O87: 11 | P87: 5 | Q87: 5 | R87: 5 | S87: 6 | T87: 6 | U87: 6 | V87: 7 | W87: 7 | X87: 8
C88: > 275 kV & < = 330 kV ; Air Insulated circuit Breaker | D88: 0 | E88: 0 | F88: 0 | G88: 1160000 | H88: 0 | I88: 0 | J88: 0 | K88: 0 | L88: 1 | M88: 1 | N88: 0 | O88: 0 | P88: 0 | Q88: 0 | R88: 0 | S88: 0 | T88: 1 | U88: 1 | V88: 1 | W88: 1 | X88: 1
C89: > 330 kV & < = 500 kV ; Air Insulated circuit Breaker | D89: 0 | E89: 0 | F89: 0 | G89: 2921787.889 | H89: 1206896.369 | I89: 2897655.692 | J89: 2306370.513 | K89: 0 | L89: 1 | M89: 1 | N89: 1 | O89: 1 | P89: 3 | Q89: 2 | R89: 2 | S89: 2 | T89: 2 | U89: 2 | V89: 2 | W89: 2 | X89: 2
C90: > 500 kV ; Air Insulated circuit Breaker | D90: 0 | E90: 0 | F90: 0 | G90: 0 | H90: 0 | I90: 0 | J90: 0 | K90: 0 | L90: 0 | M90: 0 | N90: 0 | O90: 0 | P90: 0 | Q90: 0 | R90: 0 | S90: 0 | T90: 0 | U90: 0 | V90: 0 | W90: 0 | X90: 0
C91: < = 33 kV; Air Insulated Isolators / Earth Switch | D91: 0 | E91: 0 | F91: 121674.8241 | G91: 472611.0681 | H91: 334760.6581 | I91: 403643.0261 | J91: 550197.901 | K91: 0 | L91: 0 | M91: 3 | N91: 6 | O91: 6 | P91: 6 | Q91: 7 | R91: 16 | S91: 16 | T91: 17 | U91: 19 | V91: 20 | W91: 21 | X91: 22
C92: > 33 kV & < = 66 kV ; Air Insulated Isolators / Earth Switch | D92: 568000 | E92: 0 | F92: 6156485.616 | G92: 1964339.295 | H92: 1477048.703 | I92: 3083922.21 | J92: 17254706.72 | K92: 19 | L92: 20 | M92: 21 | N92: 41 | O92: 42 | P92: 47 | Q92: 39 | R92: 25 | S92: 26 | T92: 28 | U92: 30 | V92: 32 | W92: 34 | X92: 36
C93: > 66 kV & < = 132 kV ; Air Insulated Isolators / Earth Switch | D93: 0 | E93: 0 | F93: 0 | G93: 0 | H93: 0 | I93: 0 | J93: 0 | K93: 0 | L93: 0 | M93: 0 | N93: 0 | O93: 0 | P93: 0 | Q93: 0 | R93: 0 | S93: 0 | T93: 0 | U93: 0 | V93: 0 | W93: 0 | X93: 0
C94: > 132 kV & < = 275 kV ; Air Insulated Isolators / Earth Switch | D94: 0 | E94: 2781000 | F94: 5750713.86 | G94: 7164502.518 | H94: 1755203.347 | I94: 8660037.753 | J94: 12782434.11 | K94: 13 | L94: 23 | M94: 14 | N94: 15 | O94: 20 | P94: 38 | Q94: 17 | R94: 30 | S94: 31 | T94: 34 | U94: 37 | V94: 40 | W94: 43 | X94: 46
C95: > 275 kV & < = 330 kV ; Air Insulated Isolators / Earth Switch | D95: 0 | E95: 0 | F95: 252260.9498 | G95: 1889917.77 | H95: 347019.3698 | I95: 418424.1642 | J95: 0 | K95: 1 | L95: 2 | M95: 2 | N95: 1 | O95: 1 | P95: 1 | Q95: 0 | R95: 3 | S95: 3 | T95: 3 | U95: 3 | V95: 3 | W95: 4 | X95: 4
C96: > 330 kV & < = 500 kV ; Air Insulated Isolators / Earth Switch | D96: 0 | E96: 0 | F96: 252377.9299 | G96: 3416144.958 | H96: 694360.5838 | I96: 418618.1986 | J96: 489094.5131 | K96: 0 | L96: 1 | M96: 5 | N96: 3 | O96: 2 | P96: 1 | Q96: 1 | R96: 6 | S96: 7 | T96: 7 | U96: 8 | V96: 8 | W96: 9 | X96: 9
C97: > 500 kV ; Air Insulated Isolators / Earth Switch | D97: 0 | E97: 0 | F97: 0 | G97: 0 | H97: 0 | I97: 0 | J97: 0 | K97: 0 | L97: 0 | M97: 0 | N97: 0 | O97: 0 | P97: 0 | Q97: 0 | R97: 0 | S97: 0 | T97: 0 | U97: 0 | V97: 0 | W97: 0 | X97: 0
C98: < = 33 kV; VT | D98: 17034.70515 | E98: 34429.451 | F98: 12306.03222 | G98: 36941.66315 | H98: 24908.55824 | I98: 12424.93366 | J98: 12507.1637 | K98: 1.240903466 | L98: 2.981485627 | M98: 1 | N98: 3 | O98: 2 | P98: 1 | Q98: 1 | R98: 3 | S98: 3 | T98: 4 | U98: 4 | V98: 5 | W98: 5 | X98: 5
C99: > 33 kV & < = 66 kV ; VT | D99: 105807.5822 | E99: 74393.11894 | F99: 575586.5618 | G99: 254203.2363 | H99: 47741.40329 | I99: 47628.91235 | J99: 944944.1275 | K99: 3.396016399 | L99: 7.354171331 | M99: 7 | N99: 5 | O99: 5 | P99: 7 | Q99: 7 | R99: 4 | S99: 4 | T99: 5 | U99: 5 | V99: 6 | W99: 7 | X99: 7
C100: > 66 kV & < = 132 kV ; VT | D100: 0 | E100: 0 | F100: 0 | G100: 0 | H100: 0 | I100: 0 | J100: 0 | K100: 0 | L100: 0 | M100: 0 | N100: 0 | O100: 0 | P100: 0 | Q100: 0 | R100: 0 | S100: 0 | T100: 0 | U100: 0 | V100: 0 | W100: 0 | X100: 0
C101: > 132 kV & < = 275 kV ; VT | D101: 67216.6063 | E101: 1560853.884 | F101: 667422.7551 | G101: 194969.8889 | H101: 98596.37636 | I101: 0 | J101: 285000 | K101: 1.620451733 | L101: 6.490742814 | M101: 2 | N101: 3 | O101: 2 | P101: 1 | Q101: 0 | R101: 5 | S101: 6 | T101: 6 | U101: 7 | V101: 8 | W101: 9 | X101: 9
C102: > 275 kV & < = 330 kV ; VT | D102: 0 | E102: 0 | F102: 0 | G102: 330000 | H102: 0 | I102: 0 | J102: 0 | K102: 0 | L102: 1 | M102: 0 | N102: 0 | O102: 0 | P102: 0 | Q102: 0 | R102: 0 | S102: 0 | T102: 0 | U102: 0 | V102: 0 | W102: 1 | X102: 1
C103: > 330 kV & < = 500 kV ; VT | D103: 23624.01012 | E103: 47747.33062 | F103: 137417.3598 | G103: 0 | H103: 0 | I103: 0 | J103: 0 | K103: 0.1551129333 | L103: 0.3726857034 | M103: 1 | N103: 0 | O103: 0 | P103: 0 | Q103: 0 | R103: 2 | S103: 2 | T103: 2 | U103: 2 | V103: 3 | W103: 3 | X103: 3
C104: > 500 kV ; VT | D104: 0 | E104: 0 | F104: 0 | G104: 0 | H104: 0 | I104: 0 | J104: 0 | K104: 0 | L104: 0 | M104: 0 | N104: 0 | O104: 0 | P104: 0 | Q104: 0 | R104: 0 | S104: 0 | T104: 0 | U104: 0 | V104: 0 | W104: 0 | X104: 0
C105: < = 33 kV; CT | D105: 0 | E105: 0 | F105: 0 | G105: 0 | H105: 0 | I105: 0 | J105: 0 | K105: 0 | L105: 0 | M105: 0 | N105: 0 | O105: 0 | P105: 0 | Q105: 0 | R105: 2 | S105: 2 | T105: 2 | U105: 3 | V105: 3 | W105: 4 | X105: 5
C106: > 33 kV & < = 66 kV ; CT | D106: 27864.06672 | E106: 56317.06046 | F106: 81014.7121 | G106: 319066.4275 | H106: 0 | I106: 476000 | J106: 238000 | K106: 0.3102258665 | L106: 0.7453714068 | M106: 2 | N106: 2 | O106: 2 | P106: 0 | Q106: 0 | R106: 8 | S106: 9 | T106: 10 | U106: 12 | V106: 13 | W106: 15 | X106: 16
C107: > 66 kV & < = 132 kV ; CT | D107: 0 | E107: 0 | F107: 0 | G107: 0 | H107: 0 | I107: 0 | J107: 0 | K107: 0 | L107: 0 | M107: 0 | N107: 0 | O107: 0 | P107: 0 | Q107: 0 | R107: 0 | S107: 0 | T107: 0 | U107: 0 | V107: 0 | W107: 0 | X107: 0
C108: > 132 kV & < = 275 kV ; CT | D108: 256057.2313 | E108: 1597526.416 | F108: 966120.6444 | G108: 246277.7544 | H108: 249085.5824 | I108: 2172748.01 | J108: 1455214.911 | K108: 3.861355199 | L108: 7.472228441 | M108: 3 | N108: 6 | O108: 8 | P108: 6 | Q108: 4 | R108: 6 | S108: 7 | T108: 8 | U108: 9 | V108: 10 | W108: 11 | X108: 12
C109: > 275 kV & < = 330 kV ; CT | D109: 0 | E109: 0 | F109: 0 | G109: 840000 | H109: 0 | I109: 0 | J109: 0 | K109: 0 | L109: 1 | M109: 1 | N109: 0 | O109: 0 | P109: 0 | Q109: 0 | R109: 0 | S109: 0 | T109: 0 | U109: 0 | V109: 0 | W109: 1 | X109: 1
C110: > 330 kV & < = 500 kV ; CT | D110: 885937.1536 | E110: 1790599.224 | F110: 912697.3895 | G110: 1983280.006 | H110: 1108430.842 | I110: 1105819.095 | J110: 1113137.569 | K110: 4.343162131 | L110: 11.43519969 | M110: 6 | N110: 5 | O110: 6 | P110: 6 | Q110: 6 | R110: 3 | S110: 4 | T110: 4 | U110: 4 | V110: 5 | W110: 5 | X110: 6
C111: > 500 kV ; CT | D111: 0 | E111: 0 | F111: 0 | G111: 0 | H111: 0 | I111: 0 | J111: 0 | K111: 0 | L111: 0 | M111: 0 | N111: 0 | O111: 0 | P111: 0 | Q111: 0 | R111: 0 | S111: 0 | T111: 0 | U111: 0 | V111: 0 | W111: 0 | X111: 0
C112: < = 33 kV; GIS Module | D112: 0 | E112: 0 | F112: 0 | G112: 0 | H112: 0 | I112: 0 | J112: 0 | K112: 0 | L112: 0 | M112: 0 | N112: 0 | O112: 0 | P112: 0 | Q112: 0 | R112: 0 | S112: 0 | T112: 0 | U112: 0 | V112: 0 | W112: 0 | X112: 0
C113: > 33 kV & < = 66 kV ; GIS Module | D113: 0 | E113: 0 | F113: 0 | G113: 2000000 | H113: 0 | I113: 0 | J113: 0 | K113: 1 | L113: 1 | M113: 1 | N113: 3 | O113: 2 | P113: 0 | Q113: 0 | R113: 0 | S113: 0 | T113: 0 | U113: 0 | V113: 0 | W113: 0 | X113: 0
C114: > 66 kV & < = 132 kV ; GIS Module | D114: 0 | E114: 0 | F114: 0 | G114: 0 | H114: 0 | I114: 0 | J114: 0 | K114: 0 | L114: 0 | M114: 0 | N114: 0 | O114: 0 | P114: 0 | Q114: 0 | R114: 0 | S114: 0 | T114: 0 | U114: 0 | V114: 0 | W114: 0 | X114: 0
C115: > 132 kV & < = 275 kV ; GIS Module | D115: 0 | E115: 0 | F115: 0 | G115: 10200000 | H115: 0 | I115: 0 | J115: 0 | K115: 1 | L115: 1 | M115: 1 | N115: 0 | O115: 0 | P115: 0 | Q115: 0 | R115: 0 | S115: 0 | T115: 0 | U115: 0 | V115: 0 | W115: 0 | X115: 0
C116: > 275 kV & < = 330 kV ; GIS Module | D116: 0 | E116: 0 | F116: 0 | G116: 0 | H116: 0 | I116: 0 | J116: 0 | K116: 0 | L116: 0 | M116: 0 | N116: 0 | O116: 0 | P116: 0 | Q116: 0 | R116: 0 | S116: 0 | T116: 0 | U116: 0 | V116: 0 | W116: 0 | X116: 0
C117: > 330 kV & < = 500 kV ; GIS Module | D117: 0 | E117: 0 | F117: 0 | G117: 0 | H117: 0 | I117: 0 | J117: 0 | K117: 0 | L117: 0 | M117: 0 | N117: 0 | O117: 0 | P117: 0 | Q117: 0 | R117: 0 | S117: 0 | T117: 0 | U117: 0 | V117: 0 | W117: 0 | X117: 0
C118: > 500 kV ; GIS Module | D118: 0 | E118: 0 | F118: 0 | G118: 0 | H118: 0 | I118: 0 | J118: 0 | K118: 0 | L118: 0 | M118: 0 | N118: 0 | O118: 0 | P118: 0 | Q118: 0 | R118: 0 | S118: 0 | T118: 0 | U118: 0 | V118: 0 | W118: 0 | X118: 0
C119: Other | D119: 0 | E119: 0 | F119: 0 | G119: 0 | H119: 0 | I119: 0 | J119: 0 | K119: 0 | L119: 0 | M119: 0 | N119: 0 | O119: 0 | P119: 0 | Q119: 0 | R119: 0 | S119: 0 | T119: 0 | U119: 0 | V119: 0 | W119: 0 | X119: 0
B120: SUBSTATION POWER TRANSFORMERS BY: Highest operating voltage; Ampere rating | C120: < = 33 kV ; < = 10 MVA | D120: 0 | E120: 0 | F120: 0 | G120: 0 | H120: 0 | I120: 0 | J120: 0 | K120: 0 | L120: 0 | M120: 0 | N120: 0 | O120: 0 | P120: 0 | Q120: 0 | R120: 0 | S120: 0 | T120: 0 | U120: 0 | V120: 0 | W120: 0 | X120: 0
C121: < = 33 kV ; > 10 MVA & < = 30 MVA | D121: 0 | E121: 0 | F121: 0 | G121: 0 | H121: 0 | I121: 0 | J121: 0 | K121: 0 | L121: 0 | M121: 0 | N121: 0 | O121: 0 | P121: 0 | Q121: 0 | R121: 0 | S121: 0 | T121: 0 | U121: 0 | V121: 0 | W121: 0 | X121: 0
C122: < = 33 kV ; > 30 MVA | D122: 0 | E122: 0 | F122: 0 | G122: 0 | H122: 0 | I122: 0 | J122: 0 | K122: 0 | L122: 0 | M122: 0 | N122: 0 | O122: 0 | P122: 0 | Q122: 0 | R122: 0 | S122: 0 | T122: 0 | U122: 0 | V122: 0 | W122: 0 | X122: 0
C123: > 33 kV & < = 66 kV ; < = 10 MVA | D123: 0 | E123: 0 | F123: 0 | G123: 0 | H123: 0 | I123: 0 | J123: 0 | K123: 0 | L123: 0 | M123: 0 | N123: 0 | O123: 0 | P123: 0 | Q123: 0 | R123: 0 | S123: 0 | T123: 0 | U123: 0 | V123: 0 | W123: 0 | X123: 0
C124: > 33 kV & < = 66 kV ; > 10 MVA & < = 30 MVA | D124: 0 | E124: 0 | F124: 0 | G124: 0 | H124: 0 | I124: 0 | J124: 0 | K124: 0 | L124: 0 | M124: 0 | N124: 0 | O124: 0 | P124: 0 | Q124: 0 | R124: 0 | S124: 0 | T124: 0 | U124: 0 | V124: 0 | W124: 0 | X124: 0
C125: > 33 kV & < = 66 kV ; > 30 MVA | D125: 0 | E125: 0 | F125: 0 | G125: 0 | H125: 0 | I125: 0 | J125: 0 | K125: 0 | L125: 0 | M125: 0 | N125: 0 | O125: 0 | P125: 0 | Q125: 0 | R125: 0 | S125: 0 | T125: 0 | U125: 0 | V125: 0 | W125: 0 | X125: 0
C126: > 66 kV & < = 132 kV ; < = 30 MVA | D126: 0 | E126: 0 | F126: 0 | G126: 0 | H126: 0 | I126: 0 | J126: 0 | K126: 0 | L126: 0 | M126: 0 | N126: 0 | O126: 0 | P126: 0 | Q126: 0 | R126: 0 | S126: 0 | T126: 0 | U126: 0 | V126: 0 | W126: 0 | X126: 0
C127: > 66 kV & < = 132 kV ; > 30 MVA & < = 60 MVA | D127: 0 | E127: 0 | F127: 0 | G127: 0 | H127: 0 | I127: 0 | J127: 0 | K127: 0 | L127: 0 | M127: 0 | N127: 0 | O127: 0 | P127: 0 | Q127: 0 | R127: 0 | S127: 0 | T127: 0 | U127: 0 | V127: 0 | W127: 0 | X127: 0
C128: > 66 kV & < = 132 kV ; > 60 MVA | D128: 0 | E128: 0 | F128: 0 | G128: 0 | H128: 0 | I128: 0 | J128: 0 | K128: 0 | L128: 0 | M128: 0 | N128: 0 | O128: 0 | P128: 0 | Q128: 0 | R128: 0 | S128: 0 | T128: 0 | U128: 0 | V128: 0 | W128: 0 | X128: 0
C129: > 132 kV & < = 220 kV ; < = 50 MVA | D129: 0 | E129: 0 | F129: 0 | G129: 0 | H129: 0 | I129: 0 | J129: 0 | K129: 0 | L129: 0 | M129: 0 | N129: 0 | O129: 0 | P129: 0 | Q129: 0 | R129: 1 | S129: 1 | T129: 1 | U129: 1 | V129: 1 | W129: 1 | X129: 1
C130: > 132 kV & < = 220 kV ; > 50 MVA & < = 100 MVA | D130: 0 | E130: 0 | F130: 0 | G130: 0 | H130: 0 | I130: 0 | J130: 0 | K130: 0 | L130: 0 | M130: 0 | N130: 0 | O130: 0 | P130: 0 | Q130: 0 | R130: 0 | S130: 0 | T130: 0 | U130: 0 | V130: 0 | W130: 0 | X130: 0
C131: > 132 kV & < = 220 kV ; > 100 MVA | D131: 0 | E131: 0 | F131: 14552127 | G131: 19402836 | H131: 14552127 | I131: 9701418 | J131: 41196375 | K131: 2 | L131: 3 | M131: 3 | N131: 3 | O131: 4 | P131: 2 | Q131: 2 | R131: 1 | S131: 1 | T131: 1 | U131: 1 | V131: 2 | W131: 2 | X131: 2
C132: > 220 kV & < = 275 kV ; < = 50 MVA | D132: 0 | E132: 0 | F132: 0 | G132: 0 | H132: 0 | I132: 0 | J132: 0 | K132: 0 | L132: 0 | M132: 0 | N132: 0 | O132: 0 | P132: 0 | Q132: 0 | R132: 0 | S132: 0 | T132: 0 | U132: 0 | V132: 0 | W132: 0 | X132: 0
C133: > 220 kV & < = 275 kV ; > 50 MVA & < = 100 MVA | D133: 0 | E133: 0 | F133: 0 | G133: 0 | H133: 0 | I133: 0 | J133: 0 | K133: 0 | L133: 0 | M133: 0 | N133: 0 | O133: 0 | P133: 0 | Q133: 0 | R133: 0 | S133: 0 | T133: 0 | U133: 0 | V133: 0 | W133: 0 | X133: 0
C134: > 220 kV & < = 275 kV ; > 100 MVA | D134: 0 | E134: 0 | F134: 0 | G134: 0 | H134: 0 | I134: 0 | J134: 0 | K134: 0 | L134: 0 | M134: 0 | N134: 0 | O134: 0 | P134: 0 | Q134: 0 | R134: 0 | S134: 0 | T134: 0 | U134: 0 | V134: 0 | W134: 0 | X134: 0
C135: > 275 kV & < = 330 kV ; < = 100 MVA | D135: 0 | E135: 0 | F135: 0 | G135: 0 | H135: 0 | I135: 0 | J135: 0 | K135: 0 | L135: 0 | M135: 0 | N135: 0 | O135: 0 | P135: 0 | Q135: 0 | R135: 0 | S135: 0 | T135: 0 | U135: 0 | V135: 0 | W135: 0 | X135: 0
C136: > 275 kV & < = 330 kV ; > 100 MVA & < = 250 MVA | D136: 0 | E136: 0 | F136: 0 | G136: 0 | H136: 0 | I136: 0 | J136: 0 | K136: 0 | L136: 0 | M136: 0 | N136: 0 | O136: 0 | P136: 0 | Q136: 0 | R136: 0 | S136: 0 | T136: 0 | U136: 0 | V136: 0 | W136: 0 | X136: 0
C137: > 275 kV & < = 330 kV ; > 250 MVA | D137: 0 | E137: 0 | F137: 0 | G137: 12000000 | H137: 0 | I137: 0 | J137: 0 | K137: 0 | L137: 0 | M137: 1 | N137: 0 | O137: 0 | P137: 0 | Q137: 0 | R137: 0 | S137: 0 | T137: 0 | U137: 0 | V137: 0 | W137: 0 | X137: 0
C138: > 330 kV & < = 500 kV ; < = 150 MVA | D138: 0 | E138: 0 | F138: 0 | G138: 0 | H138: 0 | I138: 0 | J138: 0 | K138: 0 | L138: 0 | M138: 0 | N138: 0 | O138: 0 | P138: 0 | Q138: 0 | R138: 0 | S138: 0 | T138: 0 | U138: 0 | V138: 0 | W138: 0 | X138: 0
C139: > 330 kV & < = 500 kV ; > 150 MVA & < = 300 MVA | D139: 0 | E139: 0 | F139: 0 | G139: 0 | H139: 0 | I139: 0 | J139: 0 | K139: 0 | L139: 0 | M139: 0 | N139: 0 | O139: 0 | P139: 0 | Q139: 0 | R139: 0 | S139: 0 | T139: 0 | U139: 0 | V139: 0 | W139: 1 | X139: 1
C140: > 330 kV & < = 500 kV ; > 300 MVA | D140: 0 | E140: 0 | F140: 0 | G140: 0 | H140: 0 | I140: 0 | J140: 0 | K140: 0 | L140: 0 | M140: 0 | N140: 0 | O140: 0 | P140: 0 | Q140: 0 | R140: 0 | S140: 0 | T140: 0 | U140: 0 | V140: 0 | W140: 0 | X140: 0
C141: > 500 kV ; < = 1000 MVA | D141: 0 | E141: 0 | F141: 0 | G141: 0 | H141: 0 | I141: 0 | J141: 0 | K141: 0 | L141: 0 | M141: 0 | N141: 0 | O141: 0 | P141: 0 | Q141: 0 | R141: 0 | S141: 0 | T141: 0 | U141: 0 | V141: 0 | W141: 0 | X141: 0
C142: > 500 kV ; > 1000 MVA & < = 1500 MVA | D142: 0 | E142: 0 | F142: 0 | G142: 0 | H142: 0 | I142: 0 | J142: 0 | K142: 0 | L142: 0 | M142: 0 | N142: 0 | O142: 0 | P142: 0 | Q142: 0 | R142: 0 | S142: 0 | T142: 0 | U142: 0 | V142: 0 | W142: 0 | X142: 0
C143: > 500 kV ; > 1500 MVA | D143: 0 | E143: 0 | F143: 0 | G143: 0 | H143: 0 | I143: 0 | J143: 0 | K143: 0 | L143: 0 | M143: 0 | N143: 0 | O143: 0 | P143: 0 | Q143: 0 | R143: 0 | S143: 0 | T143: 0 | U143: 0 | V143: 0 | W143: 0 | X143: 0
C144: Other | D144: 0 | E144: 0 | F144: 0 | G144: 0 | H144: 0 | I144: 0 | J144: 0 | K144: 0 | L144: 0 | M144: 0 | N144: 0 | O144: 0 | P144: 0 | Q144: 0 | R144: 0 | S144: 0 | T144: 0 | U144: 0 | V144: 0 | W144: 0 | X144: 0
B145: SUBSTATION REACTIVE PLANT BY: Highest operating voltage; Function | C145: < = 33 kV; SVCS | D145: 0 | E145: 0 | F145: 0 | G145: 0 | H145: 0 | I145: 0 | J145: 0 | K145: 0 | L145: 0 | M145: 0 | N145: 0 | O145: 0 | P145: 0 | Q145: 0 | R145: 0 | S145: 0 | T145: 0 | U145: 0 | V145: 0 | W145: 0 | X145: 0
C146: > 33 kV & < = 66 kV ; SVCS | D146: 0 | E146: 0 | F146: 0 | G146: 0 | H146: 0 | I146: 0 | J146: 0 | K146: 0 | L146: 0 | M146: 0 | N146: 0 | O146: 0 | P146: 0 | Q146: 0 | R146: 0 | S146: 0 | T146: 0 | U146: 0 | V146: 0 | W146: 0 | X146: 0
C147: > 66 kV & < = 132 kV ; SVCS | D147: 0 | E147: 0 | F147: 0 | G147: 0 | H147: 0 | I147: 0 | J147: 0 | K147: 0 | L147: 0 | M147: 0 | N147: 0 | O147: 0 | P147: 0 | Q147: 0 | R147: 0 | S147: 0 | T147: 0 | U147: 0 | V147: 0 | W147: 0 | X147: 0
C148: > 132 kV & < = 275 kV ; SVCS | D148: 0 | E148: 0 | F148: 0 | G148: 0 | H148: 0 | I148: 0 | J148: 0 | K148: 0 | L148: 0 | M148: 0 | N148: 0 | O148: 0 | P148: 0 | Q148: 0 | R148: 0 | S148: 0 | T148: 0 | U148: 0 | V148: 0 | W148: 0 | X148: 0
C149: > 275 kV & < = 330 kV ; SVCS | D149: 0 | E149: 0 | F149: 0 | G149: 0 | H149: 0 | I149: 0 | J149: 0 | K149: 0 | L149: 0 | M149: 0 | N149: 0 | O149: 0 | P149: 0 | Q149: 0 | R149: 0 | S149: 0 | T149: 0 | U149: 0 | V149: 0 | W149: 0 | X149: 0
C150: > 330 kV & < = 500 kV ; SVCS | D150: 0 | E150: 0 | F150: 0 | G150: 0 | H150: 0 | I150: 0 | J150: 0 | K150: 0 | L150: 0 | M150: 0 | N150: 0 | O150: 0 | P150: 0 | Q150: 0 | R150: 0 | S150: 0 | T150: 0 | U150: 0 | V150: 0 | W150: 0 | X150: 0
C151: > 500 kV ; SVCS | D151: 0 | E151: 0 | F151: 0 | G151: 0 | H151: 0 | I151: 0 | J151: 0 | K151: 0 | L151: 0 | M151: 0 | N151: 0 | O151: 0 | P151: 0 | Q151: 0 | R151: 0 | S151: 0 | T151: 0 | U151: 0 | V151: 0 | W151: 0 | X151: 0
C152: < = 33 kV; Capacitors | D152: 0 | E152: 0 | F152: 0 | G152: 0 | H152: 0 | I152: 0 | J152: 0 | K152: 0 | L152: 0 | M152: 0 | N152: 0 | O152: 0 | P152: 0 | Q152: 0 | R152: 0 | S152: 0 | T152: 0 | U152: 0 | V152: 0 | W152: 0 | X152: 0
C153: > 33 kV & < = 66 kV ; Capacitors | D153: 0 | E153: 0 | F153: 0 | G153: 0 | H153: 0 | I153: 0 | J153: 0 | K153: 0 | L153: 0 | M153: 0 | N153: 0 | O153: 0 | P153: 0 | Q153: 0 | R153: 0 | S153: 0 | T153: 0 | U153: 0 | V153: 0 | W153: 0 | X153: 0
C154: > 66 kV & < = 132 kV ; Capacitors | D154: 0 | E154: 0 | F154: 0 | G154: 0 | H154: 0 | I154: 0 | J154: 0 | K154: 0 | L154: 0 | M154: 0 | N154: 0 | O154: 0 | P154: 0 | Q154: 0 | R154: 0 | S154: 0 | T154: 0 | U154: 0 | V154: 0 | W154: 0 | X154: 0
C155: > 132 kV & < = 275 kV ; Capacitors | D155: 0 | E155: 0 | F155: 0 | G155: 0 | H155: 0 | I155: 0 | J155: 0 | K155: 0 | L155: 0 | M155: 0 | N155: 0 | O155: 0 | P155: 0 | Q155: 0 | R155: 0 | S155: 0 | T155: 0 | U155: 0 | V155: 0 | W155: 0 | X155: 0
C156: > 275 kV & < = 330 kV ; Capacitors | D156: 0 | E156: 0 | F156: 0 | G156: 0 | H156: 0 | I156: 0 | J156: 0 | K156: 0 | L156: 0 | M156: 0 | N156: 0 | O156: 0 | P156: 0 | Q156: 0 | R156: 0 | S156: 0 | T156: 0 | U156: 0 | V156: 0 | W156: 0 | X156: 0
C157: > 330 kV & < = 500 kV ; Capacitors | D157: 0 | E157: 0 | F157: 0 | G157: 0 | H157: 0 | I157: 0 | J157: 0 | K157: 0 | L157: 0 | M157: 0 | N157: 0 | O157: 0 | P157: 0 | Q157: 0 | R157: 0 | S157: 0 | T157: 0 | U157: 0 | V157: 0 | W157: 0 | X157: 0
C158: > 500 kV ; Capacitors | D158: 0 | E158: 0 | F158: 0 | G158: 0 | H158: 0 | I158: 0 | J158: 0 | K158: 0 | L158: 0 | M158: 0 | N158: 0 | O158: 0 | P158: 0 | Q158: 0 | R158: 0 | S158: 0 | T158: 0 | U158: 0 | V158: 0 | W158: 0 | X158: 0
C159: < = 33 kV; Oil Filled Reactors | D159: 0 | E159: 0 | F159: 0 | G159: 0 | H159: 0 | I159: 0 | J159: 0 | K159: 0 | L159: 0 | M159: 0 | N159: 0 | O159: 0 | P159: 0 | Q159: 0 | R159: 0 | S159: 0 | T159: 0 | U159: 0 | V159: 0 | W159: 0 | X159: 0
C160: > 33 kV & < = 66 kV ; Oil Filled Reactors | D160: 0 | E160: 0 | F160: 0 | G160: 0 | H160: 0 | I160: 0 | J160: 0 | K160: 0 | L160: 0 | M160: 0 | N160: 0 | O160: 0 | P160: 0 | Q160: 0 | R160: 0 | S160: 0 | T160: 0 | U160: 0 | V160: 0 | W160: 0 | X160: 0
C161: > 66 kV & < = 132 kV ; Oil Filled Reactors | D161: 0 | E161: 0 | F161: 0 | G161: 0 | H161: 0 | I161: 0 | J161: 0 | K161: 0 | L161: 0 | M161: 0 | N161: 0 | O161: 0 | P161: 0 | Q161: 0 | R161: 0 | S161: 0 | T161: 0 | U161: 0 | V161: 0 | W161: 0 | X161: 0
C162: > 132 kV & < = 275 kV ; Oil Filled Reactors | D162: 0 | E162: 0 | F162: 0 | G162: 0 | H162: 0 | I162: 0 | J162: 0 | K162: 0 | L162: 0 | M162: 0 | N162: 0 | O162: 0 | P162: 0 | Q162: 0 | R162: 0 | S162: 0 | T162: 0 | U162: 0 | V162: 0 | W162: 0 | X162: 0
C163: > 275 kV & < = 330 kV ; Oil Filled Reactors | D163: 0 | E163: 0 | F163: 0 | G163: 0 | H163: 0 | I163: 0 | J163: 0 | K163: 0 | L163: 0 | M163: 0 | N163: 0 | O163: 0 | P163: 0 | Q163: 0 | R163: 0 | S163: 0 | T163: 0 | U163: 0 | V163: 0 | W163: 0 | X163: 0
C164: > 330 kV & < = 500 kV ; Oil Filled Reactors | D164: 0 | E164: 0 | F164: 0 | G164: 0 | H164: 0 | I164: 0 | J164: 0 | K164: 0 | L164: 0 | M164: 0 | N164: 0 | O164: 0 | P164: 0 | Q164: 0 | R164: 0 | S164: 0 | T164: 0 | U164: 0 | V164: 0 | W164: 0 | X164: 0
C165: > 500 kV ; Oil Filled Reactors | D165: 0 | E165: 0 | F165: 0 | G165: 0 | H165: 0 | I165: 0 | J165: 0 | K165: 0 | L165: 0 | M165: 0 | N165: 0 | O165: 0 | P165: 0 | Q165: 0 | R165: 0 | S165: 0 | T165: 0 | U165: 0 | V165: 0 | W165: 0 | X165: 0
C166: Other | D166: 887412.3471 | E166: 9913896.857 | F166: 167386.9828 | G166: 168403.5081 | H166: 169403.4412 | I166: 170495.8351 | J166: 171624.2017 | K166: 20.15904656 | L166: 176.3056937 | M166: 3 | N166: 3 | O166: 4 | P166: 4 | Q166: 4 | R166: 0 | S166: 0 | T166: 0 | U166: 0 | V166: 0 | W166: 0 | X166: 0
B167: SCADA, NETWORK CONTROL AND PROTECTION SYSTEMS BY: Function | C167: Communications Network Assets | D167: 4918290.103 | E167: 14074307.39 | F167: 10233257.12 | G167: 12346294.07 | H167: 14539548.61 | I167: 12750750.62 | J167: 9223758.062 | K167: 121.3111114 | L167: 239.1099269 | M167: 122 | N167: 206 | O167: 162 | P167: 195 | Q167: 251 | R167: 0 | S167: 0 | T167: 0 | U167: 0 | V167: 0 | W167: 0 | X167: 0
C168: Control equipment / systems | D168: 5699932.77 | E168: 3951350.737 | F168: 7971294.731 | G168: 6602649.74 | H168: 5288692.798 | I168: 3129222.34 | J168: 2877844.846 | K168: 35.09542546 | L168: 19.98707218 | M168: 31 | N168: 26 | O168: 22 | P168: 21 | Q168: 22 | R168: 0 | S168: 0 | T168: 0 | U168: 0 | V168: 0 | W168: 0 | X168: 0
C169: Infrastructure: protection and control | D169: 3082022.472 | E169: 2136543.054 | F169: 1275815.418 | G169: 2156386.385 | H169: 3460375.171 | I169: 3118826.252 | J169: 3976658.332 | K169: 5.753348436 | L169: 3.27656921 | M169: 5 | N169: 4 | O169: 4 | P169: 3 | Q169: 4 | R169: 0 | S169: 0 | T169: 0 | U169: 0 | V169: 0 | W169: 0 | X169: 0
C170: Metering systems | D170: 321450.8548 | E170: 222838.6059 | F170: 0 | G170: 0 | H170: 206589.5624 | I170: 519804.3754 | J170: 732542.3244 | K170: 172.6004531 | L170: 98.29707631 | M170: 151 | N170: 128 | O170: 109 | P170: 103 | Q170: 109 | R170: 0 | S170: 0 | T170: 0 | U170: 0 | V170: 0 | W170: 0 | X170: 0
C171: Protection schemes / systems | D171: 6597642.111 | E171: 4573667.632 | F171: 7529352.27 | G171: 7632580.951 | H171: 4942655.281 | I171: 5478738.117 | J171: 4360719.808 | K171: 88.02623108 | L171: 50.13150892 | M171: 77 | N171: 65 | O171: 55 | P171: 53 | Q171: 56 | R171: 0 | S171: 0 | T171: 0 | U171: 0 | V171: 0 | W171: 0 | X171: 0
C172: Station SCADA and control systems | D172: 2520679.119 | E172: 1747404.346 | F172: 4100981.079 | G172: 1771317.387 | H172: 1394479.546 | I172: 1871295.751 | J172: 2302275.877 | K172: 28.47907476 | L172: 16.21901759 | M172: 25 | N172: 21 | O172: 18 | P172: 17 | Q172: 18 | R172: 0 | S172: 0 | T172: 0 | U172: 0 | V172: 0 | W172: 0 | X172: 0
B173: OTHER BY: NSP defined | C173: Other - Secondary | D173: 630432.0075 | E173: 437032.8701 | F173: 357228.317 | G173: 0 | H173: 206589.5624 | I173: 727726.1256 | J173: 1569733.552 | K173: 6.32868328 | L173: 3.604226132 | M173: 6 | N173: 4 | O173: 4 | P173: 4 | Q173: 4 | R173: 0 | S173: 0 | T173: 0 | U173: 0 | V173: 0 | W173: 0 | X173: 0
C174: Power transformers - Bushings replacement | D174: -194138.5313 | E174: 1793617.936 | F174: 694043.5873 | G174: 698258.4484 | H174: 702404.5122 | I174: 706933.9506 | J174: 711612.5437 | K174: 5.879844671 | L174: 12.04698652 | M174: 4 | N174: 4 | O174: 4 | P174: 5 | Q174: 5 | R174: 0 | S174: 0 | T174: 0 | U174: 0 | V174: 0 | W174: 0 | X174: 0
C175: Power transformers - life extension | D175: 0 | E175: 0 | F175: 1281939.332 | G175: 1289724.428 | H175: 1297382.452 | I175: 1305748.591 | J175: 1314390.228 | K175: 0 | L175: 0 | M175: 5 | N175: 5 | O175: 6 | P175: 6 | Q175: 6 | R175: 0 | S175: 0 | T175: 0 | U175: 0 | V175: 0 | W175: 0 | X175: 0
C176: Power transformers - improved safe access | D176: 10548.7068 | E176: 1025457.24 | F176: 510326.1672 | G176: 513425.3297 | H176: 516473.9061 | I176: 519804.3754 | J176: 523244.5174 | K176: 0 | L176: 21.28885351 | M176: 10 | N176: 10 | O176: 10 | P176: 10 | Q176: 10 | R176: 0 | S176: 0 | T176: 0 | U176: 0 | V176: 0 | W176: 0 | X176: 0
C177: On-line monitoring | D177: 0 | E177: 0 | F177: 173510.8968 | G177: 205370.1319 | H177: 103294.7812 | I177: 103960.8751 | J177: 104648.9035 | K177: 0 | L177: 0 | M177: 0 | N177: 0 | O177: 0 | P177: 0 | Q177: 0 | R177: 0 | S177: 0 | T177: 0 | U177: 0 | V177: 0 | W177: 0 | X177: 0
C178: Fire protection systems | D178: 2691029.885 | E178: 2431265.892 | F178: 1791244.847 | G178: 1802122.907 | H178: 1812823.41 | I178: 1824513.358 | J178: 1836588.256 | K178: 0 | L178: 0 | M178: 0 | N178: 0 | O178: 0 | P178: 0 | Q178: 0 | R178: 0 | S178: 0 | T178: 0 | U178: 0 | V178: 0 | W178: 0 | X178: 0
C179: Civil Infrastructure | D179: 0 | E179: 0 | F179: 1806554.632 | G179: 1817525.667 | H179: 1828317.627 | I179: 1840107.489 | J179: 1852285.592 | K179: 0 | L179: 0 | M179: 0 | N179: 0 | O179: 0 | P179: 0 | Q179: 0 | R179: 0 | S179: 0 | T179: 0 | U179: 0 | V179: 0 | W179: 0 | X179: 0
C180: Infrastructure security | D180: 1392665.823 | E180: 1806232.564 | F180: 2551630.836 | G180: 2567126.648 | H180: 2582369.53 | I180: 2599021.877 | J180: 2616222.587 | K180: 0 | L180: 0 | M180: 0 | N180: 0 | O180: 0 | P180: 0 | Q180: 0 | R180: 0 | S180: 0 | T180: 0 | U180: 0 | V180: 0 | W180: 0 | X180: 0
C181: Structure fall arrests (Stations) | D181: 1123739.706 | E181: 186446.7708 | F181: 7878.316365 | G181: 350445.9548 | H181: 546920.5386 | I181: 0 | J181: 0 | K181: 0 | L181: 0 | M181: 0 | N181: 0 | O181: 0 | P181: 0 | Q181: 0 | R181: 0 | S181: 0 | T181: 0 | U181: 0 | V181: 0 | W181: 0 | X181: 0
C182: Earth wires (incl. OPGW) | D182: 5034630.791 | E182: 0 | F182: 3880520.175 | G182: 3904086.207 | H182: 3927267.582 | I182: 3952592.471 | J182: 3978751.31 | K182: 2.046903232 | L182: 0 | M182: 45 | N182: 45 | O182: 45 | P182: 45 | Q182: 46 | R182: 0 | S182: 0 | T182: 0 | U182: 0 | V182: 0 | W182: 0 | X182: 0
C183: Insulators | D183: 5719946.13 | E183: 653123.0383 | F183: 1157585.093 | G183: 1098636.762 | H183: 1105160.161 | I183: 1112286.759 | J183: 928094.4978 | K183: 2580.600076 | L183: 264.5604128 | M183: 408 | N183: 408 | O183: 408 | P183: 408 | Q183: 408 | R183: 0 | S183: 0 | T183: 0 | U183: 0 | V183: 0 | W183: 0 | X183: 0
C184: Tower fall arrests | D184: 6982469.197 | E184: 5223306.285 | F184: 4403094.17 | G184: 4429833.744 | H184: 4456136.861 | I184: 4484872.151 | J184: 4514553.696 | K184: 597.0838774 | L184: 825.4736575 | M184: 656 | N184: 657 | O184: 657 | P184: 657 | Q184: 657 | R184: 0 | S184: 0 | T184: 0 | U184: 0 | V184: 0 | W184: 0 | X184: 0
C185: XC17 -FBTS Refurbishment - Other | D185: 0 | E185: 0 | F185: 4492230.03 | G185: 0 | H185: 0 | I185: 0 | J185: 0 | K185: 0 | L185: 0 | M185: 0 | N185: 0 | O185: 0 | P185: 0 | Q185: 0 | R185: 0 | S185: 0 | T185: 0 | U185: 0 | V185: 0 | W185: 0 | X185: 0
C186: XC28 - HWPS 220kV Switchyard Redevelopment Stage 4 - Other | D186: 0 | E186: 0 | F186: 0 | G186: 12067607.75 | H186: 0 | I186: 0 | J186: 0 | K186: 0 | L186: 0 | M186: 0 | N186: 0 | O186: 0 | P186: 0 | Q186: 0 | R186: 0 | S186: 0 | T186: 0 | U186: 0 | V186: 0 | W186: 0 | X186: 0
C187: XA09 - RTS Redevelopment - Other | D187: 0 | E187: 0 | F187: 0 | G187: 130374888.8 | H187: 0 | I187: 0 | J187: 0 | K187: 0 | L187: 0 | M187: 0 | N187: 0 | O187: 0 | P187: 0 | Q187: 0 | R187: 0 | S187: 0 | T187: 0 | U187: 0 | V187: 0 | W187: 0 | X187: 0
C188: XB59 - HTS Rebuild - Other | D188: 0 | E188: 0 | F188: 16908868.35 | G188: 0 | H188: 0 | I188: 0 | J188: 0 | K188: 0 | L188: 0 | M188: 0 | N188: 0 | O188: 0 | P188: 0 | Q188: 0 | R188: 0 | S188: 0 | T188: 0 | U188: 0 | V188: 0 | W188: 0 | X188: 0
C189: XC19 - SMTS H2 Transformer Replacement - Other | D189: 0 | E189: 0 | F189: 0 | G189: 12846287.99 | H189: 0 | I189: 0 | J189: 0 | K189: 0 | L189: 0 | M189: 0 | N189: 0 | O189: 0 | P189: 0 | Q189: 0 | R189: 0 | S189: 0 | T189: 0 | U189: 0 | V189: 0 | W189: 0 | X189: 0
C190: XC16 - TTS Bus Tie CB Replacement - Other | D190: 54272.27006 | E190: 0 | F190: 0 | G190: 0 | H190: 0 | I190: 0 | J190: 0 | K190: 0 | L190: 0 | M190: 0 | N190: 0 | O190: 0 | P190: 0 | Q190: 0 | R190: 0 | S190: 0 | T190: 0 | U190: 0 | V190: 0 | W190: 0 | X190: 0
C191: XC18 - YPS 220kV CB Replacement - Other | D191: 0 | E191: 4946203.48 | F191: 0 | G191: 0 | H191: 0 | I191: 0 | J191: 0 | K191: 0 | L191: 0 | M191: 0 | N191: 0 | O191: 0 | P191: 0 | Q191: 0 | R191: 0 | S191: 0 | T191: 0 | U191: 0 | V191: 0 | W191: 0 | X191: 0
C192: XC21 - RWTS B4 220/66kV Transformer and 66kV CB Replacement - Other | D192: 0 | E192: 0 | F192: 0 | G192: 4487634.826 | H192: 0 | I192: 0 | J192: 0 | K192: 0 | L192: 0 | M192: 0 | N192: 0 | O192: 0 | P192: 0 | Q192: 0 | R192: 0 | S192: 0 | T192: 0 | U192: 0 | V192: 0 | W192: 0 | X192: 0
C193: XC15 - TSTS B2 Transformer and 66kV CB Replacement - Other | D193: 0 | E193: 0 | F193: 0 | G193: 0 | H193: 0 | I193: 0 | J193: 654747.8369 | K193: 0 | L193: 0 | M193: 0 | N193: 0 | O193: 0 | P193: 0 | Q193: 0 | R193: 0 | S193: 0 | T193: 0 | U193: 0 | V193: 0 | W193: 0 | X193: 0
C194: XB61 - SVTS Redevelopment Stage 1 - Other | D194: 0 | E194: 0 | F194: 0 | G194: 0 | H194: 0 | I194: 0 | J194: 29709332.46 | K194: 0 | L194: 0 | M194: 0 | N194: 0 | O194: 0 | P194: 0 | Q194: 0 | R194: 0 | S194: 0 | T194: 0 | U194: 0 | V194: 0 | W194: 0 | X194: 0
C195: XA14 - WMTS Redevelopment - Other | D195: 0 | E195: 0 | F195: 0 | G195: 0 | H195: 0 | I195: 0 | J195: 77939504.41 | K195: 0 | L195: 0 | M195: 0 | N195: 0 | O195: 0 | P195: 0 | Q195: 0 | R195: 0 | S195: 0 | T195: 0 | U195: 0 | V195: 0 | W195: 0 | X195: 0
C196: 284A - HYTS 500kV and 275kV CB Replacement - Other | D196: 0 | E196: 0 | F196: 0 | G196: 1189078.689 | H196: 0 | I196: 0 | J196: 0 | K196: 0 | L196: 0 | M196: 0 | N196: 0 | O196: 0 | P196: 0 | Q196: 0 | R196: 0 | S196: 0 | T196: 0 | U196: 0 | V196: 0 | W196: 0 | X196: 0
C197: 285A - FBTS Transformer and Circuit Breaker Replacement - Other | D197: 0 | E197: 0 | F197: 0 | G197: 0 | H197: 0 | I197: 5419029.975 | J197: 0 | K197: 0 | L197: 0 | M197: 0 | N197: 0 | O197: 0 | P197: 0 | Q197: 0 | R197: 0 | S197: 0 | T197: 0 | U197: 0 | V197: 0 | W197: 0 | X197: 0
C198: ERTS B1, B3 & B4 Transformer replacements - Other | D198: 0 | E198: 0 | F198: 0 | G198: 0 | H198: 1003371.625 | I198: 0 | J198: 0 | K198: 0 | L198: 0 | M198: 0 | N198: 0 | O198: 0 | P198: 0 | Q198: 0 | R198: 0 | S198: 0 | T198: 0 | U198: 0 | V198: 0 | W198: 0 | X198: 0
C199: Other Ongoing Projects / Works | D199: 56484978.24 | E199: 3136929.065 | F199: 937543.2845 | G199: 0 | H199: 0 | I199: 0 | J199: 0 | K199: 0 | L199: 0 | M199: 0 | N199: 0 | O199: 0 | P199: 0 | Q199: 0 | R199: 0 | S199: 0 | T199: 0 | U199: 0 | V199: 0 | W199: 0 | X199: 0
